Workbook

Sheet Green Star SA
B13: Green Star SA - Retail Centre v1 validates the environmental initiatives of new retail centre buildings or retail centre base building refurbishments.
B15: You are invited to use Green Star SA - Retail Centre v1 to predict a Green Star SA rating. The Green Building Council of South Africa (GBCSA) does not endorse any self-assessed rating and you are prohibited from presenting self-assessment results in the public domain. The GBCSA offers a formal certification process for ratings of Four Stars and above. This service provides for independent third party review of points claimed to ensure all points can be demonstrated to be achieved by the provision of the necessary documentary evidence. The use of Green Star SA - Retail Centre without formal certification by the GBCSA does not entitle the user or any other party to promote a Green Star SA rating publicly.
B17: Use the tabs at the bottom of the pages to navigate.
B19: © Green Building Council of South Africa
B20: Last Modified: 22 March 2016

Sheet Introduction
B3: Green Star SA - Retail Centre v1
B7: Introduction to Green Star SA - Retail Centre v1
B11: What is Green Star SA?
B13: What does Green Star SA - Retail Centre v1 do?
B15: Who can use Green Star SA - Retail Centre v1?
B17: What do Green Star SA ratings mean?
B19: Acknowledgements
B27: =$B$11 -> What is Green Star SA?
B28: The Green Star SA environmental rating system for buildings was developed by the Green Building Council of South Africa (GBCSA). Green Star SA is a comprehensive rating system for evaluating the environmental design and performance of South African buildings based on a number of criteria, including energy and water efficiency, indoor environment quality and resource conservation.
B30: The Green Star SA environmental rating system is based upon the Australian Green Star system and has been customised for the South African environment by the GBCSA, under licence from the Green Building Council of Australia.
B31: Green Star SA has built on existing systems and tools in overseas markets, primarily the Australian Green Star system, but also including the British Building Research Establishment Environmental Assessment Method (BREEAM) system and the North American Leadership in Energy and Environmental Design (LEED) system. Environmental measurement criteria relevant to the South African marketplace and environmental context have been created.
B33: The Green Star rating system was created to:
B35: • establish a common language and standard of measurement for green buildings;
B36: • promote integrated, whole-building design;
B37: • raise awareness of green building benefits;
B38: • recognise and reward environmental leadership; and
B39: • reduce the environmental impact of development.
B44: =$B$13 -> What does Green Star SA - Retail Centre v1 do?
B46: Green Star SA - Retail Centre v1 validates the environmental initiatives of new retail centre buildings or retail centre base building refurbishments.
B51: =$B$15 -> Who can use Green Star SA - Retail Centre v1?
B52: The GBCSA encourages all interested parties to use Green Star SA - Retail Centre v1 to validate the environmental initiatives of new retail centre buildings or retail centre base building refurbishments. The use of Green Star SA - Retail Centre v1 is encouraged on all such projects to assess and improve their environmental design attributes.
B54: The use of Green Star SA - Retail Centre v1 without formal certification by the GBCSA does not entitle the user or any other party to promote the Green Star rating achieved. No fee is payable to the GBCSA for such use, however formal recognition of the Green Star SA rating - and the right to promote the same - requires undertaking the formal certification process offered by the GBCSA.
B59: =$B$17 -> What do Green Star SA ratings mean?
B60: Green Star SA rating tools use six stars to measure performance. Projects that obtain a predicted rating of one, two or three stars are not eligible for formal certification. Projects that obtain a predicted 4 Star rating or above are eligible to apply for formal certification, whereby a:
B61: • 4 Star Green Star Certified Rating recognises and rewards "Best Practice";
B62: • 5 Star Green Star Certified Rating recognises and rewards "South African Excellence"; and
B63: • 6 Star Green Star Certified Rating recognises and rewards "World Leadership".
B65: The Green Star SA – Retail Centre v1 provides for both Green Star SA – Retail Centre Design v1 and Green Star SA – Retail Centre As Built v1 certification criteria. All credits are the same for both ratings; only the documentation differs.
B67: Again, the use of Green Star SA - Retail Centre v1 without formal certification by the GBCSA does not entitle the user or any other party to promote a Green Star SA rating publicly.
B72: =$B$19 -> Acknowledgements
B73: The Green Building Council would like to acknowledge all parties that worked on and supported the development of the Green Star SA – Retail Centre v1 rating tool.
B75: The GBCSA thanks all those individuals and organisations who provided feedback and expertise to the technical development of the Green Star SA – Retail Centre v1 rating tool. In particular, the GBCSA would like to thank all Technical Steering Committee and Technical Working Group members, as well as technical consultant WSP. The GBCSA also acknowledges the tremendous support of the Green Building Council of Australia.
B77: The GBCSA’s founding members, along with Green Star SA - Retail Centre v1 tool sponsors South African Cities Network, Swiss Agency for Development and Cooperation, Liberty Properties and Pareto Limited provided much-needed financial support to develop the rating tool.
B79: Green Star SA – Retail Centre v1 is based on national and international guidelines, including primarily the Australian Green Star system, as well as the US LEED Green Building Rating System and UK's BREEAM Environmental Assessment Method.
B81: Green Star SA - Retail Centre v1 Tool Sponsors:

Sheet How to use
B3: Green Star SA - Retail Centre v1
B7: How to use this tool
A9: 1. | B9: Complete the Building Input worksheet as the building's type and location may affect the predicted rating.
A11: 2. | B11: Complete the remaining worksheets by reviewing each credit in each category and entering the number of points you predict the building will achieve in the 'No. of Points Achieved' column. Calculators are provided for a number of the tool's credits.
A13: 3. | B13: Enter any points that may be achieved but need to be confirmed in the 'Points to be Confirmed' column.
A15: 4. | B15: Enter any comments required in the 'Comments' column. Note these comments are for internal design team purposes only. Do NOT include ANY comments within the workbook submitted as a part of a submission for a certified rating.
A17: 5. | B17: The predicted rating is shown in the Summary worksheet. More detail on point scores (both achieved and those to be confirmed) are shown in the Credit Summary and Graphical Summary worksheets at the end of the tool.
B19: Limitations
B20: The GBCSA does not endorse any self-assessed rating achieved by the use of Green Star - SA Retail Centre v1. The GBCSA offers a formal certification process for ratings of Four Stars and above; this service provides for independent third party review of points claimed to ensure all points can be demonstrated to be achieved by the provision of the necessary documentary evidence. The use of Green Star SA - Retail Centre v1 without formal certification does not entitle the user or any other party to promote the Green Star SA rating achieved.
B22: The application of Green Star SA - Retail Centre v1 to all retail centre projects is encouraged to assess and improve their environmental design attributes. No fee is payable to the GBCSA for such use, however formal recognition of the Green Star SA rating - and the right to promote the same - requires undertaking the formal certification process offered by the GBCSA.

Sheet Disclaimer
B3: Green Star SA - Retail Centre v1
B7: Disclaimer
B10: Authorisation, Acknowledgement and Disclaimer
B11: The Green Star SA environmental rating system for buildings (“Green Star SA”) and the Green Star SA – Retail Centre rating tool (“Green Star SA – Retail Centre”) have been developed by the Green Building Council of South Africa (“GBCSA”). Green Star SA – Retail Centre v1 is intended for use by project teams, contractors and other interested parties to validate the environmental initiatives of the design phase of new retail centre construction or base building refurbishment; construction and procurement phase of a retail centre building; and/or to validate that environmental initiatives proposed in the design phase have been implemented by the building contractor. As with all Green Star SA rating tools, Green Star SA - Retail Centre v1 may be subject to further development in the future.
B13: Green Star SA and Green Star SA - Retail Centre v1 have been developed with the assistance and participation of representatives from many organisations. The views and opinions expressed have been determined upon by the GBCSA and its Committees.
B15: The GBCSA authorises you to view and use Green Star SA - Retail Centre v1 for information purposes only. In exchange for this authorisation, you agree that the GBCSA retains all copyright and other proprietary rights contained in and in relation to Green Star SA - Retail Centre v1 and agree not to sell, let, distribute, modify, or use for another purpose the tool or to reproduce, display or distribute the tool in any way for any public or commercial purpose, including display on a website or in a networked environment. Unauthorised use of Green Star SA and/or Green Star SA - Retail Centre v1 will violate copyright and other laws, and is prohibited. All text, graphics, layout and other elements of content contained in Green Star SA and its rating tools are owned by the GBCSA and are protected by copyright, trade mark and other laws.
B17: The GBCSA does not accept responsibility, including for negligence, for any inaccuracy, error or omission within Green Star SA and/or its rating tools and makes no warranty, expressed or implied, including the warranties of merchantability and fitness for a particular purpose, nor assumes any legal liability or responsibility to you or any third parties for the accuracy, completeness, use of or reliance on any information contained in Green Star SA and/or Green Star SA – Retail Centre v1, or for any injuries, losses or damages (including, without limitation, equitable relief and economic loss) arising out of such use or reliance.
B19: Green Star SA and Green Star SA - Retail Centre v1 are not substitutes for professional advice, nor do they purport to be a professional service. You should seek your own professional and other appropriate advice on the matters addressed by them.
B21: As a condition of use, you undertake not to institute legal proceedings in whatever form against the trade mark and copyright proprietor, and agree to waive and release the GBCSA, its officers, agents, employees and its members from any and all claims, demands and causes of action for any injury, loss, destruction or damage (including, without limitation, equitable relief and economic loss) that you may now or hereafter have a right to assert against such parties as a result of your use of, or reliance on, Green Star SA and/or Green Star SA – Retail Centre v1.
B23: The GBCSA does not endorse or otherwise acknowledge the Green Star SA rating achieved by the use of Green Star SA – Retail Centre v1. The GBCSA offers a formal certification process for ratings of Four Stars and above. The service provides for independent third party review of points claimed to ensure all credits can be demonstrated to be achieved by the provision of the necessary documentary evidence. The use of Green Star SA - Retail Centre v1 without formal certification by the GBCSA does not entitle the user or any other party to promote the achieved Green Star SA rating or make use of the Green Star trade marks in whatever manner or form.
B25: The application of Green Star SA - Retail Centre v1 to all retail centre projects is encouraged to assess and improve their environmental attributes. No fee is payable to the GBCSA for such use; however, formal recognition of the Green Star SA rating - and the right to promote the same - requires undertaking the formal certification process offered by the GBCSA, and use of this service shall not constitute such a certification process.
B27: You are only authorised to proceed to use Green Star SA and Green Star SA – Retail Centre v1 on this basis.
B29: © 2010 Green Building Council of South Africa. All rights reserved.

Sheet Change Log
B3: Green Star SA - Retail Centre v1
B7: Change Log
B9: Green Star SA Retail Centre v1 Tool Release Date
B10: 15th April 2010
B14: Changes & Amendments
B16: The GBCSA reserves the right to correct errors and omissions in the Green Star SA - Retail Centre v1 rating tool as necessary. The changes noted in this change log do not reflect Technical Clarifications or Credit Interpretation Request rulings. Project teams are advised to check the GBCSA website for the latest TC and CIR rulings. The changes noted in this change log also do not represent changes to points awarded for credits, or changes to credit critera. The changes noted below are those of minor nature related to the operation of the rating tool and associated calculators.
B18: Reissue Date | C18: Changes
B19: 2010-05-04 | C19: Modified Ene- Conditional Requirement format of 'Energy' and 'Energy Calculator' sheets; Corrected errors in Lighting Energy Calculator; Inserted additional area schedules into 'Building Input' page for use in 'Energy Calculator' and 'Lighting Energy Calculator'; Introduced option buttons in Ene-CR and Eco-CR in substitution of drop-down menus; Corrected calculation error in 'IEQ' sheet.
B20: 2010-06-02 | C20: Corrected errors in Potable Water Calculator and improved flexibility (now in line with Office v1 tool); Corrected errors in the Lighting Energy Calculator (reference areas).
B21: 2010-06-04 | C21: Corrected error in Lighting Energy Calculator not pulling correct areas from Building Input Page. Changed allocation of external parking lighting from being included with internal parking lighting to being included with external area lighting.
B22: 2010-07-01 | C22: Corrected error in Energy Calculator process.
B23: 2010-07-01 | C23: Minor change to hot water energy use calculation in 'Energy Calculator' to match Energy Calculator and Modelling Protocol Guide.
B24: 2010-07-26 | C24: Corrected error in 'Energy Calculator' caused by missing calculation cells.
B25: 2011-01-17 | C25: Split Man-6 credit to allow for a divide in achievable points.
B26: 2012-09-01 | C26: R1 & R2 Pre-Submission checklists added. Applicant Declaration added.
B27: 2013-03-13 | C27: Added in R1 and R2 Pre-Submission Checklist that all documents (each page) is labelled to indicate which Documentation Requirement it is submitted towards. Added several dates under Building Input. Added in R2 Pre-Submission Checklist that project team must submit 2 x images/renderings of project in the general section Added extra space for additional descriptions of sanitary fittings in Potable Water Calculator.
B28: 2016-03-22 | C28: WAT-1 Potable Water Calculator & EMI-5 Sewage Calculator, changed how the calculator accounts for other Greywater Collection sources and other Blackwater Collection sources.
B29: 2017-06-13 | C29: Update of the R1 and R2 Pre-Submission Checklists
B30: 2018-01-16 | C30: Updated DataExtract sheets for ENE/WAT/TRA/ECO/SEW calculators

Sheet R1 Pre-Submission Checklist
B3: Green Star SA - New Buildings
B7: Round 1 Pre-Submission Checklist
B8: Please complete the white cells only below, and submit the completed submission only if all aspects have been addressed.
B10: Pre-submission checklist is included to provide an overview of the project and ensure all relevant documentations have been submitted.
C11: General Submission Requirements
C12: The followingmust be uploaded to the 'General' section to ensure the Assessor and/or/moderator understands your project
B13: i | C13: The building's general description provided is in line with GEN00-T-OB1-1384 -Base Building Scope definition | D13: Please Confirm
B14: ii | C14: Site Drawing (Architectural drawings, elevations) showing extent of the building and project site | D14: Please Confirm
B15: iii | C15: Area schedule showing full GFA and UA of building seeking certification | D15: Please Confirm
B16: iv | C16: Completed Scoresheet | D16: Please Confirm
B17: v | C17: AP Declaration | D17: Please Confirm
B18: vi | C18: Any relevant GBCSA correspondence, clarifications or approved alternatives (TC's and CIR's) | D18: Please Confirm
C19: Administration
B20: 1 | C20: Signed Certification Agreement has been received by the GBCSA | D20: Please Confirm
B21: 2 | C21: The correct and full assessment fee has been received by the GBCSA | D21: Please Confirm
B22: 3 | C22: No Credit Interpretation Requests or Technical Clarifications are outstanding | D22: Please Confirm
B23: 4 | C23: The latest version of the GSSA rating tool and calculators have been used | D23: Please Confirm
B24: 5 | C24: Is this submission for a Multiple Building | D24: Please Confirm
C25: Eligibility
B26: 6 | C26: Eligibility Criteria 1: Spatial differentiation | D26: Please Confirm
B27: 7 | C27: Eligibility Criteria 2: Space use | D27: Please Confirm
B28: 8 | C28: Eligibility Criteria 3: Conditional requirements (project meets Ene-0 and Eco-0 conditional requirements) | D28: Please Confirm
B29: 9 | C29: Eligibility Criteria 4: Timing of Certification (project must be certified within 24 months of practical completion) | D29: Please Confirm
C30: Submission content and presentation
B31: 10 | C31: All files are in PDF format only and unlocked, in one layer. Calculators are in excel format | D31: Please Confirm
B32: 11 | C32: All PDF documents are to be bookmarked. | D32: Please Confirm
B33: 12 | C33: All documents are orientated in the same direction. | D33: Please Confirm
B34: 13 | C34: A PDF or calculator as required by the TM & the CE should be uploaded onto the CE for each category and credit being targeted. | D34: Please Confirm
B35: 14 | C35: Each page of all documents must be marked by use of a label indicating what Documentation Requirement it is supporting | D35: Please Confirm
B36: 15 | C36: Relevant sections of the documentation and drawings have been highlighted to draw the assessors attention to relevant information | D36: Please Confirm
B37: 16 | C37: A completed Green Star SA Excel spreadsheet (for the relevant tool) is included | D37: Please Confirm
B38: 17 | C38: Projects are to provide credit cover sheets for each credit. Cover sheets are to include the following information: | D38: Please Confirm
C39: i) Project identification -Name, number, rating tool ii) Assessment details-Assessment type i.e. multiple building, submission round, credit name, points avaiable, points claimed iii) Report checklist of all relevant documentations per credit as required by the Technical Manual. iv) CIRs and TCs submitted and/or used v) Credit criteria summary vi) Compliance with credit criteria vii)General notes/discussion that could be useful
B40: 18 | C40: All reports, letters and drawings referring to the project are on a letterhead and signed where stipulated or where they confirm a commitment | D40: Please Confirm
B41: 19 | C41: Drawings or Pictures are not in draft form and where applicable carry the "Tender" or "As Built" stamp/status | D41: Please Confirm
B42: 20 | C42: Specifications are not in draft format | D42: Please Confirm
B43: 21 | C43: All relevant information is included and linked as evidence to the credit it supports. (Appendices for each credit can be included as additional documunts within the credit , but must be clearly referenced within the documentation and have relevant sections highlighted.) | D43: Please Confirm
B44: 22 | C44: All drawings are still legible after scaling (especially small stamps, monitors/sensors etc.) | D44: Please Confirm
B45: 23 | C45: All inputs are consistent throughout the submission. | D45: Please Confirm
B46: 24 | C46: All credits claiming “na” have the required supporting documentation | D46: Please Confirm
B47: 25 | C47: The AP declaration has been signed and submitted with the submission | D47: Please Confirm
B51: Name: ___________________________________ Company: ___________________________________
B53: Signature of Applicant: ___________________________________
B55: Note: If any of the above have not been complied with, the GBCSA reserves the right to return submission documentation to the project for re-submission and compliance with the above.
B142: Yes
B143: No
B144: Not Applicable

Sheet R2 Pre-Submission Checklist
B3: Green Star SA - New Buildings
B7: Round 2 Pre-Submission Checklist
B8: Please complete the white cells only below, and submit the completed submission only if all aspects have been addressed.
B10: Pre-submission checklist is included to provide an overview of the project and ensure all relevant documentations have been submitted.
C11: General Submission Requirements
C12: The followingmust be uploaded to the 'General' section to ensure the Assessor and/or/moderator understands your project
B13: i | C13: The building's general description provided is in line with GEN00-T-OB1-1384 -Base Building Scope definition | D13: Please Confirm
B14: ii | C14: Site Drawing (Architectural drawings, elevations) showing extent of the building and project site | D14: Please Confirm
B15: iii | C15: Area schedule showing full GFA and UA of building seeking certification | D15: Please Confirm
B16: iv | C16: Completed Scoresheet | D16: Please Confirm
B17: v | C17: AP Declaration | D17: Please Confirm
B18: vi | C18: Any relevant GBCSA correspondence, clarifications or approved alternatives (TC's and CIR's) | D18: Please Confirm
C19: Administration
B20: 1 | C20: Number of TCs submitted by the project team.
B21: 2 | C21: Number of CIRs submitted by the project team.
B22: 3 | C22: There are no Credit Interpretation Requests or Technical Clarifications are outstanding | D22: Please Confirm
B23: 4 | C23: The project team has paid fees related to TCEs if any | D23: Please Confirm
C24: Eligibility
B25: 5 | C25: Eligibility has been established and all conditional requirements have been met OR any eligibility issues raised in Round 1 have been addressed | D25: Please Confirm
C26: Submission content and presentation
B27: 6 | C27: All files are in PDF format only and unlocked, in one layer. Calculators are in excel format | D27: Please Confirm
B28: 7 | C28: All PDF documents are to be bookmarked. | D28: Please Confirm
B29: 8 | C29: All documents are orientated in the same direction. | D29: Please Confirm
B30: 9 | C30: Relevant sections of the documentation and drawings have been highlighted to draw the assessors attention to relevant information. | D30: Please Confirm
B31: 10 | C31: All changes in the documentation as a result of Assessors' R1 comments have been highlighted | D31: Please Confirm
B32: 11 | C32: A completed Green Star SA Excel spreadsheet (for the relevant tool) is included | D32: Please Confirm
B33: 12 | C33: Projects are to provide credit cover sheets for each credit. Cover sheets are to include the following information: | D33: Please Confirm
C34: i) Project identification -Name, number, rating tool ii) Assessment details-Assessment type i.e. multiple building, submission round, credit name, points avaiable, points claimed iii) Report checklist of all relevant documentations per credit as required by the Technical Manual. iv) CIRs and TCs submitted and/or used v) Credit criteria summary vi) Compliance with credit criteria vii)General notes/discussion that could be useful
B35: 13 | C35: All reports, letters and drawings referring to the project are on a letterhead and signed where stipulated or where they confirm a commitment | D35: Please Confirm
B36: 14 | C36: Drawings or Pictures are not in draft form and where applicable carry the "Tender" or "As Built" stamp/status | D36: Please Confirm
B37: 15 | C37: All relevant information is included and linked as evidence to the credit it supports. (Appendices for each credit can be included as additional documunts within the credit , but must be clearly referenced within the documentation and have relevant sections highlighted.) | D37: Please Confirm
B38: 16 | C38: All drawings are still legible after scaling (especially small stamps, monitors/sensors etc.) | D38: Please Confirm
B39: 17 | C39: All inputs are consistent throughout the submission. | D39: Please Confirm
B40: 18 | C40: Submission for each credit includes all documentation stipulated in the technical manual, and the TC/CIR portal on the GBCSA website | D40: Please Confirm
B41: 19 | C41: All credits claiming “na” have the required supporting documentation | D41: Please Confirm
B42: 20 | C42: The AP declaration has been signed and submitted with the submission | D42: Please Confirm
B43: 21 | C43: The Project team has uploaded case study information for final submission round with the following: | D43: Please Confirm
C44: i) Project information confirmation form | D44: Please Confirm
C45: ii) Case study document form | D45: Please Confirm
C46: iii) 2x High Res Images (min 300 DPI) of the building | D46: Please Confirm
B51: Name: ___________________________________ Company: ___________________________________
B53: Signature of Applicant: ___________________________________
B55: Note: If any of the above have not been complied with, the GBCSA reserves the right to return submission documentation to the project for re-submission and compliance with the above.
B143: Yes
B144: No
B145: Not Applicable

Sheet Applicant Declaration
B3: Green Star SA - Retail Centre v1
B7: Green Star SA Project Submission - Applicant Declaration
B8: *This page must be printed and signed by the project applicant, and included in the general section of the project submission for Round 1 and Round 2.
B11: The Green Building Council of South Africa (GBCSA) aims to ensure that every Green Star SA submission is of a good quality and reflects the appropriate correct and true contractual documents on the project (whether they are Design or As Built project contractual documents). In this regard, the GBCSA requires that all Green Star SA project applicants sign this acknowledgement and declaration letter. Acknowledgement and declaration by the Green Star SA project applicant: I/We,___________________________________________________, the person/s responsible for compiling the Green Star SA submission on behalf of ________________________________________________ (the Applicant), confirm that I/we have taken due care, and acknowledge and declare that (to the best of my/our knowledge): 1. I/We have read and understood the relevant technical manual, the conditions of certification and any relevant Technical Clarifications, Errata and Credit Interpretation Requests. 2. All documentation submitted by me/us on behalf of the Applicant towards this Green Star SA submission has been verified by the appropriate professional/s as being true, correct and accurate. 3. All documentation submitted by me/us on behalf of the Applicant complies with all applicable legislation. 4. All documents and reports submitted to me/us by the Applicant's project team are true and correct and accurately reflect the project’s contractual documentation (whether for a Design or As Built submission). 5. All documents and reports which I/we have prepared for the submission are true and correct and accurately reflect the project’s contractual documentation (whether for a Design or As Built submission). 6. I/We have disclosed all applicable information relevant to the Application and undertake to disclose any further information that may influence the Application. Where the GBCSA identifies any serious or systematic non-conformances on project documentation in a submission from the Applicant, the GBCSA has the right to query such non-conformance/s with the Applicant, at which point the Applicant is required to investigate this further with its project team, and provide a written response to the GBCSA by no later than 7 (seven) business days from the date on which the query was made to the Applicant by the GBCSA. If the response from the Applicant confirms that the information provided was incorrect, the Applicant's project team can: a) For a Round 1 submission re-submit the correct information in Round 2 (as per assessor comments) or clarify that the information is not available and concede the point in Round 2 b) For a Round 2 submission, confirm to the GBCSA the incorrect nature of the information submitted, in which event the incorrect information will be excluded from the submission documents counted in the Round 2 results. If the response from the Applicant confirms that the information provided was correct, the Applicant's project team can, on behalf of the Applicant: c) In a Round 1 submission re-submit the correct information in Round 2. d) In a Round 2 submission, notify the GBCSA that such information was in fact correct, in which event the GBCSA will run this by the assessors for a final review before the results are published. Where these processes are not followed and the relevant submission documents remain under question, the GBCSA will notify the Applicant, and the credit/s to which this information relates will be unobtainable. Where this incomplete process occurs more than once, with the Applicant, the GBCSA reserves the right not to accept any further submissions from this Applicant in future. At the first instance where this incomplete process occurs, the Applicant will be placed on twelve (12) months’ probation, during which time any similar infringement would allow the GBCSA to exercise its right to not accept any further submissions from the Applicant. Further to this, where the Applicant is a Green Star SA Accredited Professional (GSSA AP), the GBCSA reserves the right to remove the Applicant’s GSSA AP qualification and remove them from the GSSA AP registry on the GBCSA’s website. Signature: ___________________________________ Date: ___________________________________ Name: ___________________________________ Company: ___________________________________ Signature of Applicant’s line manager warranting that s/he is duly authorised: ___________________________________ Name of Applicant’s line manager warranting that s/he is duly authorised: ___________________________________

Sheet Building Input
B1: Green Star SA - Retail Centre v1 | C1: Building Input Worksheet
B2: New or Refurbished Building:
B3: Type of Rating
B5: Name of Building:
B6: Address of Building: | E6: New Building
E7: Refurbishment
E8: 1
B9: Postcode:
B10: Province: | E10: Design Rating
E11: As Built Rating
B12: Applicant: | E12: 1
B13: Contact Person:
B15: Green Star SA Accredited Professional(s):
B16: Project Manager:
B17: Architect:
B18: Structural/Civil Engineer:
B19: Mechanical Engineer:
B20: Electrical Engineer:
B21: Wet Services Engineer:
B22: Fire Systems Engineer:
B23: Quantity Surveyor:
B24: Acoustic Consultant:
B25: Landscaping Consultant:
B26: Other consultant:
B27: Other consultant:
B28: Building Surveyor:
B29: Main Contractor:
B30: Local Planning Authority:
B32: Total Building Gross Floor Area (GFA) in m²: (i)
B33: Total Retail GFA (area dedicated to Commercial Retail) in m²: (ii)
B34: Total Tenant Usable Area (TUA) in m²:
B35: Nominated Area (HVAC) related to certain IEQ credits in m² (including common areas):
B36: Nominated Area (Lighting) related to certain Ene-1 in m² (excludes common areas):
B37: Non Tenant Area Lighting (mall & public common spaces)
B38: Non Tenant Area Lighting (non-public spaces - 'back of house')
B39: Internal Covered Vehicle Parking Area (B1, ground and above ground) in m²:
B40: Sub-basement Vehicle Parking Area (B2 and below) in m²:
B41: External Area (including external Car Parking) in m²:
B42: % Commercial Retail Space (equal to (ii)/(i)): | C42: =IF(C33>0,C33/C32,) -> 0
B43: Eligibility for Assessment | C43: =IF(C42>=80%,"The project meets area compliance for Green Star SA assessment.","Area compliance not met. To be eligible for Green Star SA assessment, Retail GFA must account for at least 80% of the total GFA.") -> Area compliance not met. To be eligible for Green Star SA assessment, Retail GFA must account for at least 80% of the total GFA.
B45: Building Description: (Orientation, Form, Structure, Façade, etc.)
B47: Building Services: (Heating, Cooling, Ventilation, Lighting, Lifts, Domestic Hot Water)
B49: Todays Date:
B50: Current Project Phase:
B51: Fully Registered Date:
B52: Site Handover Date:
B53: Construction Commencement Date:
B54: Practical Completion Date:
B56: NOTE: Use of Green Star SA - Retail Centre v1 may predict a rating that differs from that achieved via formal Green Star SA certification.

Sheet Management
A1: ='Building Input'!B1 -> Green Star SA - Retail Centre v1 | F1: Category Weighting: | G1: ='Credit Summary'!J18 -> 0.1 | H1: Category Weighted Score
A2: Management | D2: Category Summary: | E2: =E18 -> 17 | F2: =F18 -> 0 | G2: =G18 -> 0 | H2: ='Credit Summary'!K18 -> 0
A3: Credit Summary for: | C3: =IF('Building Input'!$C$5=0,"",'Building Input'!$C$5) ->  | F3: =IF(OR((I3=Calculation1!$B$84),(I3=Calculation1!$B$85),((F2+G2)>E2)),Calculation1!$B$86,"") ->  | I3: =T(I5:I17) -> 
A4: Ref No. | B4: Title | C4: Aim of Credit | D4: Credit Criteria Summary | E4: No. of Points Available | F4: No. of Points Achieved | G4: Points to be Confirmed | H4: Comments
A5: Man-1 | B5: Green Star SA Accredited Professional | C5: To encourage and recognise the engagement of professionals who can assist the project team with the integration of Green Star SA aims and processes throughout design and construction phases. | D5: Two points are awarded where: A principal participant in the design team is a Green Star SA Accredited Professional and has been engaged by the building owner to provide green building advice from the schematic design phase through to construction completion. If the schematic design phase of the project was begun prior to 1 June, 2009, this credit may be marked ‘Not Applicable’ and be excluded from the points available, used to calculate the Management Category Score. Type 'na' in the No. of Points Achieved column. | E5: =IF(F5="na",0,2) -> 2 | I5: =IF(ISBLANK(F5),IF(G5>E5,Calculation1!$B$84,""),IF(F5="na","",IF(OR(F5="na",ISNUMBER(F5)),IF(F5+G5>E5,Calculation1!$B$84,""),Calculation1!$B$85))) -> 
A6: Man-2 | B6: Commissioning Clauses | C6: To encourage and recognise commissioning and handover initiatives that ensure that all building services can operate to optimal design potential. | D6: Up to two points are awarded as follows: One point is awarded where it is demonstrated that: - Comprehensive pre-commissioning, commissioning, and quality monitoring are contractually required to be performed for all building services (BMS, mechanical, electrical, hydraulic and fire protection); AND - The works outlined above are done in exact accordance with CIBSE Commissioning Codes. Alternatively, ASHRAE Commissioning Guideline 1-1996 - The HVAC Commissioning Process can be used for the mechanical services. | E6: 1 | I6: =IF(OR(ISTEXT(F6)=TRUE,ISTEXT(G6)=TRUE),Calculation1!$B$87,IF(F6+G6>E6,Calculation1!$B$84,"")) -> 
D7: An additional point is awarded where it is demonstrated that: - The point above is achieved; AND - The design team and contractor are in a position to transfer project knowledge to the building owner/manager through all of the following: > Documented design intent; > As-built drawings; > Operations and Maintenance Manual; > Commissioning Report; and > Training of building management staff. | E7: 1 | I7: =IF(OR(ISTEXT(F7)=TRUE,ISTEXT(G7)=TRUE),Calculation1!$B$87,IF(F7+G7>E7,Calculation1!$B$84,"")) -> 
A8: Man-3 | B8: Building Tuning | C8: To encourage and recognise commissioning initiatives that ensure optimum occupant comfort and energy efficient services performance throughout the year. | D8: Two points are awarded where: - After handover, the building owner implements tuning of all building systems; - A relevant member of the design team is involved in the tuning process; - Monthly monitoring is undertaken and the outcomes are reported to the building owner quarterly to allow corrective action to be taken; - Full re-commissioning is undertaken 12 months after practical completion; AND - A Building Tuning Report on the outcomes of the tuning process will be provided to the building owner and made available to the design team. | E8: 2 | I8: =IF(OR(ISTEXT(F8)=TRUE,ISTEXT(G8)=TRUE),Calculation1!$B$87,IF(F8+G8>E8,Calculation1!$B$84,"")) -> 
A9: Man-4 | B9: Independent Commissioning Agent | C9: To ensure buildings are designed with regard to future maintenance and are correctly commissioned before handover. | D9: One point is awarded where an experienced person not part of the normal design team has been appointed to: - Provide independent advice on commissioning & maintenance issues to the building owner and the design team; - Produce input at preliminary design stage covering commissioning, maintenance and replacement of building services; - Produce a short guide to commissioning/maintenance at detailed design stage, highlighting access issues and replacement of plant; AND - Monitor and verify the commissioning of all building systems. | E9: 1 | I9: =IF(OR(ISTEXT(F9)=TRUE,ISTEXT(G9)=TRUE),Calculation1!$B$87,IF(F9+G9>E9,Calculation1!$B$84,"")) -> 
A10: Man-5 | B10: Building Guides | C10: To encourage and recognise information management that enables building users to optimise the building’s environmental performance. | D10: Up to two points are awarded as follows: One point is awarded where: - A simple and easy-to-use Building Users’ Guide, which includes information relevant for the building users, occupants and tenants’ representatives, is developed and made available to the building owner. One point is awarded where: - A Tenancy Fitout Guide is developed which, through practical recommendations, encourages the use of environmetal design principles in tenancy design, fitout and operations. | E10: 2 | I10: =IF(OR(ISTEXT(F10)=TRUE,ISTEXT(G10)=TRUE),Calculation1!$B$87,IF(F10+G10>E10,Calculation1!$B$84,"")) -> 
A11: Man-6 | B11: Environmental Management | C11: To encourage and recognise the adoption of a formal environmental management system in line with established guidelines during construction. | D11: Up to two points are awarded independently of each other and as follows: - One point is awarded where it is demonstrated that: The contractor implements a comprehensive, project-specific Environmental Management Plan (EMP) for the works in accordance with Section 3 of the New South Wales (Australia) Environmental Management System guidelines 2007. | E11: 1 | I11: =IF(OR(ISTEXT(F11)=TRUE,ISTEXT(G11)=TRUE),Calculation1!$B$87,IF(F11+G11>E11,Calculation1!$B$84,"")) -> 
D12: - One point is awarded where it is demonstrated that: The Contractor has valid ISO14001 Environmental Management System (EMS) accreditation prior to and throughout The project. | E12: 1 | I12: =IF(OR(ISTEXT(F12)=TRUE,ISTEXT(G12)=TRUE),Calculation1!$B$87,IF(F12+G12>E12,Calculation1!$B$84,"")) -> 
A13: Man-7 | B13: Waste Management | C13: To encourage and recognise management practices that minimise the amount of construction waste going to disposal. | D13: Up to three points are awarded where: The contractor implements a Waste Management Plan (WMP), retains waste records and issues quarterly reports to the building owner; AND A percentage (by mass or volume) of all demolition and construction waste is reused or recycled as follows: - One point for 30% of the waste; - Two points for 50% of waste; and - Three points for 70% of waste. | E13: 3 | I13: =IF(OR(ISTEXT(F13)=TRUE,ISTEXT(G13)=TRUE),Calculation1!$B$87,IF(F13+G13>E13,Calculation1!$B$84,"")) -> 
A14: Man-8 | B14: Air tightness testing | D14: This credit is not relevant to the Green Star SA Retail Centre v1 tool | E14: X | F14: X | G14: X
A15: Man-9 | B15: Waste and Recycling Management Plan | C15: To encourage and recognise management systems and building infrastructure that facilitate the reduction of the overall operational waste generation and disposal. | D15: One point is awarded where: – There is a comprehensive Waste and Recycling Management Plan for the reduction in the amount, by weight, of the retail centre’s overall operational waste. | E15: 1 | I15: =IF(OR(ISTEXT(F15)=TRUE,ISTEXT(G15)=TRUE),Calculation1!$B$87,IF(F15+G15>E15,Calculation1!$B$84,"")) -> 
A16: Man-10 | B16: Building Management Systems | C16: To encourage and recognise the incorporation of Building Management Systems to actively control and maximise the effectiveness of building services. | D16: One point is awarded where it is demonstrated that: • An electronic Building Management System (BMS) is integrated with the building to: – Monitor and report on energy and water consumption; and – Monitor and control building services systems. | E16: 1 | I16: =IF(OR(ISTEXT(F16)=TRUE,ISTEXT(G16)=TRUE),Calculation1!$B$87,IF(F16+G16>E16,Calculation1!$B$84,"")) -> 
A17: Man-11 | B17: Green Lease | C17: To encourage and recognise initiatives taken by the building owner to encourage improved environmental behaviour by tenants of the retail centre | D17: One point is awarded where the building owner/manager demonstrates that no less than 80% of the tenant usable area (per SAPOA) is committed to a tenancy lease agreement that requires the tenants to participate in the following environmental initiatives: • Electrical energy monitoring & reporting (minimum quarterly) and have submitted an energy management plan at the beginning of each year; • Water monitoring & reporting (minimum quarterly) and have submitted a water management plan at the beginning of each year; • Waste reduction/recycling monitoring & reporting (minimum quarterly) and have submitted a waste management plan at the beginning of each year; • The preparation of a procurement policy at the beginning of each year regarding the use of environmentally friendly consumables (cleaning products, toiletry products, paper and plastic consumable products). AND • The building owner is required to report back to the tenants on the buildings’ performance relating to energy, water, waste and procurement policies on an annual basis. | E17: 1 | I17: =IF(OR(ISTEXT(F17)=TRUE,ISTEXT(G17)=TRUE),Calculation1!$B$87,IF(F17+G17>E17,Calculation1!$B$84,"")) -> 
D18: Total Points: | E18: =SUM(E5:E17) -> 17 | F18: =SUM(F5:F17) -> 0 | G18: =SUM(G5:G17) -> 0
A22: =Calculation1!$B$93 -> Project Teams are to refer to the Green Star SA Retail Centre v1 Technical Manual for explicit credit criteria and documentation requirements.
A23: =Calculation1!$B$94 -> The Green Star Technical Clarifications (TC) and Credit Interpretation Request (CIR) rulings provide an essential source of information to all
A24: =Calculation1!$B$95 -> projects undertaking Green Star assessment. They are available on the GBCSA website http://www.gbcsa.org.za . Technical Clarifications
A25: =Calculation1!$B$96 -> often represent the GBCSA answers to technical queries and complement Green Star SA Technical Manuals. They do not amend but clarify
A26: =Calculation1!$B$97 -> Credit Criteria or Compliance Requirements. They are an extension of the Technical Manual; it is the responsibility of the project teams to stay
A27: =Calculation1!$B$98 -> up-to-date with this section of the GBCSA website. The CIR rulings offer alternative compliance options whenever those have been deemed
A28: =Calculation1!$B$99 -> equivalent in meeting the Aim of Credit.

Sheet IEQ
A1: ='Building Input'!B1 -> Green Star SA - Retail Centre v1 | F1: Category Weighting: | G1: ='Credit Summary'!J32 -> 0.1 | H1: Category Weighted Score
A2: Indoor Environment Quality | D2: Category Summary: | E2: =E28 -> 17 | F2: =F28 -> 0 | G2: =G28 -> 0 | H2: ='Credit Summary'!K32 -> 0
A3: Credit Summary for: | C3: =IF('Building Input'!$C$5=0,"",'Building Input'!$C$5) ->  | F3: =IF(OR((I3=Calculation1!$B$84),(I3=Calculation1!$B$85),((F2+G2)>E2)),Calculation1!$B$86,"") ->  | I3: =T(I5:I27) -> 
A4: Ref No. | B4: Title | C4: Aim of Credit | D4: Credit Criteria Summary | E4: No. of Points Available | F4: No. of Points Achieved | G4: Points to be Confirmed | H4: Comments
A5: IEQ-1 | B5: Ventilation Rates | C5: To encourage and recognise designs that provide ample amounts of outside air to counteract build-up of indoor pollutants. | D5: Three points are available as follows: Naturally ventilated spaces Three points are awarded where it is demonstrated that 95% of the nominated area is naturally ventilated in accordance with SANS 10400-O (minimum 5% openable area). Mechanically ventilated spaces Up to three points are awarded where for 95% of the nominated area, outside air is provided at rates greater than the requirements of SANS 10400-O (5 litres/second/person for retail centres), as follows: - One point for 50% improvement; - Two points for 100% improvement; or - Three points for 150% improvement. Mixed-mode ventilated spaces Both modes of operation must individually satisfy the relevant mechanical and natural ventilation criteria. The points awarded will be limited to the maximum points awarded under the mechanical ventilation criteria. | E5: =IF(F5="na",0,3) -> 3 | I5: =IF(ISBLANK(F5),IF(G5>E5,Calculation1!$B$84,""),IF(F5="na","",IF(OR(F5="na",ISNUMBER(F5)),IF(F5+G5>E5,Calculation1!$B$84,""),Calculation1!$B$85))) -> 
D6: For the purposes of this credit ‘nominated area’ is GLA and common areas (excluding open air mall areas, car parks and tenancies that provide their own air). If ‘open air mall’ areas make up more than 95% of the project’s total common areas, this credit is ‘Not Applicable’ and is excluded from the points available used to calculate the Indoor Environment Quality Category Score. Type 'na' in the No. of Points Achieved column.
A7: IEQ - 2 | B7: Air Change Effectiveness | C7: To encourage and recognise systems that effectively deliver optimum air quality to any occupant throughout the occupied area. | D7: Two points are awarded where it is demonstrated that the Air Change Effectiveness (ACE) for at least 95% of the nominated area meets the following criteria: Naturally Ventilated Spaces • A distribution and laminar flow pattern for at least 95% of the nominated area of each space in the direction of air flow for not less than 95% of standard hours of occupancy is demonstrated. Mechanically Air-Conditioned and Mechanically Assisted Naturally Ventilated Spaces • The ventilation systems are designed to achieve an Air Change Effectiveness (ACE) of >0.95 for at least 95% of the nominated area when measured in accordance with ASHRAE 129 1997: ‘Measuring Air Change Effectiveness’; and • ACE must be measured 1.6m above finished floor level. Mixed-Mode Ventilated Spaces Both the above requirements for Naturally Ventilated and Mechanically Air-conditioned Spaces are achieved | E7: =IF(F7="na",0,2) -> 2 | I7: =IF(ISBLANK(F7),IF(G7>E7,Calculation1!$B$84,""),IF(F7="na","",IF(OR(F7="na",ISNUMBER(F7)),IF(F7+G7>E7,Calculation1!$B$84,""),Calculation1!$B$85))) -> 
D8: For the purposes of this credit ‘nominated area’ is GLA and common areas (excluding open air mall areas, car parks and tenancies that provide their own air). If ‘open air mall’ areas make up more than 95% of the project’s total common areas, this credit is ‘Not Applicable’ and is excluded from the points available used to calculate the Indoor Environment Quality Category Score. Type 'na' in the No. of Points Achieved column.
A9: IEQ-3 | B9: Carbon Dioxide Monitoring and Control | C9: To encourage and recognise the provision of response monitoring of Carbon Dioxide levels to ensure delivery of optimum quantities of outside air. | D9: One point is awarded where it is demonstrated that: Naturally Ventilated Spaces • 95% of the nominated area is naturally ventilated in accordance with SANS 10400-O; AND • Carbon Dioxide monitoring is provided for every 1000m2 to provide an alarm on the building facility staff’s control system if CO2 levels rise above 1,000ppm; AND • In back of house areas ventilation rates are directly controlled by occupants. Mechanically Air-conditioned and Mechanically Assisted Naturally Ventilated Spaces • A carbon dioxide (CO2) monitoring and control system with a minimum of one CO2 sensor per zone, to a maximum of 1000m2, in 95% of the nominated area, is provided to facilitate continuous monitoring and adjustment of outside air ventilation rates to each level, to ensure independent control of ventilation rates to achieve outside air requirements; OR • HVAC systems provide 100% outside air with no recirculated component. Mixed-Mode Ventilated Spaces Both modes of operation must satisfy the relevant mechanical and natural ventilation criteria. | E9: =IF(F9="na",0,1) -> 1 | I9: =IF(ISBLANK(F9),IF(G9>E9,Calculation1!$B$84,""),IF(F9="na","",IF(OR(F9="na",ISNUMBER(F9)),IF(F9+G9>E9,Calculation1!$B$84,""),Calculation1!$B$85))) -> 
D10: For the purposes of this credit ‘nominated area’ is GLA and common areas (excluding open air mall areas, car parks and tenancies that provide their own air). If ‘open air mall’ areas make up more than 95% of the project’s total common areas, this credit is ‘Not Applicable’ and is excluded from the points available used to calculate the Indoor Environment Quality Category Score. Type 'na' in the No. of Points Achieved column.
A11: IEQ-4 | B11: Daylight | C11: To encourage and recognise designs that provide good levels of daylight for building users. | D11: Up to two points are awarded: One point is awarded where it is demonstrated that: • 30% of the nominated area has a Daylight Factor of at least 2.5% or Daylight Illuminance of at least 300 lux as measured at the floor level under a uniform design sky. Two points are awarded where it is demonstrated that: • 60% of the nominated area has a Daylight Factor of at least 2.5% or Daylight Illuminance of at least 300 lux as measured at the floor level under a uniform design sky. For the purposes of this credit ‘nominated area’ is defined as internal public common area where there are tenants on two sides of common space, uncovered or covered, and the area is considered a mall area (excluding car parks). | E11: 2 | I11: =IF(OR(ISTEXT(F11)=TRUE,ISTEXT(G11)=TRUE),Calculation1!$B$87,IF(F11+G11>E11,Calculation1!$B$84,"")) -> 
A12: IEQ-5 | B12: Daylight Glare Control | D12: This credit is not relevant to the Green Star SA Retail Centre v1 tool | E12: X | F12: X | G12: X
A13: IEQ-6 | B13: High Frequency Ballasts | D13: This credit is not relevant to the Green Star SA Retail Centre v1 tool | E13: X | F13: X | G13: X
A14: IEQ-7 | B14: Electric Lighting Levels | D14: This credit is not relevant to the Green Star SA Retail Centre v1 tool | E14: X | F14: X | G14: X
A15: IEQ-8 | B15: External Views | D15: This credit is not relevant to the Green Star SA Retail Centre v1 tool | E15: X | F15: X | G15: X
A16: IEQ-9 | B16: Thermal Comfort | C16: To encourage and recognise buildings that achieve a high level of thermal comfort. | D16: A total of two points are available as follows: One point is awarded where: A high level of thermal comfort is achieved for 95% of the tenant areas within the nominated area through any combination of the following: Naturally Ventilated and Mechanically Assisted Naturally Ventilated Spaces: Where the Acceptability Limits of ASHRAE Standard 55 2004 are achieved during Standard Operating Hours of Occupancy for 98% of the year: • One point is awarded for internal temperatures within 80% of Acceptability Limit 1. Mechanically Air-Conditioned Spaces: Where Predicted Mean Vote (PMV) levels, calculated in accordance with ISO7730, are achieved during Standard Operating Hours of Occupancy for 98% of the year using standard clothing and metabolic rate values: • One point is awarded for PMV levels between -1.5 and +1.5, inclusive. Mixed-Mode Ventilated Spaces: For mixed-mode buildings, the above mechanical and natural ventilation thermal comfort criteria must be met. | E16: =IF(F16="na",0,1) -> 1 | I16: =IF(ISBLANK(F16),IF(G16>E16,Calculation1!$B$84,""),IF(F16="na","",IF(OR(F16="na",ISNUMBER(F16)),IF(F16+G16>E16,Calculation1!$B$84,""),Calculation1!$B$85))) -> 
D17: A second point is awarded where the first point has been achieved; AND • The credit criteria above for the first point are met for all mall spaces within the nominated area. For the purposes of this credit ‘nominated area’ is GLA and common areas (excluding open air mall areas, car parks and tenancies that provide their own air). If no conditioning is provided to any tenant spaces within the nominated area, the first point is 'Not Applicable' and is excluded from the points available used to calculate the Indoor Environment Quality Category Score. Type 'na' in the No. of Points Achieved column. If ‘open air mall’ areas make up more than 95% of the project’s total common areas, the second point is ‘Not Applicable’ and is excluded from the points available used to calculate the Indoor Environment Quality Category Score. Type 'na' in the No. of Points Achieved column. If conditioning is provided, and the first point is not met, the second point in mall spaces cannot be targeted (i.e. the first point is a prerequisite to meeting the second point of this credit). | E17: =IF(OR(F17="na",F16="na"),0,1) -> 1 | I17: =IF(ISBLANK(F17),IF(G17>E17,Calculation1!$B$84,""),IF(F17="na","",IF(OR(F17="na",ISNUMBER(F17)),IF(F17+G17>E17,Calculation1!$B$84,""),Calculation1!$B$85))) -> 
A18: IEQ-10 | B18: Individual Comfort Control | D18: This credit is not relevant to the Green Star SA Retail Centre v1 tool | E18: X | F18: X | G18: X
A19: IEQ-11 | B19: Hazardous Materials | C19: To encourage and recognise actions taken to reduce health risks to occupants from the presence of hazardous materials. | D19: One point is awarded where: A comprehensive hazardous material survey has been carried out on the project site, as defined by the South African Occupational Health and Safety Act (OH&S) and/or other relevant legislation; AND Whenever asbestos, lead or polychlorinated biphenyls (PCBs) were found, they have been removed in accordance with the standards listed under Table IEQ-11.1. For new developments or developments in which none of the above hazardous materials were found in the survey, this credit is ‘Not Applicable’ and is excluded from the points available, used to calculate the Indoor Environment Quality category score. Type 'na' in the No. of Points Achieved column. | E19: =IF(F19="na",0,1) -> 1 | I19: =IF(ISBLANK(F19),IF(G19>E19,Calculation1!$B$84,""),IF(F19="na","",IF(OR(F19="na",ISNUMBER(F19)),IF(F19+G19>E19,Calculation1!$B$84,""),Calculation1!$B$85))) -> 
A20: IEQ-12 | B20: Internal Noise Levels | C20: To encourage and recognise buildings that are designed to maintain internal noise levels at an appropriate level. | D20: One point is awarded where it is demonstrated that: • For 95% of the project's nominated area, noise from the building services does not exceed 55dB(A)eq. For the purposes of this credit ‘nominated area’ is GLA and common areas (excluding open air mall areas, car parks and tenancies that provide their own air). If ‘open air mall’ areas make up more than 95% of the project’s total common areas, this credit is ‘Not Applicable’ and is excluded from the points available used to calculate the Indoor Environment Quality Category Score. Type 'na' in the No. of Points Achieved column. | E20: =IF(F20="na",0,1) -> 1 | I20: =IF(ISBLANK(F20),IF(G20>E20,Calculation1!$B$84,""),IF(F20="na","",IF(OR(F20="na",ISNUMBER(F20)),IF(F20+G20>E20,Calculation1!$B$84,""),Calculation1!$B$85))) -> 
A21: IEQ-13 | B21: Volatile Organic Compounds | C21: To encourage and recognise specification of interior finishes that minimise the contribution and levels of Volatile Organic Compounds in buildings. | D21: Up to two points are awarded where the various finishes used in the project meet the benchmarks as follows: Paints One point where: - at least 95% of all painted surfaces meet the TVOC Content Limits outlined in Table IEQ-13.1 and must not contain any added lead in the form of driers or pigments; OR - where no paint is used in the project. | E21: 1 | I21: =IF(OR(ISTEXT(F21)=TRUE,ISTEXT(G21)=TRUE),Calculation1!$B$87,IF(F21+G21>E21,Calculation1!$B$84,"")) -> 
D22: Adhesives and Sealants One point where: - at least 95% of all adhesives and sealants meet the TVOC Content Limits outlined in Table IEQ-13.2 OR - where no adhesives or sealants are used. | E22: 1 | I22: =IF(OR(ISTEXT(F22)=TRUE,ISTEXT(G22)=TRUE),Calculation1!$B$87,IF(F22+G22>E22,Calculation1!$B$84,"")) -> 
A23: IEQ-14 | B23: Formaldehyde Minimisation | C23: To encourage and recognise the specification of products with low formaldehyde emission levels. | D23: One point is awarded where all composite wood products (including exposed and concealed applications) and any other formaldehyde containing products either: Have low formaldehyde emissions; OR Contain no formaldehyde. If no composite wood products are used within the project, this credit is ‘Not Applicable’ and is excluded from the points available, used to calculate the Indoor Environment Quality category score. Type 'na' in the No. of Points Achieved column. | E23: =IF(F23="na",0,1) -> 1 | I23: =IF(ISBLANK(F23),IF(G23>E23,Calculation1!$B$84,""),IF(F23="na","",IF(OR(F23="na",ISNUMBER(F23)),IF(F23+G23>E23,Calculation1!$B$84,""),Calculation1!$B$85))) -> 
A24: IEQ-15 | B24: Mould Prevention | C24: To encourage and recognise the design of services that eliminate the risk of mould growth and its associated detrimental impact on occupant health. | D24: One point is awarded where it is demonstrated that for 95% of the nominated area: The mechanically air-conditioned ventilation system maintains humidity levels at no more than 60% relative humidity in the space and no more than 80% relative humidity in the supply ductwork; OR The building is fully naturally ventilated. For the purposes of this credit ‘nominated area’ is GLA and common areas (excluding open air mall areas, car parks and tenancies that provide their own air). If ‘open air mall’ areas make up more than 95% of the project’s total common areas, this credit is ‘Not Applicable’ and is excluded from the points available used to calculate the Indoor Environment Quality Category Score. Type 'na' in the No. of Points Achieved column. | E24: =IF(F24="na",0,1) -> 1 | I24: =IF(ISBLANK(F24),IF(G24>E24,Calculation1!$B$84,""),IF(F24="na","",IF(OR(F24="na",ISNUMBER(F24)),IF(F24+G24>E24,Calculation1!$B$84,""),Calculation1!$B$85))) -> 
A25: IEQ-16 | B25: Tenant Exhaust Riser | D25: This credit is not relevant to the Green Star SA Retail Centre v1 tool | E25: X | F25: X | G25: X
A26: IEQ-17 | B26: Environmental Tobacco Smoke Avoidance | D26: This credit is not relevant to the Green Star SA Retail Centre v1 tool | E26: X | F26: X | G26: X
A27: IEQ-18 | B27: Places of Respite and Connection to Nature | C27: To encourage and recognise developments tha create appropriately designed areas where retail centre staff and visitors can relax in a place of respite which has a connection to nature. | D27: One point is awarded where it is demonstrated that at least one designated place of respite with direct physical and visual connection to the natural environment is provided for staff and visitors in accordance with all of the following criteria: • The combined area of all places of respite is equivalent to no less than 0.1% of the Retail GFA, or a minimum of 50m2; • Each place of respite is designed to be a universally accessible, well lit, well ventilated, and is located to avoid noise, odour and air pollution; • The places of respite are located in a walkable distance to any part of the centre, and should either be central or spread across the centre for ease of access. • A minimum of 20% of the area of the place of respite is soft landscaping – horizontal or vertical or a combination; • Seating areas are provided to a minimum of two seating space per 7.5m2; Ambient sound levels of the place of respite will be maintained at a maximum of 55dbA. AND • Where the place of respite is outdoors it must be shown that, in addition, the space: - Has a low noise exposure (from traffic and building services). - Has shading to at least 35% of its area; and - Is screened from significant prevailing winds AND • Where the place of respite is indoors it must be shown that, in addition, the space: - Has a Daylight Factor (DF) of at least 2.5% - Achieves at least 1 point under IEQ-1 for fresh air ventilation rates (if it is not an open air space or naturally ventilated). | E27: 1 | I27: =IF(OR(ISTEXT(F27)=TRUE,ISTEXT(G27)=TRUE),Calculation1!$B$87,IF(F27+G27>E27,Calculation1!$B$84,"")) -> 
D28: Total Points: | E28: =SUM(E5:E27) -> 17 | F28: =SUM(F5:F27) -> 0 | G28: =SUM(G5:G27) -> 0
A32: =Calculation1!$B$93 -> Project Teams are to refer to the Green Star SA Retail Centre v1 Technical Manual for explicit credit criteria and documentation requirements.
A33: =Calculation1!$B$94 -> The Green Star Technical Clarifications (TC) and Credit Interpretation Request (CIR) rulings provide an essential source of information to all
A34: =Calculation1!$B$95 -> projects undertaking Green Star assessment. They are available on the GBCSA website http://www.gbcsa.org.za . Technical Clarifications
A35: =Calculation1!$B$96 -> often represent the GBCSA answers to technical queries and complement Green Star SA Technical Manuals. They do not amend but clarify
A36: =Calculation1!$B$97 -> Credit Criteria or Compliance Requirements. They are an extension of the Technical Manual; it is the responsibility of the project teams to stay
A37: =Calculation1!$B$98 -> up-to-date with this section of the GBCSA website. The CIR rulings offer alternative compliance options whenever those have been deemed
A38: =Calculation1!$B$99 -> equivalent in meeting the Aim of Credit.

Sheet Energy
A1: ='Building Input'!B1 -> Green Star SA - Retail Centre v1 | F1: Category Weighting: | G1: ='Credit Summary'!J40 -> 0.25 | H1: Category Weighted Score
A2: Energy | D2: Category Summary: | E2: =E12 -> 26 | F2: =F12 -> 0 | G2: =G12 -> 0 | H2: ='Credit Summary'!K40 -> 0
A3: Credit Summary for: | C3: =IF('Building Input'!$C$5=0,"",'Building Input'!$C$5) ->  | F3: =IF(OR((I3=Calculation1!$B$84),(I3=Calculation1!$B$85),((F2+G2)>E2)),Calculation1!$B$86,"") ->  | I3: =T(I6:I11) -> 
A4: Ref No. | B4: Title | C4: Aim of Credit | D4: Credit Criteria Summary | E4: No. of Points Available | F4: No. of Points Achieved | G4: Points to be Confirmed | H4: Comments
A5: Ene- | B5: Conditional Requirement | C5: To encourage and recognise designs that minimise the greenhouse gas emissions associated with operational energy consumption, and maximise potential operational energy efficiency of the base building. | D5: Compliance Route 1 - Energy modelling route Predicted carbon emissions of the actual building are less than or equal to the predicted carbon emissions of the notional building in the same location, based on the requirements of the Green Star SA - Retail Centre v1 Energy Calculator and Modelling Protocol Guide. Compliance Route 2 - ASHRAE deemed to satisfy route The design must fully comply with ASHRAE Advanced Energy Design Guide for Small Retail Buildings. This route is only available for retail centres with GFA < 2,200m². | E5: Conditional Requirement Achieved? | F5: =IF('Energy Calculator'!I5:I7="Achieved",'Energy Calculator'!S105,'Energy Calculator'!S106) -> NO; Ene- Conditional Requirement NOT achieved | H5: =IF('Energy Calculator'!I5:I7="Achieved",'Energy Calculator'!S109,IF('Energy Calculator'!U121='Energy Calculator'!S116,'Energy Calculator'!S111,'Energy Calculator'!S110)) -> Compliance is determined from information entered into the Energy Calculator. The project team acknowledges that the design does NOT meet the minimum energy efficiency requirements as stipulated in the Green Star SA Retail Centre v1 Technical Manual. This Green Star SA project is therefore NOT eligible for formal certification by the GBCSA. Please refer to the Technical Manual for further information.
A6: Ene-1 | B6: Greenhouse Gas Emissions | C6: To encourage and recognise designs that minimise greenhouse gas emissions associated with operational energy consumption. | D6: Up to twenty points are awarded where it is demonstrated that the building’s predicted greenhouse gas emissions have been reduced according to either of the two options: Compliance Route 1 - Energy modelling route (maximum 20 points available) The building is to be modelled using the criteria in the Green Star SA - Retail Centre v1 Energy Calculator and Modelling Protocol Guide, and the predicted carbon emissions compared with those of the notional building in the same location constructed to the requirements of the same Retail Centre Energy Calculator and Modelling Protocol Guide. Points are then awarded on a linear scale with 0 points for the notional building and 20 points for a net zero operating emissions building. One point is awarded for every 5% saving below the notional building level. Compliance Route 2 - ASHRAE deemed to satisfy route (2 points available) If the project has a Retail GFA of less than 2200m2, then the project may prove compliance by fully complying with the ASHRAE Advanced Energy Design Guide for Small Retail Buildings. The points in both cases are determined by the Green Star SA - Retail Centre v1 Energy Calculator. | E6: 20 | F6: =IF('Energy Calculator'!I2="Error",0,'Energy Calculator'!I2) -> 0 | I6: =IF(OR(ISTEXT(F6)=TRUE,ISTEXT(G6)=TRUE),Calculation1!$B$87,IF(F6+G6>E6,Calculation1!$B$84,"")) -> 
A7: Ene-2 | B7: Electrical Energy Sub-metering | C7: To encourage and recognise the installation of electrical energy sub-metering to facilitate ongoing management of electrical energy consumption. | D7: Two points are awarded where: - It is demonstrated that sub-metering is provided for substantive energy uses within the building (i.e. all electrical energy uses of 100kVa or greater) including separate meters for all tenancies; AND - There is an effective automated mechanism for monitoring electrical energy consumption data; AND - A metering and verification strategy is developed for the project. | E7: 2 | I7: =IF(OR(ISTEXT(F7)=TRUE,ISTEXT(G7)=TRUE),Calculation1!$B$87,IF(F7+G7>E7,Calculation1!$B$84,"")) -> 
A8: Ene-3 | B8: Lighting Power Density | D8: This credit is not relevant to the Green Star SA Retail Centre v1 tool | E8: X | F8: X | G8: X
A9: Ene-4 | B9: Lighting Zoning | D9: This credit is not relevant to the Green Star SA Retail Centre v1 tool | E9: X | F9: X | G9: X
A10: Ene-5 | B10: Maximum Electrical Demand Reduction | C10: To encourage and recognise designs that reduce maximum demand on electrical supply infrastructure. | D10: Up to three points are awarded where it is demonstrated that the building has reduced its peak electrical demand on the utility's electricity infrastructure as follows: One point where: - peak electrical demand is actively reduced by 10%; OR - The difference between the peak and average demand does not exceed 40% Two points where: - peak electrical demand is actively reduced by 20%; OR - The difference between the peak and average demand does not exceed 30% Three points where: - peak electrical demand is actively reduced by 30%; OR - The difference between the peak and average demand does not exceed 20% | E10: 3 | I10: =IF(OR(ISTEXT(F10)=TRUE,ISTEXT(G10)=TRUE),Calculation1!$B$87,IF(F10+G10>E10,Calculation1!$B$84,"")) -> 
A11: Ene-6 | B11: Thermal Energy Sub-metering | C11: To encourage and recognise the installation of thermal energy sub-metering to facilitate ongoing management of thermal energy consumption. | D11: One point is awarded where: - For landlord centralised space heating or cooling reticulation systems, it is demonstrated that sub-metering is provided for all substantive thermal energy uses where flow and return temperatures, and mass flow rate are measured AND; - There is an effective automated mechanism for measurement and verification of thermal energy consumption data AND; - A measurement & verification strategy is developed for the project. If centralised space heating or cooling reticulation systems are not under the landlord/developer's control and not included within the base-build, this credit is ‘Not Applicable’ and is excluded from the points available used to calculate the Energy category score. Type 'na' in the No. of Points Achieved column. | E11: =IF(F11="na",0,1) -> 1 | I11: =IF(ISBLANK(F11),IF(G11>E11,Calculation1!$B$84,""),IF(F11="na","",IF(OR(F11="na",ISNUMBER(F11)),IF(F11+G11>E11,Calculation1!$B$84,""),Calculation1!$B$85))) -> 
D12: Total Points: | E12: =SUM(E6:E11) -> 26 | F12: =SUM(F5:F11) -> 0 | G12: =SUM(G5:G11) -> 0
A16: =Calculation1!$B$93 -> Project Teams are to refer to the Green Star SA Retail Centre v1 Technical Manual for explicit credit criteria and documentation requirements.
A17: =Calculation1!$B$94 -> The Green Star Technical Clarifications (TC) and Credit Interpretation Request (CIR) rulings provide an essential source of information to all
A18: =Calculation1!$B$95 -> projects undertaking Green Star assessment. They are available on the GBCSA website http://www.gbcsa.org.za . Technical Clarifications
A19: =Calculation1!$B$96 -> often represent the GBCSA answers to technical queries and complement Green Star SA Technical Manuals. They do not amend but clarify
A20: =Calculation1!$B$97 -> Credit Criteria or Compliance Requirements. They are an extension of the Technical Manual; it is the responsibility of the project teams to stay
A21: =Calculation1!$B$98 -> up-to-date with this section of the GBCSA website. The CIR rulings offer alternative compliance options whenever those have been deemed
A22: =Calculation1!$B$99 -> equivalent in meeting the Aim of Credit.

Sheet Energy Calculator
B1: ='Building Input'!B1 -> Green Star SA - Retail Centre v1
B2: Energy Calculator | H2: Points Achieved: | I2: =O2 -> 0 | O2: =IF(I5="Not Achieved",0,IF(OR(U121=S123,U121=S116),0,IF($G$18="Yes",$P$10,IF(AND($O$30="No",SUM($F$37:$F$41)=0),"Error",$I$73)))) -> 0
B4: Notes & Instructions:
B5: 1. User must enter values into or select options in white cells ONLY | G5: Ene-0 Conditional Requirement Result: | I5: =IF(OR(U121=S117,U121=S116),"Not Achieved",IF(G18="Yes","Achieved",IF(AND(H70<H69,OR(G14="Yes",G14="n/a (no Nat. Vent.)"),SUM(E37:E41)>0,SUM(F37:F41)>0),"Achieved","Not Achieved"))) -> Not Achieved
B6: 2. Refer to Green Star SA - Retail Centre v1 Energy Calculator & Modelling
B7: Protocol Guide for detailed information and assistance in using this calculator.
B10: Please select Compliance Route adopted: | E10: None | O10: ASHRAE AEDG Small Retail: | P10: 2 | Q10: points awarded
I11: =IF(O30="no","Energy modelling of actual building must include a cooling system (refer Energy Modelling Protocol for more information). Please enter modelling data.","") -> 
O13: FUEL CO2 FACTORS kgCO2/kWh
B14: Route 1 - If Building is Naturally Ventilated: Is thermal comfort criteria met? (Thermal comfort requirements need to be met to accept this as an option - refer to the Technical Manual for details) | G14: No | O14: Biogas | P14: 0.025
O15: Coal | P15: 0.354
O16: Diesel | P16: 0.267
O17: LPG | P17: 0.227
B18: Route 2 - ASHRAE Advanced Energy Design Guide for Small Retail Buildings: 'deemed to satisfy' route has been met? (non modelling compliance route available for retail centres smaller than 2200m2) | G18: =IF(F22>=2200,"Not Available",IF('Energy Calculator'!U121='Energy Calculator'!S114,"No (Route 1 used)",IF('Energy Calculator'!U121='Energy Calculator'!S115,"Yes",IF('Energy Calculator'!U121='Energy Calculator'!S116,"Not Available",IF('Energy Calculator'!U121='Energy Calculator'!S117,"No",""))))) -> No | O18: Mains electricity | P18: 1.2
A19: ` | H19: =IF(F22>=2200," (Retail GFA limit exceeded)","") ->  | O19: Natural gas | P19: 0.202
O20: Town gas (coal) | P20: 0.16
B22: Total Retail GFA | F22: ='Building Input'!C33 -> 0 | G22: m² | H22: =IF(F22=0,"",IF(F22<2200,"Compliance Route 2 permitted (Retail GFA requirement satisfied)","")) -> 
B23: Total Tenant Usable Area (TUA) | F23: ='Building Input'!C34 -> 0 | G23: m²
B24: ='Building Input'!B35 -> Nominated Area (HVAC) related to certain IEQ credits in m² (including common areas): | F24: ='Building Input'!C35 -> 0 | G24: m²
B25: ='Building Input'!B36 -> Nominated Area (Lighting) related to certain Ene-1 in m² (excludes common areas): | F25: ='Building Input'!C36 -> 0 | G25: m²
B26: Non Tenant Area Lighting (mall & public common spaces) | F26: ='Building Input'!C37 -> 0 | G26: m²
B27: Non Tenant Area Lighting (non-public spaces - 'back of house') | F27: ='Building Input'!C38 -> 0 | G27: m²
B28: Total Internal Covered Car Parking Area | F28: ='Building Input'!C39+'Building Input'!C40 -> 0 | G28: m²
B29: External Area (including external Car Parking) | F29: ='Building Input'!C41 -> 0 | G29: m²
O30: - | P30: Link
B31: ENERGY USE | P31: ListFills
E32: Notional Building | F32: Actual Building | O32: choose from drop down
E33: Electrical use kWh/year | F33: Electrical use kWh/year | G33: Gas use kWh/year | O33: =IF(U121=S123,"-",IF(G18="Yes","- n/a","No")) -> -
O34: =IF(U121=S123,"-",IF(G18="Yes","- n/a","Yes")) -> -
O35: =IF(U121=S123,"-",IF(G18="Yes","- n/a","n/a (no Nat. Vent.)")) -> -
D36: fuel CO2 factor | E36: =P18 -> 1.2 | F36: =P18 -> 1.2 | G36: =P19 -> 0.202
B37: Heating (nominated area) | H37: modelling data for nom. area (notional & actual buildings)
B38: Cooling & Heat Rejection (nominated area) | H38: modelling data for nom. area (notional & actual buildings)
B39: Pumps (nominated area) | H39: modelling data for nom. area (notional & actual buildings)
B40: Fans (nominated area) | H40: modelling data for nom. area (notional & actual buildings)
B41: Extract and Miscellaneous Fans (nominated area) | H41: modelling data for nom. area (notional & actual buildings)
B42: Tenant Area Lighting (included within the 'Nominated Area (Lighting)') | E42: ='Lighting Energy Calculator'!F21 -> 0 | F42: ='Lighting Energy Calculator'!K21 -> 0 | H42: refer to 'Lighting Energy Calculator'
B43: Non Tenant Area Lighting (mall & public common spaces) | E43: ='Lighting Energy Calculator'!F22 -> 0 | F43: ='Lighting Energy Calculator'!K22 -> 0 | H43: refer to 'Lighting Energy Calculator'
B44: Non Tenant Area Lighting (non-public spaces - 'back of house') | E44: ='Lighting Energy Calculator'!F23 -> 0 | F44: ='Lighting Energy Calculator'!K23 -> 0 | H44: refer to 'Lighting Energy Calculator' | P44: =P46/1000*365*5 -> 10.95
B45: Internal Covered Car Park Lighting | E45: ='Lighting Energy Calculator'!F24 -> 0 | F45: ='Lighting Energy Calculator'!K24 -> 0 | H45: refer to 'Lighting Energy Calculator' | O45: Notional car park lighting at | P45: 9 | Q45: kWh/m2
B46: External Lighting (including parking, and not covered by any of the above) | E46: ='Lighting Energy Calculator'!F25 -> 0 | F46: ='Lighting Energy Calculator'!K25 -> 0 | H46: refer to 'Lighting Energy Calculator' | O46: Notional external lighting at | P46: 6 | Q46: kWh/m2
B47: Vertical transportation | H47: calculate for Retail GFA (notional & actual building)
B48: Domestic Hot Water | E48: =IF(SUM(E37:E41)=0,0,IF(G18="Yes","-",E91)) -> 0 | H48: calculate for Retail GFA (notional & actual building)
B49: SUB TOTALS for NOMINATED AREA & ANCILLARY (kWh/year) | E49: =SUM(E37:E48) -> 0 | F49: =SUM(F37:F48) -> 0 | G49: =SUM(G37:G48) -> 0
B51: Lighting for non-nominated area tenant area | E51: =(F23-F25)*Q51 -> 0 | F51: =E51 -> 0 | Q51: =S51*U51 -> 73.8395 | R51: kW/m2/annum | S51: 0.017 | T51: kW/m2 | U51: =365*14*0.85 -> 4343.5 | V51: hours of operation per annum
B52: HVAC for non-nominated area tenant area | E52: =(F23-F24)*Q52 -> 0 | F52: =E52 -> 0 | H52: calculated to give the user an overall comparison | O52: =B52 -> HVAC for non-nominated area tenant area | Q52: =S52*U52 -> 201.05295 | R52: kW/m2/annum | S52: 0.043 | T52: kW/m2 | U52: =365*14*0.915 -> 4675.65 | V52: hours of operation per annum
B53: SUB TOTALS for BASE BUILDING (kWh/year) | E53: =E52+E49 -> 0 | F53: =F52+F49 -> 0 | G53: =G52+G49 -> 0
B56: ON SITE RENEWABLE ELECTRICITY GENERATION (actual building only)
F57: kWh/year | G57: fuel factor kgCO2/kWh | H57: net saving kgCO2/year | I57: net saving kgCO2/m²/year
B58: Renewable Electricity generated on site including photovoltaics, wind turbines etc. | G58: 0 | H58: =F58*F36-F58*G58 -> 0 | I58: =H58/$F$22 -> 
B60: OTHER ON SITE GENERATION (actual building only)
F61: kWh/year | G61: fuel factor kgCO2/kWh | H61: net saving kgCO2/year | I61: net saving kgCO2/m²/year
B62: Onsite Electricity Generation (e.g. electricity from a co-generation system)
B63: Type of fuel used | F63: Natural gas | G63: =VLOOKUP(F63,fueltype,2) -> 0.202
B64: Amount of fuel used (calorific value in kWh) | H64: =F62*F36-F64*G63 -> 0 | I64: =H64/$F$22 -> 
B66: TOTALS
C67: Energy usage (notional building) - including nominated, non-nominated, parking & external areas | H67: =IF(F22=0,0,E53/$F$22) -> 0 | I67: kWh/m²/year
C68: Energy usage (actual building) - including nominated, non-nominated, parking & external areas | H68: =IF(F22=0,0,(F53+G53-F58)/F22) -> 0 | I68: kWh/m²/year
C69: Carbon emissions (notional building) | H69: =IF(F22=0,0,(E53*E36)/$F$22) -> 0 | I69: kgCO2/m²/year | O69: Number modelling points achieved without checks
C70: Carbon emissions (actual building) | H70: =IF(F22=0,0,((F53*F36)+(G53*G36)-H58-H64)/$F$22) -> 0 | I70: kgCO2/m²/year | O70: =IF(F49=0,0,IF(H70>0,20-(20*(H70/H69)),20)) -> 0
B71: PERCENTAGE IMPROVEMENT OVER NOTIONAL BUILDING | H71: =IF(H69=0,0,((H69-H70)/H69)) -> 0 | O71: Number modelling points achieved within performance band
O72: =VLOOKUP(1,R75:S95,2,FALSE) -> 0
B73: Energy Calculator Results (Compliance Route 1 only): | I73: =IF(G18="Yes","-",IF(AND(SUM(E37:E41)>0,SUM(F37:F41)>0),O72,"-")) -> -
O74: % Reduction from Notional ( R ) | P74: Lower Limit | Q74: Upper Limit | R74: Band Check | S74: Point Awarded
O75: 0 ≤ R < 5 | P75: 0 | Q75: 5 | R75: =IF((AND(($H$71*100)>=P75,($H$71*100)<Q75)),1,0) -> 1 | S75: 0
O76: 5 ≤ R < 10 | P76: 5 | Q76: 10 | R76: 0 | S76: 1
O77: 10 ≤ R < 15 | P77: 10 | Q77: 15 | R77: 0 | S77: 2
O78: 15 ≤ R < 20 | P78: 15 | Q78: 20 | R78: 0 | S78: 3
O79: 20 ≤ R < 25 | P79: 20 | Q79: 25 | R79: 0 | S79: 4
O80: 25 ≤ R < 30 | P80: 25 | Q80: 30 | R80: 0 | S80: 5
O81: 30 ≤ R < 35 | P81: 30 | Q81: 35 | R81: 0 | S81: 6
B82: DOMESTIC HOT WATER ENERGY USAGE (notional building only) | O82: 35 ≤ R < 40 | P82: 35 | Q82: 40 | R82: 0 | S82: 7
B83: Note: water saving devices currently not rewarded for reducing energy use associated with hot water production | O83: 40 ≤ R < 45 | P83: 40 | Q83: 45 | R83: 0 | S83: 8
O84: 45 ≤ R < 50 | P84: 45 | Q84: 50 | R84: 0 | S84: 9
C85: Retail Gross Floor Area | E85: =F22 -> 0 | F85: m2 | O85: 50 ≤ R < 55 | P85: 50 | Q85: 55 | R85: 0 | S85: 10
C86: Hot water consumption per day per m2 | E86: 0.95 | F86: L/m2/day | O86: 55 ≤ R < 60 | P86: 55 | Q86: 60 | R86: 0 | S86: 11
C87: Hot water usage per day for usable area | E87: =E85*E86 -> 0 | F87: litres/day | O87: 60 ≤ R < 65 | P87: 60 | Q87: 65 | R87: 0 | S87: 12
C88: Hot water usage per day for usable area (m3) | E88: =E87/1000 -> 0 | F88: m3/day | O88: 65 ≤ R < 70 | P88: 65 | Q88: 70 | R88: 0 | S88: 13
C89: Efficiency factor to account for distribution losses | E89: 0.9 | O89: 70 ≤ R < 75 | P89: 70 | Q89: 75 | R89: 0 | S89: 14
O90: 75 ≤ R < 80 | P90: 75 | Q90: 80 | R90: 0 | S90: 15
C91: Notional building energy use (assuming 365 days) | E91: =(E88*1000*4200*55)/(3600*1000)*365/E89 -> 0 | F91: kWh/year | O91: 80 ≤ R < 85 | P91: 80 | Q91: 85 | R91: 0 | S91: 16
O92: 85 ≤ R < 90 | P92: 85 | Q92: 90 | R92: 0 | S92: 17
C93: Hot water usage in Joules is: | O93: 90 ≤ R < 95 | P93: 90 | Q93: 95 | R93: 0 | S93: 18
C94: m3 of water x (1 m3 = 1000kg) x specific heat capacity (=4200J/kg/K) x temp difference (=55 degrees) x 365 days / 0.9 efficiency factor | O94: 95 ≤ R < 100 | P94: 95 | Q94: 100 | R94: 0 | S94: 19
C95: Joules are then converted to kWh by dividing by (1 kWh = 3 600 000 joules). | O95: 100 ≤ R | P95: 100 | Q95: 500 | R95: 0 | S95: 20
S99: Ene-0 Conditional Requirement
S100: =IF('Building Input'!$C$33>=0,"Yes (Route 1)","-") -> Yes (Route 1) | W100: This is referenced to Retail GFA (area check >=2,200m2)
S101: =IF('Building Input'!$C$33<2200,"Yes (Route 2)","-") -> Yes (Route 2) | W101: This is referenced to Retail GFA (area check < 2,200m2)
S102: No
S104: Outcomes
S105: YES; Ene- Conditional Requirement achieved
S106: NO; Ene- Conditional Requirement NOT achieved
S108: Comments
S109: Compliance is determined from information entered into the Energy Calculator. The project team acknowledges that the design meets the minimum energy efficiency requirements as stipulated in the Green Star SA Retail Centre v1 Technical Manual. Green Star SA projects are only eligible for formal certification by the GBCSA when ALL Eligibility Criteria (and Conditional Requirements) are met. Please refer to the Technical Manual for further information.
S110: Compliance is determined from information entered into the Energy Calculator. The project team acknowledges that the design does NOT meet the minimum energy efficiency requirements as stipulated in the Green Star SA Retail Centre v1 Technical Manual. This Green Star SA project is therefore NOT eligible for formal certification by the GBCSA. Please refer to the Technical Manual for further information.
S111: As the Retail GFA of the project entered in the 'Building Input' page is greater or equal to 2,200m, Compliance Route 2 is not available to this project. Please select an alternative option.
S113: Error Message
Q114: =HLOOKUP(Energy!F5,S114:U117,3) -> - | R114: 1 | S114: Compliance Route 1 | U114: =S105 -> YES; Ene- Conditional Requirement achieved | Y114: TRUE | Z114: =IF(Y114=FALSE,0,1) -> 1
R115: 2 | S115: Compliance Route 2 | U115: =S105 -> YES; Ene- Conditional Requirement achieved | Y115: FALSE | Z115: =IF(Y115=FALSE,0,1) -> 0
R116: 3 | S116: - | U116: Compliance route NOT available. | Y116: FALSE | Z116: =IF(Y116=FALSE,0,1) -> 0
R117: 4 | S117: None | U117: =S106 -> NO; Ene- Conditional Requirement NOT achieved
S120: Options | U120: Output
O121: Retail GFA | P121: ='Building Input'!C33 -> 0 | S121: Compliance Route 1 | U121: =E10 -> None
O122: ASHRAE Limit | P122: 2200 | S122: =IF(P121<P122,"Compliance Route 2","-") -> Compliance Route 2 | U122: If Retail GFA < 2200 then available or not.
S123: None

Sheet Lighting Energy Calculator
B1: ='Building Input'!B1 -> Green Star SA - Retail Centre v1
B2: Lighting Energy Calculator
B4: Notes & Instructions:
B5: 1.If the user wishes to use daylight harvesting to prove energy reductions, this can only be obtained from energy model results incorporating such a system,
B6: which applies weather data appropriate for the site, and not via this calculator.
B7: 2. The user must enter the W/m2 of the lighting system connected load (as appropriate for the particular area in the actual building).
B8: 3. Where the results are not modelled, select a schedule in the drop down menu. Please refer to the Green Star SA - Retail Centre v1 Energy Calculator &
B9: Modelling Protocol Guide for details.
B10: 4. Where results are modelled, 'Modelled' must be selected from the drop down menu, and the results must be entered into the 'modelled numbers' column.
B11: 5. The user must only make entries into the white cells.
B12: 6. Results will automatically be exported into the Energy Calculator.
B16: LIGHTING ENERGY USE
E17: Notional Building | G17: Actual Building | O17: Actual Building
E18: W/m2 | F18: Electrical use kWh/year using schedule A | G18: W/m2 | H18: Select a Schedule or are results modelled? | I18: Electrical use kWh/year (calculated using schedules herein) | J18: Electrical use kWh/year (modelled numbers) | K18: Electrical use kWh/year (overall) | O18: W/m2 | P18: Electrical use kWh/year using schedule A | Q18: schedule A | R18: Electrical use kWh/year using schedule B | S18: schedule B | T18: Electrical use kWh/year using schedule C | U18: schedule C | V18: Electrical use kWh/year
B21: ='Energy Calculator'!B42 -> Tenant Area Lighting (included within the 'Nominated Area (Lighting)') | E21: 17 | F21: =C61*E21*'Energy Calculator'!F25/1000 -> 0 | I21: =IF(I28=3,T21,IF(I28=2,R21,IF(I28=1,P21,IF(I28=4,0,0)))) -> 0 | K21: =IF(I28=4,J21,I21) -> 0 | O21: =G21 -> 0 | P21: =$C$61*$O$21*'Energy Calculator'!$F$25/1000*Q21 -> 0 | Q21: 1 | R21: =$C93*$O$21*'Energy Calculator'!$F$25/1000*S21 -> 0 | S21: 1 | T21: =$C125*$O$21*'Energy Calculator'!$F$25/1000*U21 -> 0 | U21: 1 | V21: =IF((Q21+S21+U21)>1,"error",T21+R21+P21) -> error
B22: ='Energy Calculator'!B43 -> Non Tenant Area Lighting (mall & public common spaces) | E22: 12 | F22: =D61*E22*'Energy Calculator'!F26/1000 -> 0 | I22: =IF(I29=3,T22,IF(I29=2,R22,IF(I29=1,P22,IF(I29=4,0,0)))) -> 0 | K22: =IF(I29=4,J22,I22) -> 0 | O22: =G22 -> 0 | P22: =$D$61*$O$22*'Energy Calculator'!$F$26/1000*Q22 -> 0 | Q22: 1 | R22: =$D$93*$O$22*'Energy Calculator'!$F$26/1000*S22 -> 0 | S22: 1 | T22: =$D$125*$O$22*'Energy Calculator'!$F$26/1000*U22 -> 0 | U22: 1 | V22: =IF((Q22+S22+U22)>1,"error",T22+R22+P22) -> error
B23: ='Energy Calculator'!B44 -> Non Tenant Area Lighting (non-public spaces - 'back of house') | E23: 5 | F23: =E61*E23*'Energy Calculator'!F27/1000 -> 0 | I23: =IF(I30=3,T23,IF(I30=2,R23,IF(I30=1,P23,IF(I30=4,0,0)))) -> 0 | K23: =IF(I30=4,J23,I23) -> 0 | O23: =G23 -> 0 | P23: =$E$61*$O$23*'Energy Calculator'!$F$27/1000*Q23 -> 0 | Q23: 1 | R23: =$E$93*$O$23*'Energy Calculator'!$F$27/1000*S23 -> 0 | S23: 1 | T23: =$E$125*$O$23*'Energy Calculator'!$F$27/1000*U23 -> 0 | U23: 1 | V23: =IF((Q23+S23+U23)>1,"error",T23+R23+P23) -> error
B24: Total Internal Covered Car Park Lighting | E24: 5 | F24: =F61*E24*'Energy Calculator'!F28/1000 -> 0 | I24: =IF(I31=3,T24,IF(I31=2,R24,IF(I31=1,P24,IF(I31=4,0,0)))) -> 0 | K24: =IF(I31=4,J24,I24) -> 0 | O24: =G24 -> 0 | P24: =$F$61*$O$24*'Energy Calculator'!$F$28/1000*Q24 -> 0 | Q24: 1 | R24: =$F$93*$O$24*'Energy Calculator'!$F$28/1000*S24 -> 0 | S24: 1 | T24: =$F$125*$O$24*'Energy Calculator'!$F$28/1000*U24 -> 0 | U24: 1 | V24: =IF((Q24+S24+U24)>1,"error",T24+R24+P24) -> error
B25: ='Energy Calculator'!B46 -> External Lighting (including parking, and not covered by any of the above) | E25: 3 | F25: =G61*E25*'Energy Calculator'!F29/1000 -> 0 | I25: =IF(I32=3,T25,IF(I32=2,R25,IF(I32=1,P25,IF(I32=4,0,0)))) -> 0 | K25: =IF(I32=4,J25,I25) -> 0 | O25: =G25 -> 0 | P25: =$G$61*$O$25*'Energy Calculator'!$F$29/1000*Q25 -> 0 | Q25: 1 | R25: =$G$93*$O$25*'Energy Calculator'!$F$29/1000*S25 -> 0 | S25: 1 | T25: =$G$125*$O$25*'Energy Calculator'!$F$29/1000*U25 -> 0 | U25: 1 | V25: =IF((Q25+S25+U25)>1,"error",T25+R25+P25) -> error
B26: * The notional building W/m2 values are to some extent an improvement from SANS 204-2:2008 Table 14
H28: A | I28: 1
B29: Lighting Schedules (not to be edited by user) | H29: B | I29: 1
B30: Schedule A | H30: C | I30: 1
B31: no or very basic lighting controls | H31: Modelled | I31: 1
I32: 1
C33: Tenant areas | D33: Non tenant area lighting (malls, public space) | E33: Non tenant area lighting (boh) | F33: Car Park Lighting | G33: External lighting
B34: h of day | C34: % on | D34: % on | E34: % on | F34: % on | G34: % on
B35: 0 | C35: 0.5 | D35: 1 | E35: 1 | F35: 1 | G35: 1
B36: 1 | C36: 0.5 | D36: 1 | E36: 1 | F36: 1 | G36: 1
B37: 2 | C37: 0.5 | D37: 1 | E37: 1 | F37: 1 | G37: 1
B38: 3 | C38: 0.5 | D38: 1 | E38: 1 | F38: 1 | G38: 1
B39: 4 | C39: 0.5 | D39: 1 | E39: 1 | F39: 1 | G39: 1
B40: 5 | C40: 0.5 | D40: 1 | E40: 1 | F40: 1 | G40: 1
B41: 6 | C41: 1 | D41: 1 | E41: 1 | F41: 1 | G41: 1
B42: 7 | C42: 1 | D42: 1 | E42: 1 | F42: 1 | G42: 1
B43: 8 | C43: 1 | D43: 1 | E43: 1 | F43: 1 | G43: 0
B44: 9 | C44: 1 | D44: 1 | E44: 1 | F44: 1 | G44: 0
B45: 10 | C45: 1 | D45: 1 | E45: 1 | F45: 1 | G45: 0
B46: 11 | C46: 1 | D46: 1 | E46: 1 | F46: 1 | G46: 0
B47: 12 | C47: 1 | D47: 1 | E47: 1 | F47: 1 | G47: 0
B48: 13 | C48: 1 | D48: 1 | E48: 1 | F48: 1 | G48: 0
B49: 14 | C49: 1 | D49: 1 | E49: 1 | F49: 1 | G49: 0
B50: 15 | C50: 1 | D50: 1 | E50: 1 | F50: 1 | G50: 0
B51: 16 | C51: 1 | D51: 1 | E51: 1 | F51: 1 | G51: 0
B52: 17 | C52: 1 | D52: 1 | E52: 1 | F52: 1 | G52: 0
B53: 18 | C53: 1 | D53: 1 | E53: 1 | F53: 1 | G53: 0
B54: 19 | C54: 0.5 | D54: 1 | E54: 1 | F54: 1 | G54: 1
B55: 20 | C55: 0.5 | D55: 1 | E55: 1 | F55: 1 | G55: 1
B56: 21 | C56: 0.5 | D56: 1 | E56: 1 | F56: 1 | G56: 1
B57: 22 | C57: 0.5 | D57: 1 | E57: 1 | F57: 1 | G57: 1
B58: 23 | C58: 0.5 | D58: 1 | E58: 1 | F58: 1 | G58: 1
B59: total h/day | C59: =SUM(C35:C58)*1 -> 18.5 | D59: =SUM(D35:D58)*1 -> 24 | E59: =SUM(E35:E58)*1 -> 24 | F59: =SUM(F35:F58)*1 -> 24 | G59: =SUM(G35:G58)*1 -> 13
B60: days/week | C60: 7 | D60: 7 | E60: 7 | F60: 7 | G60: 7
B61: total h/year | C61: =52*C60*C59 -> 6734 | D61: =52*D60*D59 -> 8736 | E61: =52*E60*E59 -> 8736 | F61: =52*F60*F59 -> 8736 | G61: =52*G60*G59 -> 4732
B63: Schedule B
B64: lighting controls
C65: Tenant areas | D65: Non tenant area lighting (malls, public space) | E65: Non tenant area lighting (boh) | F65: Car Park Lighting | G65: External lighting
B66: h of day | C66: % on | D66: % on | E66: % on | F66: % on | G66: % on
B67: 0 | C67: 0.15 | D67: 0.5 | E67: 0.25 | F67: 0.75 | G67: 0.75
B68: 1 | C68: 0.15 | D68: 0.5 | E68: 0.25 | F68: 0.5 | G68: 0.5
B69: 2 | C69: 0.15 | D69: 0.5 | E69: 0.25 | F69: 0.5 | G69: 0.5
B70: 3 | C70: 0.15 | D70: 0.5 | E70: 0.25 | F70: 0.5 | G70: 0.5
B71: 4 | C71: 0.15 | D71: 0.5 | E71: 0.25 | F71: 0.5 | G71: 0.5
B72: 5 | C72: 0.15 | D72: 0.5 | E72: 0.25 | F72: 0.5 | G72: 0.5
B73: 6 | C73: 0.15 | D73: 1 | E73: 1 | F73: 1 | G73: 1
B74: 7 | C74: 0.4 | D74: 1 | E74: 1 | F74: 1 | G74: 1
B75: 8 | C75: 0.9 | D75: 1 | E75: 1 | F75: 1 | G75: 0
B76: 9 | C76: 1 | D76: 1 | E76: 1 | F76: 1 | G76: 0
B77: 10 | C77: 1 | D77: 1 | E77: 1 | F77: 1 | G77: 0
B78: 11 | C78: 1 | D78: 1 | E78: 1 | F78: 1 | G78: 0
B79: 12 | C79: 1 | D79: 1 | E79: 1 | F79: 1 | G79: 0
B80: 13 | C80: 1 | D80: 1 | E80: 1 | F80: 1 | G80: 0
B81: 14 | C81: 1 | D81: 1 | E81: 1 | F81: 1 | G81: 0
B82: 15 | C82: 1 | D82: 1 | E82: 1 | F82: 1 | G82: 0
B83: 16 | C83: 1 | D83: 1 | E83: 1 | F83: 1 | G83: 0
B84: 17 | C84: 0.8 | D84: 1 | E84: 1 | F84: 1 | G84: 0
B85: 18 | C85: 0.6 | D85: 1 | E85: 1 | F85: 1 | G85: 0
B86: 19 | C86: 0.6 | D86: 0.5 | E86: 0.25 | F86: 1 | G86: 1
B87: 20 | C87: 0.5 | D87: 0.5 | E87: 0.25 | F87: 1 | G87: 1
B88: 21 | C88: 0.15 | D88: 0.5 | E88: 0.25 | F88: 1 | G88: 1
B89: 22 | C89: 0.15 | D89: 0.5 | E89: 0.25 | F89: 1 | G89: 1
B90: 23 | C90: 0.15 | D90: 0.5 | E90: 0.25 | F90: 0.75 | G90: 0.75
B91: total h/day | C91: =SUM(C67:C90)*1 -> 13.3 | D91: =SUM(D67:D90)*1 -> 18.5 | E91: =SUM(E67:E90)*1 -> 15.75 | F91: =SUM(F67:F90)*1 -> 21 | G91: =SUM(G67:G90)*1 -> 10
B92: days/week | C92: 7 | D92: 7 | E92: 7 | F92: 7 | G92: 7
B93: total h/year | C93: =52*C92*C91 -> 4841.2 | D93: =52*D92*D91 -> 6734 | E93: =52*E92*E91 -> 5733 | F93: =52*F92*F91 -> 7644 | G93: =52*G92*G91 -> 3640
B95: Schedule C
B96: lighting controls & occupancy sensors
C97: Tenant areas | D97: Non tenant area lighting (malls, public space) | E97: Non tenant area lighting (boh) | F97: Car Park Lighting | G97: External lighting
B98: h of day | C98: % on | D98: % on | E98: % on | F98: % on | G98: % on
B99: 0 | C99: 0.05 | D99: 0.5 | E99: 0.05 | F99: 0.25 | G99: 0.25
B100: 1 | C100: 0.05 | D100: 0.25 | E100: 0.05 | F100: 0.15 | G100: 0.1
B101: 2 | C101: 0.05 | D101: 0.25 | E101: 0.05 | F101: 0.05 | G101: 0.1
B102: 3 | C102: 0.05 | D102: 0.25 | E102: 0.05 | F102: 0.05 | G102: 0.1
B103: 4 | C103: 0.05 | D103: 0.25 | E103: 0.05 | F103: 0.05 | G103: 0.1
B104: 5 | C104: 0.05 | D104: 0.25 | E104: 0.05 | F104: 0.05 | G104: 0.1
B105: 6 | C105: 0.05 | D105: 0.25 | E105: 0.65 | F105: 0.65 | G105: 1
B106: 7 | C106: 0.3 | D106: 0.5 | E106: 0.85 | F106: 0.9 | G106: 1
B107: 8 | C107: 0.75 | D107: 0.95 | E107: 0.85 | F107: 0.9 | G107: 0
B108: 9 | C108: 1 | D108: 0.95 | E108: 0.85 | F108: 0.9 | G108: 0
B109: 10 | C109: 1 | D109: 0.95 | E109: 0.85 | F109: 0.9 | G109: 0
B110: 11 | C110: 1 | D110: 0.95 | E110: 0.85 | F110: 0.9 | G110: 0
B111: 12 | C111: 1 | D111: 0.95 | E111: 0.85 | F111: 0.9 | G111: 0
B112: 13 | C112: 1 | D112: 0.95 | E112: 0.85 | F112: 0.9 | G112: 0
B113: 14 | C113: 1 | D113: 0.95 | E113: 0.85 | F113: 0.9 | G113: 0
B114: 15 | C114: 1 | D114: 0.95 | E114: 0.85 | F114: 0.9 | G114: 0
B115: 16 | C115: 1 | D115: 0.95 | E115: 0.85 | F115: 0.9 | G115: 0
B116: 17 | C116: 1 | D116: 0.95 | E116: 0.85 | F116: 0.9 | G116: 0
B117: 18 | C117: 1 | D117: 0.95 | E117: 0.85 | F117: 0.9 | G117: 0
B118: 19 | C118: 0.75 | D118: 0.85 | E118: 0.15 | F118: 0.9 | G118: 1
B119: 20 | C119: 0.25 | D119: 0.85 | E119: 0.15 | F119: 0.9 | G119: 1
B120: 21 | C120: 0.15 | D120: 0.75 | E120: 0.05 | F120: 0.75 | G120: 1
B121: 22 | C121: 0.05 | D121: 0.75 | E121: 0.05 | F121: 0.5 | G121: 0.75
B122: 23 | C122: 0.05 | D122: 0.75 | E122: 0.05 | F122: 0.5 | G122: 0.5
B123: total h/day | C123: =SUM(C99:C122)*1 -> 12.65 | D123: =SUM(D99:D122)*1 -> 16.9 | E123: =SUM(E99:E122)*1 -> 11.6 | F123: =SUM(F99:F122)*1 -> 15.6 | G123: =SUM(G99:G122)*1 -> 7
B124: days/week | C124: 7 | D124: 7 | E124: 7 | F124: 7 | G124: 7
B125: total h/year | C125: =52*C124*C123 -> 4604.6 | D125: =52*D124*D123 -> 6151.6 | E125: =52*E124*E123 -> 4222.4 | F125: =52*F124*F123 -> 5678.4 | G125: =52*G124*G123 -> 2548

Sheet RET_ENE_DataExtract (hidden)
A1: Dictionary | B1: Value | C1: Key | D1: Note:
A2: Retail_ENE_1_Points | B2: ='Energy Calculator'!I2 -> 0 | C2: REP
A4: Retail_Lighting_Tenant | B4: ='Lighting Energy Calculator'!J21 -> 0 | C4: REnLT | D4: kWh/yr
A5: Retail_Lighting_Non_Tenant | B5: ='Lighting Energy Calculator'!J22 -> 0 | C5: REnLNT | D5: kWh/yr
A6: Retail_Lighting_Back_Of_House | B6: ='Lighting Energy Calculator'!J23 -> 0 | C6: REnLBH | D6: kWh/yr
A7: Retail_Lighting_Internal_Parking | B7: ='Lighting Energy Calculator'!J24 -> 0 | C7: REnLIP | D7: kWh/yr
A8: Retail_Lighting_External_Parking | B8: ='Lighting Energy Calculator'!J25 -> 0 | C8: REnLEP | D8: kWh/yr
A9: Retail_Lighting_Tenant_watts | B9: ='Lighting Energy Calculator'!G21 -> 0 | C9: REnLTw | D9: W/m2
A10: Retail_Lighting_Non_Tenant_watts | B10: ='Lighting Energy Calculator'!G22 -> 0 | C10: REnLNTw | D10: W/m2
A11: Retail_Lighting_Back_Of_House_watts | B11: ='Lighting Energy Calculator'!G23 -> 0 | C11: REnLBHw | D11: W/m2
A12: Retail_Lighting_Internal_Parking_watts | B12: ='Lighting Energy Calculator'!G24 -> 0 | C12: REnLIPw | D12: W/m2
A13: Retail_Lighting_External_Parking_watts | B13: ='Lighting Energy Calculator'!G25 -> 0 | C13: REnLEPw | D13: W/m2
A15: Retail_Energy_Points | B15: ='Energy Calculator'!I2 -> 0 | C15: REnP | D15: kWh/yr
A16: Retail_Energy_Heating | B16: ='Energy Calculator'!F37 -> 0 | C16: REnH | D16: kWh/yr
A17: Retail_Energy_Cooling | B17: ='Energy Calculator'!F38 -> 0 | C17: REnC | D17: kWh/yr
A18: Retail_Energy_Pumps | B18: ='Energy Calculator'!F39 -> 0 | C18: REnP | D18: kWh/yr
A19: Retail_Energy_Fans | B19: ='Energy Calculator'!F40 -> 0 | C19: REnF | D19: kWh/yr
A20: Retail_Energy_Miscel_Fans | B20: ='Energy Calculator'!F41 -> 0 | C20: REnMF | D20: kWh/yr
A21: Retail_Energy_Vertical_Transport | B21: ='Energy Calculator'!F47 -> 0 | C21: REnVT | D21: kWh/yr
A22: Retail_Energy_Domestic_Hot_Water | B22: ='Energy Calculator'!F48 -> 0 | C22: REnDW | D22: kWh/yr
A23: Retail_Energy_Renewable_Generation | B23: ='Energy Calculator'!F58 -> 0 | C23: REnRG | D23: kWh/yr
A24: Retail_Energy_Elec_Generation | B24: ='Energy Calculator'!F62 -> 0 | C24: REnEG | D24: kWh/yr
A25: Retail_Energy_Generation_Fuel_Used | B25: ='Energy Calculator'!F64 -> 0 | C25: REnEGF | D25: kWh/yr
A27: Retail_Energy_Use_Notional | B27: ='Energy Calculator'!H67 -> 0 | C27: REnNU | D27: kWh/m²/year
A28: Retail_Energy_Use_Actual | B28: ='Energy Calculator'!H68 -> 0 | C28: REnAU | D28: kWh/m²/year
A29: Retail_Energy_Carbon_Emission_Notional | B29: ='Energy Calculator'!H69 -> 0 | C29: REnNC | D29: kgCO2/m²/year
A30: Retail_Energy_Carbon_Emission_Actual | B30: ='Energy Calculator'!H70 -> 0 | C30: REnAC | D30: kgCO2/m²/year
A31: Retail_Energy_Percentage_Improvement | B31: ='Energy Calculator'!H71 -> 0 | C31: REnPI | D31: %

Sheet Transport
A1: =Management!A1 -> Green Star SA - Retail Centre v1 | F1: Category Weighting: | G1: ='Credit Summary'!J49 -> 0.12 | H1: Category Weighted Score
A2: Transport | D2: Category Summary: | E2: =E15 -> 15 | F2: =F15 -> 0 | G2: =G15 -> 0 | H2: ='Credit Summary'!K49 -> 0
A3: Credit Summary for: | C3: =IF('Building Input'!$C$5=0,"",'Building Input'!$C$5) ->  | F3: =IF(OR((I3=Calculation1!$B$84),(I3=Calculation1!$B$85),((F2+G2)>E2)),Calculation1!$B$86,"") ->  | I3: =T(I5:I14) -> 
A4: Ref No. | B4: Title | C4: Aim of Credit | D4: Credit Criteria | E4: No. of Points Available | F4: No. of Points Achieved | G4: Points to be Confirmed | H4: Comments
A5: Tra-1 | B5: Provision of Car Parking | C5: To encourage and recognise developments that reduce the facilities provided for cars | D5: Up to two points are awarded as follows: One point is awarded where the number of car parking spaces is: - At least 25% lower than the maximum local planning allowances applicable to the project; OR - Not exceeding the minimum DOT guidelines or not exceeding the local planning minimum allowances, whichever is lower. Two points are awarded where the number of car parking spaces is: - At least 50% lower than the maximum local planning allowances applicable to the project; OR - At least 25% lower than the minimum DOT guidelines or the minimum local planning allowances, whichever is lower. Where car parking is not permitted in the local planning scheme, this credit is ‘Not Applicable’ and is excluded from the Points Available, used calculate the Transport Category Score. Type 'na' in the appropriate ‘No. of Points Achieved’ column of the rating tool. | E5: =IF(F5="na",0,2) -> 2 | I5: =IF(ISBLANK(F5),IF(G5>E5,Calculation1!$B$84,""),IF(F5="na","",IF(OR(F5="na",ISNUMBER(F5)),IF(F5+G5>E5,Calculation1!$B$84,""),Calculation1!$B$85))) -> 
A6: Tra-2 | B6: Fuel-Efficient Transport | C6: To encourage and recognise developments that facilitate the use of more fuel efficient modes of transport. | D6: One point is awarded where: - A minimum of 5% or 5 parking spaces (whichever is greater) are designed and labelled for mopeds, scooters and/or motorbikes, and all of these must be located in preferred parking locations. If no parking spaces are to be provided, this credit this credit is ‘Not Applicable’ and is excluded from the points available, used to calculate the Transport category score. Type 'na' in the No. of Points Achieved column. | E6: =IF(F6="na",0,1) -> 1 | I6: =IF(ISBLANK(F6),IF(G6>E6,Calculation1!$B$84,""),IF(F6="na","",IF(OR(F6="na",ISNUMBER(F6)),IF(F6+G6>E6,Calculation1!$B$84,""),Calculation1!$B$85))) -> 
A7: Tra-3 | B7: Cyclist Facilities | C7: To encourage and recognise developments that facilitate the use of bicycles by occupants and visitors. | D7: Provided it can be demonstrated that safe, convenient cycling routes are provided between the retail centre development and the adjacent street network, up to three points are awarded as follows: • One point is awarded where cyclist facilities are provided for 3% of building staff; and • Two points are awarded where cyclist facilities are provided for 6% of the building staff. | E7: 2 | I7: =IF(OR(ISTEXT(F7)=TRUE,ISTEXT(G7)=TRUE),Calculation1!$B$87,IF(F7+G7>E7,Calculation1!$B$84,"")) -> 
D8: An additional point is awarded where visitor bicycle storage is provided as outlined below. Bicycle storage must be provided in an accessible location, signposted and within 50m of, a major public entrance to the building. – One space per 500m2 of nominated area or part thereof for centres under 25,000m2; OR – One space per 750m2 of nominated area or part thereof for centres between 25,000m2 and 50,000m2; OR – One space per 1000m2 of nominated area or part thereof for centres between 50,000m2 and 100,000m2; OR – One space per 1250m2 of nominated area or part thereof for centres over 100,000m2. For the purposes of this credit ‘nominated area’ is GLA. | E8: 1 | I8: =IF(OR(ISTEXT(F8)=TRUE,ISTEXT(G8)=TRUE),Calculation1!$B$87,IF(F8+G8>E8,Calculation1!$B$84,"")) -> 
A9: Tra-4 | B9: Commuting Mass Transport | C9: To encourage and recognise developments that select a site near public transport and facilitate the use of mass transport for commuting. | D9: Up to five points are awarded for the quality of mass transport options available to building users. The points are determined using the Green Star Mass Transport Calculator based on: • The type of mass transport services available within 1000m of the site; • The number of routes served; and • The average interval between services during weekday peak hours. • The average interval between services during Saturdays and on the evening when the facility is open for late night shopping. | E9: 5 | F9: ='Transport Calculator'!L2 -> 0 | I9: =IF(OR(ISTEXT(F9)=TRUE,ISTEXT(G9)=TRUE),Calculation1!$B$87,IF(F9+G9>E9,Calculation1!$B$84,"")) -> 
D10: Transit Facility One point is awarded where a transit facility is located within the retail site development (or on the road directly adjacent to the development) and meets the following criteria: – One taxi space per 3,500m2 of nominated area or part thereof and one bus lay-by space for centres under 25,000m2; OR – One taxi space per 3,000m2 of nominated area or part thereof AND where bus routes exist adjacent to the site, two bus lay-by spaces for centres between 25,000m2 and 50,000m2; OR – One taxi space per 2,500m2 of nominated area or part thereof AND where bus routes exist adjacent to the site, four bus lay-by spaces for centres between 50,000m2 and 100,000m2; OR – One taxi space per 2,000m2 of nominated area or part thereof AND where bus routes exist adjacent to the site, six bus lay-by spaces for centres over 100,000m2. For the purposes of this credit 'nominated area' is the Retail GFA. | E10: 1 | I10: =IF(OR(ISTEXT(F10)=TRUE,ISTEXT(G10)=TRUE),Calculation1!$B$87,IF(F10+G10>E10,Calculation1!$B$84,"")) -> 
D11: The facility requirements are: • Security (good visibility and lighting); • Weather protection (user protection from sun, rain, wind); • User information (availability of information on routes, schedules, fares, connections etc); • Accessibility (distance from transport facility to retail centre, quality of walking conditions, signage, safety from cars); and • Structured lay-by built alongside the road. If there is an existing facility adjacent to the site and the point is claimed, the same requirements need to be met for this existing facility.
A12: Tra-5 | B12: Local Connectivity | D12: This credit is not relevant to the Green Star SA Retail Centre v1 tool | E12: X | F12: X | G12: X
A13: Tra-6 | B13: Trip Reduction - Mixed-Use | C13: To encourage and recognise retail centres that are built in mixed use areas in order to reduce the overall number of car trips taken by patrons. | D13: One point is awarded for reducing the average number of vehicular trips generated by the development. The point is detirmined using the Green Star SA Trip Reduction Calculator where: • A vehicle trip reduction of more than 15% is demonstrated; and • Dedicated pathways for pedestrians and cyclists are provided between the retail centre and the adjacent street network. Compliance with the credit is determined using the “Trip Reduction Calculator” based on the land uses within 400m walking distance from the retail centre entrance(s), other land uses include commercial office, hotel, residential, retail and warehouse. Points are only awarded where it is demonstrated that safe, well-lit, dedicated pedestrian facilities are provided between the retail centre developement and the adjacent street network, conforming to SANS 10264. | E13: 1 | F13: ='Trip Reduction Calculator'!F25 -> 0 | I13: =IF(OR(ISTEXT(F13)=TRUE,ISTEXT(G13)=TRUE),Calculation1!$B$87,IF(F13+G13>E13,Calculation1!$B$84,"")) -> 
A14: Tra-7 | B14: Vehicle Operating Emissions | C14: To encourage end recognise retail centres that improve the traffic infrastructure conditions around the centre in order to reduce harmful emissions resulting from traffic congestion | D14: Two points are awarded where: It is demonstrated that traffic infrastructure is improved over and above the minimum peak hour traffic flow service levels compared to pre-development baseline traffic flows. One point where a 15% reduction in peak hour average CO2 emissions per vehicle is demonstrated as a result of improved infrastructure. Two points where a 30% reduction in peak hour average CO2 emissions per vehicle is demonstrated as a result of improved infrastructure. Compliance must be proved via the traffic impact assessment (TIA) and the software that is used to undertake the TIA. | E14: 2 | I14: =IF(OR(ISTEXT(F14)=TRUE,ISTEXT(G14)=TRUE),Calculation1!$B$87,IF(F14+G14>E14,Calculation1!$B$84,"")) -> 
D15: Total Points: | E15: =SUM(E5:E14) -> 15 | F15: =SUM(F5:F14) -> 0 | G15: =SUM(G5:G14) -> 0
A19: =Calculation1!$B$93 -> Project Teams are to refer to the Green Star SA Retail Centre v1 Technical Manual for explicit credit criteria and documentation requirements.
A20: =Calculation1!$B$94 -> The Green Star Technical Clarifications (TC) and Credit Interpretation Request (CIR) rulings provide an essential source of information to all
A21: =Calculation1!$B$95 -> projects undertaking Green Star assessment. They are available on the GBCSA website http://www.gbcsa.org.za . Technical Clarifications
A22: =Calculation1!$B$96 -> often represent the GBCSA answers to technical queries and complement Green Star SA Technical Manuals. They do not amend but clarify
A23: =Calculation1!$B$97 -> Credit Criteria or Compliance Requirements. They are an extension of the Technical Manual; it is the responsibility of the project teams to stay
A24: =Calculation1!$B$98 -> up-to-date with this section of the GBCSA website. The CIR rulings offer alternative compliance options whenever those have been deemed
A25: =Calculation1!$B$99 -> equivalent in meeting the Aim of Credit.

Sheet Transport Calculator
B1: ='Building Input'!B1 -> Green Star SA - Retail Centre v1
B2: Transport Calculator | I2: Points Achieved: | L2: =D31 -> 0
P3: THESE COLUMNS HIDDEN
AD5: FALSE
B6: Notes & Instructions:
B7: 1. User must enter values into white cells ONLY.
B8: 2. Refer to the comprehensive Green Star SA Transport Calculator Guide available on the GBCSA website www.gbcsa.org.za for additional instructions.
B11: WEEKDAY SERVICES | H11: SATURDAY SERVICES | P11: HIDDEN CELLS:
B12: No. of Bus, Midibus or Minibus Routes | H12: No. of Bus, Midibus or Minibus Routes | P12: Mass Transport Calculator Engine:
C13: Contracted | E13: Uncontracted | I13: Contracted | K13: Uncontracted
B14: Walking Distance from Building Entrance to Public Transport | C14: Frequency of Service During Peak Periods | E14: Frequency of Service During Peak Periods | H14: Walking Distance from Building Entrance to Public Transport | I14: Frequency of Service During Peak Periods | K14: Frequency of Service During Peak Periods | P14: The weighting factors and score matrix to be calibrated using assessments of different retail centre locations
C15: 15 min | D15: 30 min | E15: 15 min | F15: 30 min | I15: 15 min | J15: 30 min | K15: 15 min | L15: 30 min
B16: 0-250m | H16: 0-250m | P16: Weighting factors | T16: Weekday Score | U16: Saturday Score | W16: Score Matrix
B17: 250-500m | H17: 250-500m | T17: Achieved | U17: Achieved | W17: 4 points available for weekday service
B18: 500-750m | H18: 500-750m | P18: Bus & Minibus Contract | R18: Uncontracted Minibus | W18: Score | X18: Points
B19: 750m-1km | H19: 750m-1km | P19: 15min | Q19: 30min | R19: 15min | S19: 30min | W19: 10 | X19: 1
P20: 6 | Q20: 4 | R20: 3 | S20: 1 | T20: =C16*P20+D16*Q20 +E16*R20+F16*S20 -> 0 | U20: =I16*P20+J16*Q20 +K16*R20+L16*S20 -> 0 | W20: 20 | X20: 2
B21: WEEKDAY SERVICES | H21: SATURDAY SERVICES | P21: 5 | Q21: 3 | R21: 2 | S21: 0 | T21: =C17*P21+D17*Q21+E17*R21+F17*S21 -> 0 | U21: =I17*P21+J17*Q21 +K17*R21+L17*S21 -> 0 | W21: 40 | X21: 3
B22: No. of Train Routes | H22: No. of Train Routes | P22: 4 | Q22: 2 | R22: 1 | S22: 0 | T22: =C18*P22+D18*Q22+E18*R22+F18*S22 -> 0 | U22: =I18*P22+J18*Q22 +K18*R22+L18*S22 -> 0 | W22: 60 | X22: 4
B23: Walking Distance from Building Entrance to Public Transport | C23: Frequency of Service During Peak Periods | H23: Walking Distance from Building Entrance to Public Transport | I23: Frequency of Service During Peak Periods | P23: 3 | Q23: 1 | R23: 0 | S23: 0 | T23: =C19*P23+D19*Q23+E19*R23+F19*S23 -> 0 | U23: =I19*P23+J19*Q23 +K19*R23+L19*S23 -> 0
C24: 15 min | D24: 30 min | I24: 15 min | J24: 30 min | W24: 1 point available for Saturday service
B25: 0-250m | H25: 0-250m | W25: Score | X25: Points
B26: 250-500m | H26: 250-500m | W26: 20 | X26: 1
B27: 500-750m | H27: 500-750m | P27: Train | W27: point scored | X27: =IF(U33>=W26,X26,0) -> 0
B28: 750m-1km | H28: 750m-1km | P28: 7 | Q28: 5 | T28: =C25*P28+D25*Q28 -> 0 | U28: =I25*P28+J25*Q28 -> 0
P29: 6 | Q29: 4 | T29: =C26*P29+D26*Q29 -> 0 | U29: =I26*P29+J26*Q29 -> 0
P30: 5 | Q30: 3 | T30: =C27*P30+D27*Q30 -> 0 | U30: =I27*P30+J27*Q30 -> 0
B31: Points Achieved: | D31: =X33 -> 0 | P31: 4 | Q31: 2 | T31: =C28*P31+D28*Q31 -> 0 | U31: =I28*P31+J28*Q31 -> 0
T32: weekday | U32: weekend
R33: Total for all services | T33: =SUM(T20:T31) -> 0 | U33: =SUM(U20:U31) -> 0 | W33: Points = | X33: =IF(T33<W19,0,VLOOKUP(T33,W19:X22,2))+X27 -> 0

Sheet Trip Reduction Calculator
B1: ='Building Input'!B1 -> Green Star SA - Retail Centre v1
B2: Trip Reduction Calculator: Mixed Land Use | H2: Points Achieved: | I2: =F25 -> 0
B4: Notes & Instructions
B5: 1. Only take developments within 400m walking distance from retail entrances into account
B6: 2. Complete the white cells where applicable to your development.
B7: 3. Please refer to Technical Manual for further information.
B11: Land Use | C11: Unit | D11: Extent | E11: Std Trip Rate | G11: Trips Generated | H11: Trip reduction factor | I11: Revised Trip Rate | J11: Revised Trips Generated
B12: Retail - CBD | C12: GFA m2 | E12: 1.5 | F12: /100m2 | G12: =E12*D12/100 -> 0 | H12: 0.13 | I12: =E12*(1-H12) -> 1.305 | J12: =I12*D12/100 -> 0
B13: Retail - Suburban | C13: GFA m2 | E13: 2.3 | F13: /100m2 | G13: =E13*D13/100 -> 0 | H13: 0.13 | I13: 2.001 | J13: =I13*D13/100 -> 0
B14: Retail - Medical | C14: GFA m2 | E14: 13.9 | F14: /100m2 | G14: =E14*D14/100 -> 0 | H14: 0.13 | I14: 12.093 | J14: =I14*D14/100 -> 0
B15: Residential -High Income | C15: Living Units | E15: 1.5 | F15: /unit | G15: =E15*D15 -> 0 | H15: 0.32 | I15: 1.02 | J15: =I15*D15 -> 0
B16: Residential -Middle Income | C16: Living Units | E16: 1.1 | F16: /unit | G16: =E16*D16 -> 0 | H16: 0.32 | I16: 0.748 | J16: =I16*D16 -> 0
B17: Residential -Low Income | C17: Living Units | E17: 0.6 | F17: /unit | G17: =E17*D17 -> 0 | H17: 0.32 | I17: 0.408 | J17: =I17*D17 -> 0
B18: Hotel | C18: bedrooms | E18: 1.1 | F18: /unit | G18: =E18*D18 -> 0 | H18: 0.32 | I18: =E18*(1-H18) -> 0.748 | J18: =I18*D18 -> 0
B19: Commercial Office / Warehousing | C19: GFA m2 | E19: 0.8 | F19: /100m2 | G19: =E19*D19/100 -> 0 | H19: 0.32 | I19: 0.544 | J19: =I19*D19/100 -> 0
G20: =SUM(G12:G19) -> 0 | J20: =SUM(J12:J19) -> 0
B22: Retail only | C22: GFA m2 | D22: ='Building Input'!C33 -> 0 | E22: =IF(D22=0,0,224.5*D22^-0.34) -> 0 | F22: /100m2 | G22: =IF(D22=0,0,E22*D22/100) -> 0
D24: Trip Reduction | F24: =IF(D22=0,0,(1-((G22-(G20-J20))/G22))) -> 0
D25: Points Achieved | F25: =IF(F24>15%,1,0) -> 0

Sheet RET_TRA_DataExtract (hidden)
A1: Dictionary | B1: Value | C1: Key | D1: Notes
A2: Retail_TRA_4_Points | B2: ='Transport Calculator'!L2 -> 0 | C2: RTP
A3: Retail_TRA_6_TripReduction_Points | B3: ='[13]Trip Reduction Calculator'!I2 -> 0 | C3: RTTRP

Sheet Water
A1: ='Building Input'!B1 -> Green Star SA - Retail Centre v1 | F1: Category Weighting: | G1: ='Credit Summary'!J57 -> 0.15 | H1: Category Weighted Score
A2: Water | D2: Category Summary: | E2: =E12 -> 16 | F2: =F12 -> 0 | G2: =G12 -> 0 | H2: ='Credit Summary'!K57 -> 0
A3: Credit Summary for: | C3: =IF('Building Input'!$C$5=0,"",'Building Input'!$C$5) ->  | F3: =IF(OR((I3=Calculation1!$B$84),(I3=Calculation1!$B$85),((F2+G2)>E2)),Calculation1!$B$86,"") ->  | I3: =T(I5:I11) -> 
A4: Ref No. | B4: Title | C4: Aim of Credit | D4: Credit Criteria Summary | E4: No. of Points Available | F4: No. of Points Achieved | G4: Points to be Confirmed | H4: Comments
A5: Wat-1 | B5: Occupant Amenity Water | C5: To encourage and recognise designs that reduce potable water consumption by building occupants. | D5: Up to five points are awarded where the predicted potable water consumption for sanitary use within the building has been reduced against a ‘best practice’ benchmark. The points are determined by the Green Star SA Potable Water Calculator. | E5: 5 | F5: ='Potable Water Calculator'!H2 -> 0 | I5: =IF(OR(ISTEXT(F5)=TRUE,ISTEXT(G5)=TRUE),Calculation1!$B$87,IF(F5+G5>E5,Calculation1!$B$84,"")) -> 
A6: Wat-2 | B6: Water Meters | C6: To encourage and recognise the design of systems that both monitor and manage water consumption. | D6: Three points are awarded as follows: • Two points are awarded where it is demonstrated that: – Water meters are installed for all major water uses in the development. An additional point is awarded where it is demonstrated that: • The above conditions are met; | E6: 2 | I6: =IF(OR(ISTEXT(F6)=TRUE,ISTEXT(G6)=TRUE),Calculation1!$B$87,IF(F6+G6>E6,Calculation1!$B$84,"")) -> 
D7: • There is an effective automated mechanism for monitoring water consumption data, which is able to perform as a leak detection system; AND • A metering and verification strategy is developed for the project. | E7: 1 | I7: =IF(OR(ISTEXT(F7)=TRUE,ISTEXT(G7)=TRUE),Calculation1!$B$87,IF(F7+G7>E7,Calculation1!$B$84,"")) -> 
A8: Wat-3 | B8: Landscape Irrigation | C8: To encourage and recognise the design of systems that aim to reduce the consumption of potable water for landscape irrigation. | D8: Up to three points are awarded as follows: One point is awarded where • Potable water consumption for landscape irrigation has been reduced by 50%; Two points are awarded where • Potable water consumption for landscape irrigation has been reduced by 90% OR • Plants chosen require no additional watering once established (i.e. xeriscaping). If there is no landscaping, or the total landscaping represents less than 1% of the site area, these points are ‘Not Applicable’ and are excluded from the points available, used to calculate the Water Category Score. Type 'na' in the No. of Points Achieved column. | E8: =IF(F8="na",0,2) -> 2 | I8: =IF(ISBLANK(F8),IF(G8>E8,Calculation1!$B$84,""),IF(F8="na","",IF(OR(F8="na",ISNUMBER(F8)),IF(F8+G8>E8,Calculation1!$B$84,""),Calculation1!$B$85))) -> 
D9: An additional point is awarded where 30% or more of the site is landscaped and the above criteria for 90% reduction of potable water consumption for landscape irrigation has been met. If there is no landscaping, or the total landscaped area represents less than 30% of the site area, this point is ‘Not Applicable’ and is excluded from the points available, used to calculate the Water Category Score. Type 'na' in the No. of Points Achieved column. | E9: =IF(OR(F8="na",F9="na"),0,1) -> 1 | I9: =IF(ISBLANK(F9),IF(G9>E9,Calculation1!$B$84,""),IF(F9="na","",IF(OR(F9="na",ISNUMBER(F9)),IF(F9+G9>E9,Calculation1!$B$84,""),Calculation1!$B$85))) -> 
A10: Wat-4 | B10: Heat Rejection Water | C10: To encourage and recognise design that reduces potable water consumption from heat rejection systems. | D10: Up to four points are awarded as follows: Two points are awarded where: • Potable water consumption of water consuming heat rejection systems is reduced by 50%. Four points are awarded where: • Potable water consumption of water consuming heat rejection systems is reduced by 90%; OR • No water consuming heat rejection systems are provided. | E10: 4 | I10: =IF(OR(ISTEXT(F10)=TRUE,ISTEXT(G10)=TRUE),Calculation1!$B$87,IF(F10+G10>E10,Calculation1!$B$84,"")) -> 
A11: Wat-5 | B11: Fire System Water Consumption | C11: To encourage and recognise building design which reduces consumption of potable water for the building's fire protection and essential water storage systems. | D11: One point is awarded where: • There is sufficient temporary storage for a minimum of 80% of the routine fire protection system test water and maintenance drain-downs, for reuse on-site; and • Each floor fitted with a sprinkler system has isolation valves or shut-off points for floor-by-floor/area by area (minimum of one per 10'000m2) drain down; OR • The fire protection system does not expel water for testing or maintanance. If the building does not have a fire protection and sprinkler system, this credit is ‘Not Applicable’ and is excluded from the points available, used to calculate the Water Category Score. Type 'na' in the No. of Points Achieved column. | E11: =IF(F11="na",0,1) -> 1 | I11: =IF(ISBLANK(F11),IF(G11>E11,Calculation1!$B$84,""),IF(F11="na","",IF(OR(F11="na",ISNUMBER(F11)),IF(F11+G11>E11,Calculation1!$B$84,""),Calculation1!$B$85))) -> 
D12: Total Points: | E12: =SUM(E5:E11) -> 16 | F12: =SUM(F5:F11) -> 0 | G12: =SUM(G5:G11) -> 0
A16: =Calculation1!$B$93 -> Project Teams are to refer to the Green Star SA Retail Centre v1 Technical Manual for explicit credit criteria and documentation requirements.
A17: =Calculation1!$B$94 -> The Green Star Technical Clarifications (TC) and Credit Interpretation Request (CIR) rulings provide an essential source of information to all
A18: =Calculation1!$B$95 -> projects undertaking Green Star assessment. They are available on the GBCSA website http://www.gbcsa.org.za . Technical Clarifications
A19: =Calculation1!$B$96 -> often represent the GBCSA answers to technical queries and complement Green Star SA Technical Manuals. They do not amend but clarify
A20: =Calculation1!$B$97 -> Credit Criteria or Compliance Requirements. They are an extension of the Technical Manual; it is the responsibility of the project teams to stay
A21: =Calculation1!$B$98 -> up-to-date with this section of the GBCSA website. The CIR rulings offer alternative compliance options whenever those have been deemed
A22: =Calculation1!$B$99 -> equivalent in meeting the Aim of Credit.

Sheet Potable Water Calculator
B1: ='Building Input'!B1 -> Green Star SA - Retail Centre v1
B2: Potable Water Calculator | E2: Points Achieved: | H2: =G151 -> 0 | L2: Selections | M2: Factors | N2: Calculation | O2: Unit or description
E4: Usable Area (m2): | H4: ='Building Input'!C34 -> 0 | L4: 1 | M4: Hours of operation | N4: =VLOOKUP($L4,$Z14:$AB18,3) -> 1 | O4: Potable water factor
E5: Assumed No. Staff: | H5: =ROUNDUP(H4/60,0) -> 0 | N5: =ROUNDUP(H4/60,0) -> 0 | O5: Assumed number of staff
B6: Notes & Instructions | E6: Assumed No. Customers: | H6: =ROUNDUP(H4*0.3,0) -> 0 | N6: =ROUNDUP(H4*0.3,0) -> 0 | O6: Assumed number of visitors
B7: 1. Enter data into white fields only.
B8: 2. All base-building fixtures and fittings must be included.
B9: 3. The Potable Water Calculator is strictly NOT to be used as a design tool.
B11: PREDICTED POTABLE WATER CONSUMPTION
B12: WCs
B13: Type | E13: Avg L/flush | G13: % of WCs | L13: Ave. L/flush | M13: Total Ave.F/Day | N13: Total Ave.F/Day | O13: Total Con. (Staff) | P13: Total Con. (Visitors) | S13: Parameters and Assumptions of the PWC | Z13: Potable water factor (hours of operation)
B14: <enter description here> | G14: 0 | L14: =E14 -> 0 | M14: =IF($I$34="No Urinals",($N$5*$T$20*$G14),($N$5*0.5*($T$16+$T$18)*$G14)) -> 0 | N14: =IF($I$34="No Urinals",($N$6*$U$20*$G14),($N$6*0.5*($U$16+$U$18)*$G14)) -> 0 | O14: =L14*M14 -> 0 | P14: =L14*N14 -> 0 | Q14: L/day for this unit | S14: Name | T14: Staff | U14: Visitors/Customers | Z14: 1 | AA14: Standard | AB14: 1
B15: <enter description here> | G15: 0 | L15: =E15 -> 0 | M15: =IF($I$34="No Urinals",($N$5*$T$20*$G15),($N$5*0.5*($T$16+$T$18)*$G15)) -> 0 | N15: =IF($I$34="No Urinals",($N$6*$U$20*$G15),($N$6*0.5*($U$16+$U$18)*$G15)) -> 0 | O15: =L15*M15 -> 0 | P15: =L15*N15 -> 0 | Q15: L/day for this unit | S15: General | Z15: 2 | AA15: 7 days a week | AB15: 1.4
B16: <enter description here> | G16: 0 | L16: =E16 -> 0 | M16: =IF($I$34="No Urinals",($N$5*$T$20*$G16),($N$5*0.5*($T$16+$T$18)*$G16)) -> 0 | N16: =IF($I$34="No Urinals",($N$6*$U$20*$G16),($N$6*0.5*($U$16+$U$18)*$G16)) -> 0 | O16: =L16*M16 -> 0 | P16: =L16*N16 -> 0 | Q16: L/day for this unit | S16: WC uses male | T16: 0.3 | U16: 0.036 | V16: Average per person (50% of occupation) | Z16: 3 | AA16: 24 hours / 5 days | AB16: 2
B17: <enter description here> | G17: 0
B18: <enter description here> | G18: 0 | L18: =E18 -> 0 | M18: =IF($I$34="No Urinals",($N$5*$T$20*$G18),($N$5*0.5*($T$16+$T$18)*$G18)) -> 0 | N18: =IF($I$34="No Urinals",($N$6*$U$20*$G18),($N$6*0.5*($U$16+$U$18)*$G18)) -> 0 | O18: =L18*M18 -> 0 | P18: =L18*N18 -> 0 | Q18: L/day for this unit | S18: WC uses female | T18: 2.3 | U18: 0.274 | V18: Average per person (50% of occupation) | Z18: 4 | AA18: 24 hours / 7 days | AB18: 2.8
G19: =SUM(G14:G18) -> 0 | I19: =IF(SUM(G14:H18)=1,"",IF(OR(AND(ISBLANK(G14),ISBLANK(G15),ISBLANK(G16),ISBLANK(G18))=TRUE,G14+G15+G16+G18=0=TRUE),"No WCs","ERROR: 100% required")) -> No WCs | L19: TOTALS: | M19: =SUM(M14:M18) -> 0 | N19: =SUM(N14:N18) -> 0 | O19: =SUM(O14:O18) -> 0 | P19: =SUM(P14:P18) -> 0 | S19: Urinal uses | T19: 2 | U19: 0.238 | V19: Average per person (50% of occupation)
B20: Predicted Normalised WC Water Consumption Sub-Total (L/day/m2) | G20: =IF(TYPE(P21)=16,0,P21) -> 0 | I20: =IF(I19="No WCs","",IF(TYPE(O19/$H$4)=16,"Error","")) ->  | O20: TOTAL: | P20: =O19+P19 -> 0 | Q20: Total L/day for WC | S20: No urinals installed | T20: 2.3 | U20: 0.274 | V20: WC uses per day per person. | Z20: Tap Controls tables
P21: =($O$19+$P$19)/$H$4 ->  | Q21: L/day/m2 | S21: Urinal auto timer | T21: input by project | U21: 48 | V21: times flushing per day based on flushing | Z21: Type | AA21: Description
B22: Urinals | S22: Tap running time | T22: varies | U22: 0.15 | V22: minutes | Z22: 1 | AA22: PIR
B23: a) Urinals flushed after each use (manual & sensor) | E23: L/flush | G23: % of Urinals | L23: L/flush | M23: Total Flushes/Day | N23: Total Flushes/Day | O23: Total Cons. (Staff) | P23: Total Cons. (Visitors) | S23: Duration of showers | T23: 5 | U23: 0 | V23: minutes per person per business day. | Z23: 2 | AA23: Timed
B24: <enter description here> | G24: 0 | L24: =E24 -> 0 | M24: =($N$5*0.5)*$T$19*$G24 -> 0 | N24: =($N$6*0.5)*$U$19*$G24 -> 0 | O24: =L24*M24 -> 0 | P24: =L24*N24 -> 0 | Q24: L/day for this unit | S24: Shower use | T24: 0.03 | U24: 0 | V24: of all occupants | Z24: 3 | AA24: Manual
B25: <enter description here> | G25: 0 | L25: =E25 -> 0 | M25: =($N$5*0.5)*$T$19*$G25 -> 0 | N25: =($N$6*0.5)*$U$19*$G25 -> 0 | O25: =L25*M25 -> 0 | P25: =L25*N25 -> 0 | Q25: L/day for this unit | S25: Female Occupancy | T25: 0.5 | U25: 0.5 | Z25: 4 | AA25: Select Type
B26: <enter description here> | G26: 0
B27: <enter description here> | G27: 0 | L27: =E27 -> 0 | M27: =($N$5*0.5)*$T$19*$G27 -> 0 | N27: =($N$6*0.5)*$U$19*$G27 -> 0 | O27: =L27*M27 -> 0 | P27: =L27*N27 -> 0 | Q27: L/day for this unit | S27: Male Occupancy | T27: 0.5 | U27: 0.5
B28: <enter description here> | G28: 0 | L28: =E28 -> 0 | M28: =($N$5*0.5)*$T$19*$G28 -> 0 | N28: =($N$6*0.5)*$U$19*$G28 -> 0 | O28: =L28*M28 -> 0 | P28: =L28*N28 -> 0 | Q28: L/day for this unit | S28: Tap usage | T28: 2.5 | U28: 0.3 | V28: per day for male and female | Z28: Description | AA28: PIR | AB28: Timed | AC28: Manual | AD28: Select Type
B29: Sub-Total % | G29: =SUM(G24:G28) -> 0 | O29: =SUM(O24:O28) -> 0 | P29: =SUM(P24:P28) -> 0 | Q29: Total L/day for Urinals (man. & sens.) | S29: Rainwater tank | Z29: Type | AA29: 1 | AB29: 2 | AC29: 3 | AD29: 4
B30: b) Urinals on Auto-Timer Flush | C30: No. of Cisterns | D30: Flushes per day | E30: L/flush | G30: % of Urinals | S30: Rainwater tank first flush volume | T30: 20 | U30: litres per 100m2
B31: <enter description here> | G31: 0 | I31: =IF(G31>1,"ERROR","") ->  | L31: =E31 -> 0 | M31: =D31*C31 -> 0 | N31: =C31*D31 -> 0 | O31: =IF(G31=0,0,L31*M31) -> 0 | P31: =IF(G31=0,0,L31*N31) -> 0 | Q31: Total L/day for auto-timer flush Urinals | Z31: Flow time(minutes) | AA31: =AA33/60 -> 0.1 | AB31: =AB33/60 -> 0.1166666667 | AC31: =AC33/60 -> 0.15 | AD31: =AD33/60 -> 0.15
B32: <enter description here> | G32: 0
B33: Sub-Total % | G33: =SUM(G31:H32) -> 0 | Z33: Flow time(seconds) | AA33: 6 | AB33: 7 | AC33: 9 | AD33: 9
B34: Total % Urinals (flushed after use AND timer flushed) | G34: =G29+G33 -> 0 | I34: =IF(SUM($G$24:$H$28)+$G$31=1,"",IF(OR(AND(ISBLANK($G$24),ISBLANK($G$25),ISBLANK($G$27),ISBLANK($G$28))=TRUE,$G$24+$G$25+$G$27+$G$28+$G$31=0=TRUE),"No Urinals","ERROR: 100% required")) -> No Urinals | O34: TOTAL: | P34: =(O29+O31)+(P29+P31) -> 0 | Q34: Total L/day for ALL Urinals
B35: Predicted Normalised Urinal Water Consumption Sub-Total (L/day/m2) | G35: =IF(TYPE(P35)=16,0,P35) -> 0 | I35: =IF(I34="No Urinals","",IF(TYPE(P34/$H$4)=16,"Error","")) ->  | L35: =IF(G34=0,"No Urinals",IF((G29+G31)>0,1,"ERROR")) -> No Urinals | M35: Auto ERROR message | P35: =$P$34/$H$4 ->  | Q35: L/day/m2 | S35: WELS Fixture Flow Rates (Averaged where a range is permitted) NOT USED IN SA TOOL!!!! | AA35: Rainfall Runoff Co-efficients
T36: Fittings selection | U36: WC (Avg. l/flush) | V36: Urinal (Avg. l/flush) | W36: Taps (Avg. L/min) | X36: Showers (Avg. L/min) | Y36: Urinal (Avg. l/flush) in group of 2 | AA36: 1
B37: Indoor Taps (Office & Non-Office Areas) | AA37: 2 | AB37: Steel roof (> 30 pitch) | AD37: 0.9
B38: Type | D38: Control | E38: L/minute | G38: % of taps | L38: Tap type | M38: Total Minutes/Day | N38: Total Minutes/Day | O38: Total Cons. (Staff) | P38: Total Cons. (Visitors) | S38: 1 | V38: 0 | AA38: 3 | AB38: Non-absorbent roof (> 30 pitch) | AD38: 0.9
B39: <enter description here> | G39: 0 | L39: 4 | M39: =$N$5*VLOOKUP($L39,$AA$29:$AD$31,$L39)*$T$28*$G39 -> 0 | N39: =$N$6*VLOOKUP($L39,$AA$29:$AD$31,$L39)*$U$28*$G39 -> 0 | O39: =$M39*$E39 -> 0 | P39: =$N39*$E39 -> 0 | Q39: L/day for this unit | S39: 2 | T39: 0 Star | U39: Warning | V39: 2.5 | W39: Warning | X39: 16 | Y39: 4 | AA39: 4 | AB39: Flat non-absorbent roof (<30 Pitch) | AD39: 0.8
B40: <enter description here> | G40: 0 | L40: 4 | M40: =$N$5*VLOOKUP($L40,$AA$29:$AD$31,$L40)*$T$28*$G40 -> 0 | N40: =$N$6*VLOOKUP($L40,$AA$29:$AD$31,$L40)*$U$28*$G40 -> 0 | O40: =$M40*$E40 -> 0 | P40: =$N40*$E40 -> 0 | Q40: L/day for this unit | S40: 3 | T40: 1 Star | U40: 5.5 | V40: 2.5 | W40: 16 | X40: 16 | Y40: 4 | AA40: 5 | AB40: Flat gravel or turf roof (<30 pitch) | AD40: 0.65
G41: 0
B42: <enter description here> | G42: 0 | L42: 4 | M42: =$N$5*VLOOKUP($L42,$AA$29:$AD$31,$L42)*$T$28*$G42 -> 0 | N42: =$N$6*VLOOKUP($L42,$AA$29:$AD$31,$L42)*$U$28*$G42 -> 0 | O42: =$M42*$E42 -> 0 | P42: =$N42*$E42 -> 0 | Q42: L/day for this unit | S42: 4 | T42: 2 Star | U42: 4.5 | V42: 2.5 | W42: 12 | X42: 12 | Y42: 2.5
B43: <enter description here> | G43: 0 | L43: 4 | M43: =$N$5*VLOOKUP($L43,$AA$29:$AD$31,$L43)*$T$28*$G43 -> 0 | N43: =$N$6*VLOOKUP($L43,$AA$29:$AD$31,$L43)*$U$28*$G43 -> 0 | O43: =$M43*$E43 -> 0 | P43: =$N43*$E43 -> 0 | Q43: L/day for this unit | S43: 5 | T43: 3 Star | U43: 4 | V43: 2 | W43: 9 | X43: 9 | Y43: 2
G44: =SUM(G39:G43) -> 0 | I44: =IF(SUM(G39:H43)=1,"",IF(OR(AND(ISBLANK(G39),ISBLANK(G40),ISBLANK(G42),ISBLANK(G43))=TRUE,G39+G40+G42+G43=0=TRUE),"No Indoor Taps","ERROR: 100% required")) -> No Indoor Taps | S44: 6 | T44: 4 Star | U44: 3.5 | V44: 1.5 | W44: 7.5 | X44: 9 | Y44: 1.5 | AA44: RW GW BW Decision
B45: Predicted Normalised Indoor Tap Water Consumption Sub-Total (L/day/m2) | G45: =IF(TYPE(P46)=16,0,P46) -> 0 | I45: =IF(I44="No Indoor Taps","",IF(TYPE(P45/$H$4)=16,"Error","")) ->  | O45: TOTAL: | P45: =SUM(O39:O43)+SUM(P39:P43) -> 0 | Q45: Total L/day for Indoor taps | S45: 7 | T45: 5 Star | U45: 3 | V45: 1 | W45: 6 | X45: 9 | Y45: 1 | AA45: 1 | AB45: No
P46: =$P$45/$H$4 ->  | Q46: L/day/m2 | S46: 8 | T46: 6 Star | U46: 2.5 | V46: 1 | W46: 4.5 | X46: 9 | Y46: 0.75 | AA46: 2 | AB46: Yes
B47: Showerheads | S47: 9 | T47: Unknown | U47: To be entered | V47: To be entered | W47: To be entered | X47: To be entered | Y47: To be entered
B48: Type | E48: L/minute | G48: % of showers | L48: L/minute | M48: Total Minutes/Day | N48: Total Minutes/Day | O48: Total Cons. (Staff) | P48: Total Cons. (Staff) | S48: 10 | T48: Waterless | U48: N/A | V48: 0 | W48: N/A | X48: N/A | Y48: N/A
B49: <enter description here> | G49: 0 | L49: =E49 -> 0 | M49: =$N$5*$T$24*$T$23*$G49 -> 0 | N49: =$N$6*$U$24*$U$23*$G49 -> 0 | O49: =M49*L49 -> 0 | Q49: L/day for this unit
B50: <enter description here> | G50: 0 | L50: =E50 -> 0 | M50: =$N$5*$T$24*$T$23*$G50 -> 0 | N50: =$N$6*$U$24*$U$23*$G50 -> 0 | O50: =M50*L50 -> 0 | Q50: L/day for this unit
B51: <enter description here> | G51: 0
B52: <enter description here> | G52: 0 | L52: =E52 -> 0 | M52: =$N$5*$T$24*$T$23*$G52 -> 0 | N52: =$N$6*$U$24*$U$23*$G52 -> 0 | O52: =M52*L52 -> 0 | Q52: L/day for this unit
B53: <enter description here> | G53: 0 | L53: =E53 -> 0 | M53: =$N$5*$T$24*$T$23*$G53 -> 0 | N53: =$N$6*$U$24*$U$23*$G53 -> 0 | O53: =M53*L53 -> 0 | Q53: L/day for this unit
G54: =SUM(G49:G53) -> 0 | I54: =IF(SUM(G49:H53)=1,"",IF(OR(AND(ISBLANK(G49),ISBLANK(G50),ISBLANK(G52),ISBLANK(G53))=TRUE,G49+G50+G52+G53=0=TRUE),"No Showerheads","ERROR: 100% required")) -> No Showerheads | P54: =SUM(O49:O53) -> 0 | Q54: Total L/day for Showers
B55: Predicted Normalised Showerhead Water Consumption Sub-Total (L/day/m2) | G55: =IF(TYPE(P55)=16,0,P55) -> 0 | I55: =IF(I54="No Showerheads","",IF(TYPE(P54/$H$4)=16,"Error","")) ->  | L55: =IF(G54=0,0,1) -> 0 | M55: Shower check (benchmarks) | P55: =$P$54/$H$4 ->  | Q55: L/day/m2
B57: The following estimated total potable water consumption is based on the data entered above. The water consumption of the fittings per m2 is based on assumptions of typical office usage and does not represent actual water consumption in the building. | P57: =P20+P34+P45+P54 -> 0 | Q57: TOTAL AMENITY DEMAND (STAFF & VISITORS)
B58: Predicted Normalised Amenity Water Consumption Total | G58: =SUM(G60:H63) -> 0 | I58: L/day/m2 | P58: =P57/$H$4 ->  | Q58: L/day/m2
B60: WCs: | E60: =IF(G58=0,0,G60/$G$58) -> 0 | F60: of total. | G60: =G20 -> 0 | I60: L/day/m2
B61: Urinals: | E61: =IF(G58=0,0,G61/$G$58) -> 0 | F61: of total. | G61: =G35 -> 0 | I61: L/day/m2
B62: Indoor Taps: | E62: =IF(G58=0,0,G62/$G$58) -> 0 | F62: of total. | G62: =G45 -> 0 | I62: L/day/m2
B63: Showerheads: | E63: =IF(G58=0,0,G63/$G$58) -> 0 | F63: of total. | G63: =G55 -> 0 | I63: L/day/m2
B67: OTHER PREDICTED RECYCLED/HARVESTED WATER DEMANDS/CONSUMPTION
B68: Are there any other recycled/harvested water demands in the project? Enter recycled water demand only, disregard potable water use. This is to determine the availability of recycled/reused/harvested water for occupant amenity (i.e. fixtures and fittings) | L68: 2 | M68: Annual Demand
B69: RECYCLED/HARVESTED WATER DEMAND FOR IRRIGATION (L/day) | G69: 0 | L69: =IF($L$68=1,"-",G69) -> 0 | M69: =IF(L68=1,0,(G69*AD91)/1000) -> 0 | N69: =(M69/$AD$94) -> 0
B70: RECYCLED/HARVESTED WATER DEMAND FOR COOLING TOWERS (L/day) | G70: 0 | L70: =IF($L$68=1,"-",G70) -> 0 | M70: =IF(L68=1,0,(G70*$AD$94)/1000) -> 0 | N70: =(M70/$AD$94) -> 0
B71: RECYCLED/HARVESTED WATER DEMAND FOR FIRE SYSTEM TESTING (L/day) | G71: 0 | L71: =IF($L$68=1,"-",G71) -> 0 | M71: =IF(L68=1,0,(G71*$AD$94)/1000) -> 0 | N71: =(M71/$AD$94) -> 0
B72: RECYCLED/HARVESTED WATER DEMAND FOR OTHER (L/day) | G72: 0 | L72: =IF($L$68=1,"-",G72) -> 0 | M72: =IF(L68=1,0,(G72*$AD$94)/1000) -> 0 | N72: =(M72/$AD$94) -> 0
M73: =SUM(M69:M71) -> 0 | N73: All predicted recycled water consumption
M74: =((M73/$AD$94)/$H$4)*1000 ->  | N74: L/day/m2
B75: PREDICTED REDUCTION IN POTABLE WATER CONSUMPTION | AI75: WATER BALANCE DEMAND ANALYSIS
B76: RAINWATER/STORMWATER HARVESTING | Q76: M76*P83 | AK76: Jan | AL76: Feb | AM76: Mar | AN76: Apr | AO76: May | AP76: Jun | AQ76: Jul | AR76: Aug | AS76: Sep | AT76: Oct | AU76: Nov | AV76: Dec | AX76: ANNUAL TOTAL
B77: Are there any rainwater/stormwater harvesting systems, and if so, do they comply with Local Authority requirements? | L77: 2 | M77: Drop-down outputs | AI77: Total Days | AK77: 31 | AL77: 28 | AM77: 31 | AN77: 30 | AO77: 31 | AP77: 30 | AQ77: 31 | AR77: 31 | AS77: 30 | AT77: 31 | AU77: 30 | AV77: 31 | AX77: =SUM(AK77:AV77) -> 365
B78: Harvested water collected is used for (please tick appropriate box(es) ): | L78: Results of tick boxes at left | N78: Demands from tick boxes at left (kL/day) | P78: RAINWATER TANK BALANCE CALCULATIONS | AI78: Work Days | AK78: 21 | AL78: 20 | AM78: 23 | AN78: 22 | AO78: 21 | AP78: 22 | AQ78: 22 | AR78: 22 | AS78: 22 | AT78: 21 | AU78: 22 | AV78: 23 | AX78: =SUM(AK78:AV78) -> 261
C79: Irrigation | E79: WC & Urinal Flushing | L79: FALSE | M79: FALSE | N79: =IF(L77=1,0,IF(L79,(T118/AX78)/1000,0)) -> 0 | O79: =IF(L77=1,0,IF(M79,(W118/AX78)/1000,0)) -> 0 | P79: This is a very basic and crude assessment of the inflows and outflows of a water storage and reuse system. Projects may use a single tank to store rainwater, stormwater(surface runoff), condensate, fire system test water. This scenario is significantly co | AI79: AMENITY CONSUMPTION/DEMAND
C80: Cooling Tower | E80: Shower & Taps (treated to potable) | L80: FALSE | M80: FALSE | N80: =IF(L77=1,0,IF(L80,(U118/AX78)/1000,0)) -> 0 | O80: =IF(L77=1,0,IF(M80,(X118/AX78)/1000,0)) -> 0 | AI80: WC Consumption | AK80: =AK78*$O$19 -> 0 | AL80: 0 | AM80: 0 | AN80: 0 | AO80: 0 | AP80: 0 | AQ80: 0 | AR80: 0 | AS80: 0 | AT80: 0 | AU80: 0 | AV80: 0 | AX80: =SUM(AK80:AV80) -> 0 | AY80: =AX80/$AX$84 -> 
C81: Fire System Testing | E81: Other | L81: FALSE | M81: FALSE | N81: =IF(L77=1,0,IF(L81,(V118/AX78)/1000,0)) -> 0 | O81: =IF(L77=1,0,IF(M81,(Y118/AX78)/1000,0)) -> 0 | AI81: Urinal Consumption | AK81: =AK78*$P$34 -> 0 | AL81: 0 | AM81: 0 | AN81: 0 | AO81: 0 | AP81: 0 | AQ81: 0 | AR81: 0 | AS81: 0 | AT81: 0 | AU81: 0 | AV81: 0 | AX81: =SUM(AK81:AV81) -> 0 | AY81: =AX81/$AX$84 -> 
B82: Total water harvesting collection area (drained to storage tank(s)) | G82: 0 | N82: Total Rain/Stormwater Demand | O82: =SUM(N79:O81) -> 0 | P82: Month | Q82: Jan | R82: Feb | S82: Mar | T82: Apr | U82: May | V82: Jun | W82: Jul | X82: Aug | Y82: Sep | Z82: Oct | AA82: Nov | AB82: Dec | AD82: Annual Totals | AE82: L/m2/day | AI82: Indoor Tap Consumption | AK82: =AK78*$P$45 -> 0 | AL82: 0 | AM82: 0 | AN82: 0 | AO82: 0 | AP82: 0 | AQ82: 0 | AR82: 0 | AS82: 0 | AT82: 0 | AU82: 0 | AV82: 0 | AX82: =SUM(AK82:AV82) -> 0 | AY82: =AX82/$AX$84 -> 
B83: Total storage capacity of harvested water tank(s) (kL) | G83: 0 | L83: Coefficient Selection | M83: Effective Area (m2) | N83: Output/Entered Data | P83: Avg monthly rainfall (mm) | Q83: =C89 -> 0 | R83: 0 | S83: 0 | T83: 0 | U83: 0 | V83: 0 | W83: =C91 -> 0 | X83: 0 | Y83: 0 | Z83: 0 | AA83: 0 | AB83: 0 | AD83: =SUM(Q83:AB83) -> 0 | AI83: Shower Consumption | AK83: =AK78*$P$54 -> 0 | AL83: 0 | AM83: 0 | AN83: 0 | AO83: 0 | AP83: 0 | AQ83: 0 | AR83: 0 | AS83: 0 | AT83: 0 | AU83: 0 | AV83: 0 | AX83: =SUM(AK83:AV83) -> 0 | AY83: =AX83/$AX$84 -> 
B84: Collection Area Types | C84: Rainwater Run-off Coefficient | G84: =VLOOKUP($L84,$AA$36:$AD$40,4) -> 0 | H84: 0 | I84: =IF(G82=0,"",IF(SUM(H84:H86)=G82,"","Error. Check area!")) ->  | L84: 1 | M84: =G84*H84 -> 0 | N84: =O82 -> 0 | O84: Rainwater demand kL/day | P84: Total Harvest + Exist Tank Vol | Q84: =IF((($M$87*Q83)-($M$87/100*$T$30*$N$87))<0,0,(((($M$87*Q83)-($M$87/100*$T$30*$N$87)))/1000)+(0.25*$N$86)) -> 0 | R84: =IF((($M$87*R83)-($M$87/100*$T$30*$N$87))<0,0,(((($M$87*R83)-($M$87/100*$T$30*$N$87)))/1000)+Q87) -> 0 | S84: 0 | T84: 0 | U84: 0 | V84: 0 | W84: 0 | X84: 0 | Y84: 0 | Z84: 0 | AA84: 0 | AB84: 0 | AD84: =SUM(P84:AB84) -> 0 | AE84: =AD84/$AD$91/$H$4*1000 ->  | AI84: TOTAL Amenity Consumption | AK84: =SUM(AK80:AK83) -> 0 | AL84: 0 | AM84: 0 | AN84: 0 | AO84: 0 | AP84: 0 | AQ84: 0 | AR84: 0 | AS84: 0 | AT84: 0 | AU84: 0 | AV84: 0 | AX84: =SUM(AK84:AV84) -> 0 | AY84: =AX84 -> 0
G85: =VLOOKUP($L85,$AA$36:$AD$40,4) -> 0 | H85: 0 | L85: 1 | M85: =G85*H85 -> 0 | N85: =G82 -> 0 | O85: Roof area into tank m2 | P85: Monthly Demand | Q85: =AK173/1000 -> 0 | R85: 0 | S85: 0 | T85: 0 | U85: 0 | V85: 0 | W85: 0 | X85: 0 | Y85: 0 | Z85: 0 | AA85: 0 | AB85: 0 | AD85: =SUM(Q85:AB85) -> 0 | AE85: =AD85/$AD$91/$H$4*1000 ->  | AI85: NON-AMENITY RECYCLED WATER DEMAND
G86: =VLOOKUP($L86,$AA$36:$AD$40,4) -> 0 | H86: 0 | L86: 1 | M86: =G86*H86 -> 0 | N86: =G83 -> 0 | O86: Storage capacity kL | P86: Overflow to drain | Q86: =IF(Q84>Q85,Q84-Q85,0) -> 0 | R86: 0 | S86: 0 | T86: 0 | U86: 0 | V86: 0 | W86: 0 | X86: 0 | Y86: 0 | Z86: 0 | AA86: 0 | AB86: 0 | AD86: =SUM(Q86:AB86) -> 0 | AE86: =AD86/$AD$91/$H$4*1000 ->  | AI86: Irrigation Consumption | AK86: =AK77*$G$69 -> 0 | AL86: 0 | AM86: 0 | AN86: 0 | AO86: 0 | AP86: 0 | AQ86: 0 | AR86: 0 | AS86: 0 | AT86: 0 | AU86: 0 | AV86: 0 | AX86: =SUM(AK86:AV86) -> 0 | AY86: =AX86/$AX$90 -> 
B87: Average monthly rainfall for the building location (mm): | L87: TOTAL: | M87: =SUM(M84:M86) -> 0 | N87: =H92/12 -> 0 | O87: month no. of rain days | P87: Volume at month end | Q87: =IF(Q86>$N$86,$N$86,Q86) -> 0 | R87: =MIN($N$86,(Q86+IF(R86>$N$86,$N$86,R86))) -> 0 | S87: 0 | T87: 0 | U87: 0 | V87: 0 | W87: 0 | X87: 0 | Y87: 0 | Z87: 0 | AA87: 0 | AB87: 0 | AI87: Cooling Tower Consumption | AK87: =AK78*$G$70 -> 0 | AL87: 0 | AM87: 0 | AN87: 0 | AO87: 0 | AP87: 0 | AQ87: 0 | AR87: 0 | AS87: 0 | AT87: 0 | AU87: 0 | AV87: 0 | AX87: =SUM(AK87:AV87) -> 0 | AY87: =AX87/$AX$90 -> 
B88: Location | C88: Jan. | D88: Feb. | E88: March | F88: April | G88: May | H88: June | P88: Top up water | Q88: =IF(Q84<Q85,(Q85-Q84),0) -> 0 | R88: 0 | S88: 0 | T88: 0 | U88: 0 | V88: 0 | W88: 0 | X88: 0 | Y88: 0 | Z88: 0 | AA88: 0 | AB88: 0 | AD88: =SUM(Q88:AB88) -> 0 | AE88: =AD88/$AD$91/$H$4*1000 ->  | AI88: Fire System Test Consumption | AK88: =$G$71*AK78 -> 0 | AL88: 0 | AM88: 0 | AN88: 0 | AO88: 0 | AP88: 0 | AQ88: 0 | AR88: 0 | AS88: 0 | AT88: 0 | AU88: 0 | AV88: 0 | AX88: =SUM(AK88:AV88) -> 0 | AY88: =AX88/$AX$90 -> 
B89: 1 | C89: =VLOOKUP($B$89,'Rainfall data'!$A$3:$N$33,3,FALSE) -> 0 | D89: =VLOOKUP($B$89,'Rainfall data'!$A$3:$N$33,4,FALSE) -> 0 | E89: =VLOOKUP($B$89,'Rainfall data'!$A$3:$N$33,5,FALSE) -> 0 | F89: =VLOOKUP($B$89,'Rainfall data'!$A$3:$N$33,6,FALSE) -> 0 | G89: =VLOOKUP($B$89,'Rainfall data'!$A$3:$N$33,7,FALSE) -> 0 | H89: =VLOOKUP($B$89,'Rainfall data'!$A$3:$N$33,8,FALSE) -> 0 | AI89: Other Consumption | AK89: =AK78*$G$72 -> 0 | AL89: 0 | AM89: 0 | AN89: 0 | AO89: 0 | AP89: 0 | AQ89: 0 | AR89: 0 | AS89: 0 | AT89: 0 | AU89: 0 | AV89: 0 | AX89: =SUM(AK89:AV89) -> 0 | AY89: =AX89/$AX$90 -> 
C90: July | D90: August | E90: Sept. | F90: Oct. | G90: Nov. | H90: Dec. | P90: Monthly effective use | Q90: =IF(Q85<Q84,Q85,Q84) -> 0 | R90: 0 | S90: 0 | T90: 0 | U90: 0 | V90: 0 | W90: 0 | X90: 0 | Y90: 0 | Z90: 0 | AA90: 0 | AB90: 0 | AD90: =SUM(Q90:AB90) -> 0 | AE90: =((AD90-(N79*AD94))/$AD$91/$H$4*1000) ->  | AI90: TOTAL Non-Amenity Consumption | AK90: =SUM(AK86:AK89) -> 0 | AL90: 0 | AM90: 0 | AN90: 0 | AO90: 0 | AP90: 0 | AQ90: 0 | AR90: 0 | AS90: 0 | AT90: 0 | AU90: 0 | AV90: 0 | AX90: =SUM(AK90:AV90) -> 0 | AY90: =AX90 -> 0
C91: =VLOOKUP($B$89,'Rainfall data'!$A$3:$N$33,9,FALSE) -> 0 | D91: =VLOOKUP($B$89,'Rainfall data'!$A$3:$N$33,10,FALSE) -> 0 | E91: =VLOOKUP($B$89,'Rainfall data'!$A$3:$N$33,11,FALSE) -> 0 | F91: =VLOOKUP($B$89,'Rainfall data'!$A$3:$N$33,12,FALSE) -> 0 | G91: =VLOOKUP($B$89,'Rainfall data'!$A$3:$N$33,13,FALSE) -> 0 | H91: =VLOOKUP($B$89,'Rainfall data'!$A$3:$N$33,14,FALSE) -> 0 | N91: =(SUM(O79:O80))*1000 -> 0 | O91: Amenity Potable(Mains) Water Reduction (L/day) | P91: days | Q91: 31 | R91: 28 | S91: 31 | T91: 30 | U91: 31 | V91: 30 | W91: 31 | X91: 31 | Y91: 30 | Z91: 31 | AA91: 30 | AB91: 31 | AD91: =SUM(Q91:AB91) -> 365 | AI91: POTENTIAL RECYCLED WATER DEMAND BREAKDOWN
C92: Annual number of rain days > 1mm: | H92: =VLOOKUP($B$89,'Rainfall data'!$A$3:$P$33,16,FALSE) -> 0 | P92: Tank Efficiency | AD92: =1/AD84*AD90 ->  | AE92: =AD85-AD88 -> 0 | AI92: ALL Potential Consumption Breakdown
B93: Predicted amenity potable(mains) water reduction due to rainwater harvesting (L/day/m2) | G93: =IF(TYPE(N91/$H$4)=16,0,(N91/$H$4)) -> 0 | AI93: WC Consumption | AK93: =(AK80)/(AK$84+AK$90) -> 
P94: WORK DAYS | Q94: 21 | R94: 20 | S94: 23 | T94: 22 | U94: 21 | V94: 22 | W94: 22 | X94: 22 | Y94: 22 | Z94: 21 | AA94: 22 | AB94: 23 | AD94: =SUM(Q94:AB94) -> 261 | AI94: Urinal Consumption | AK94: =(AK81)/(AK$84+AK$90) -> 
B95: GREYWATER HARVESTING | Q95: =Q91/Q94 -> 1.476190476 | R95: 1.4 | S95: 1.347826087 | T95: 1.363636364 | U95: 1.476190476 | V95: 1.363636364 | W95: 1.409090909 | X95: 1.409090909 | Y95: 1.363636364 | Z95: 1.476190476 | AA95: 1.363636364 | AB95: 1.347826087 | AD95: =AD91/AD94 -> 1.398467433 | AI95: Indoor Tap Consumption | AK95: =(AK82)/(AK$84+AK$90) -> 
B96: Are there any greywater harvesting systems, and if so, do they comply with Local Authority requirements? | L96: 2 | M96: Drop-down output | AI96: Shower Consumption | AK96: =(AK83)/(AK$84+AK$90) -> 
B97: Greywater harvested is used for (please tick appropriate box(es)): | AD97: TOTALS | AI97: Irrigation Consumption | AK97: =(AK86)/(AK$84+AK$90) -> 
C98: Irrigation | E98: WC & Urinal Flushing | L98: Results of tick box at left | N98: Reused GW Supply (kL/day) | P98: Month | Q98: Jan | R98: Feb | S98: Mar | T98: Apr | U98: May | V98: Jun | W98: Jul | X98: Aug | Y98: Sep | Z98: Oct | AA98: Nov | AB98: Dec | AI98: Cooling Tower Consumption | AK98: =(AK87)/(AK$84+AK$90) -> 
C99: Cooling Tower | E99: Shower & Taps (treated to potable) | L99: FALSE | M99: FALSE | N99: =IF(L96=1,0,IF(L99,(T119/AX78)/1000,0)) -> 0 | O99: =IF(L96=1,0,IF(M99,(W119/AX78)/1000,0)) -> 0 | P99: Greywater Inflow (Taps) | Q99: =($N$103*Q94)/1000 -> 0 | R99: 0 | S99: 0 | T99: 0 | U99: 0 | V99: 0 | W99: 0 | X99: 0 | Y99: 0 | Z99: 0 | AA99: 0 | AB99: 0 | AD99: =SUM(Q99:AB99) -> 0 | AI99: Fire System Test Consumption | AK99: =(AK88)/(AK$84+AK$90) -> 
C100: Fire System Testing | E100: Other | L100: FALSE | M100: FALSE | N100: =IF(L96=1,0,IF(L100,(U119/AX78)/1000,0)) -> 0 | O100: =IF(L96=1,0,IF(M100,(X119/AX78)/1000,0)) -> 0 | P100: Greywater Inflow (Showers) | Q100: =($N$104*Q94)/1000 -> 0 | R100: 0 | S100: 0 | T100: 0 | U100: 0 | V100: 0 | W100: 0 | X100: 0 | Y100: 0 | Z100: 0 | AA100: 0 | AB100: 0 | AD100: =SUM(Q100:AB100) -> 0 | AI100: Other Consumption | AK100: =(AK89)/(AK$84+AK$90) -> 
B101: Percentage of indoor taps used for greywater collection | G101: 0 | L101: FALSE | M101: FALSE | N101: =IF(L96=1,0,IF(L101,(V119/AX78)/1000,0)) -> 0 | O101: =IF(L96=1,0,IF(M101,(Y119/AX78)/1000,0)) -> 0 | P101: Greywater Inflow (Other) | Q101: =($N$105*Q94)/1000 -> 0 | R101: 0 | S101: 0 | T101: 0 | U101: 0 | V101: 0 | W101: 0 | X101: 0 | Y101: 0 | Z101: 0 | AA101: 0 | AB101: 0 | AD101: =SUM(Q101:AB101) -> 0 | AI101: AMENITY/NON-AMENITY Consumption Breakdown
B102: Percentage of showers used for greywater collection | G102: 0 | N102: sum of all recycled water demand: | O102: =SUM(N99:O101) -> 0 | P102: Greywater TOTAL | Q102: =SUM(Q99:Q101) -> 0 | R102: 0 | S102: 0 | T102: 0 | U102: 0 | V102: 0 | W102: 0 | X102: 0 | Y102: 0 | Z102: 0 | AA102: 0 | AB102: 0 | AD102: =SUM(Q102:AB102) -> 0 | AI102: Non-Amenity | AK102: =(AK90)/(AK90+AK84) -> 
B103: Storage capacity of greywater tank(s) (kL) | G103: 0 | N103: =G101*P45 -> 0 | O103: L/day supply from taps | AI103: Amenity (Non-potable; WC & U) | AK103: =(AK80+AK81)/(AK84+AK90) -> 
B104: Other greywater Collection Sources | G104: L/day | N104: =G102*P54 -> 0 | O104: L/day supply from showers | P104: Recycled Greywater Demand (Amenity) | Q104: =($O$99+$O$100)*Q94 -> 0 | R104: 0 | S104: 0 | T104: 0 | U104: 0 | V104: 0 | W104: 0 | X104: 0 | Y104: 0 | Z104: 0 | AA104: 0 | AB104: 0 | AD104: =SUM(Q104:AB104) -> 0 | AE104: This is potable water offset | AI104: Amenity (Potable; S&T) | AK104: =(AK82+AK83)/(AK84+AK90) -> 
B105: <enter description here> | G105: 0 | N105: =SUM(G105:H108) -> 0 | O105: L/day from all other sources | P105: Recycled Greywater Demand (Non-Amenity) | Q105: =($N$99*Q91)+($N$100*Q94)+($N$101*Q94)+($O$101*Q94) -> 0 | R105: 0 | S105: 0 | T105: 0 | U105: 0 | V105: 0 | W105: 0 | X105: 0 | Y105: 0 | Z105: 0 | AA105: 0 | AB105: 0 | AD105: =SUM(Q105:AB105) -> 0 | AI105: RECYCLED WATER REUSE 1st PRIORITY - BLACKWATER
B106: <enter description here> | G106: 0 | N106: =IF(SUM(N103:N105)<(G103*1000),SUM(N103:N105),(G103*1000)) -> 0 | O106: Maximum L/day harvested (treated supply) | AI106: Total Blackwater Inflow/Resource (L) | AK106: =$N$124*AK78 -> 0 | AL106: 0 | AM106: 0 | AN106: 0 | AO106: 0 | AP106: 0 | AQ106: 0 | AR106: 0 | AS106: 0 | AT106: 0 | AU106: 0 | AV106: 0 | AX106: =SUM(AK106:AV106) -> 0
B107: <enter description here> | G107: 0 | N107: =SUM(O99:O100)*1000 -> 0 | O107: Amenity Potable(Mains) Water Reduction (L/day) | AI107: Selected Demands (Check Boxes) | AJ107: WCs & Urinals | AK107: =IF($M$115,(AK93+AK94),0) -> 0 | AL107: 0 | AM107: 0 | AN107: 0 | AO107: 0 | AP107: 0 | AQ107: 0 | AR107: 0 | AS107: 0 | AT107: 0 | AU107: 0 | AV107: 0
B108: <enter description here> | G108: 0 | AJ108: Showers & Taps | AK108: =IF($M$116,(AK96+AK95),0) -> 0 | AL108: 0 | AM108: 0 | AN108: 0 | AO108: 0 | AP108: 0 | AQ108: 0 | AR108: 0 | AS108: 0 | AT108: 0 | AU108: 0 | AV108: 0
B110: Predicted amenity potable(mains) water replacement due to greywater harvesting (L/day/m2): | G110: =IF(TYPE(N107/$H$4)=16,0,(N107/$H$4)) -> 0 | AJ110: Cooling Towers | AK110: =IF($L$116,AK98,0) -> 0 | AL110: 0 | AM110: 0 | AN110: 0 | AO110: 0 | AP110: 0 | AQ110: 0 | AR110: 0 | AS110: 0 | AT110: 0 | AU110: 0 | AV110: 0
N111: =IF(AND(L96=2,H4>0),IF(O102=0,0,IF(N106<=N107,(N103+N104+N105)/H4,((N107/N106)*(N103+N104))/H4)),0) -> 0 | O111: L/day/m2 greywater from fittings for sewage calculator | AJ111: Irrigation | AK111: =IF($L$115,AK97,0) -> 0 | AL111: 0 | AM111: 0 | AN111: 0 | AO111: 0 | AP111: 0 | AQ111: 0 | AR111: 0 | AS111: 0 | AT111: 0 | AU111: 0 | AV111: 0
B112: BLACKWATER HARVESTING | AJ112: Fire System | AK112: =IF($L$117,AK99,0) -> 0 | AL112: 0 | AM112: 0 | AN112: 0 | AO112: 0 | AP112: 0 | AQ112: 0 | AR112: 0 | AS112: 0 | AT112: 0 | AU112: 0 | AV112: 0
B113: Are there any blackwater harvesting systems, and if so, do they comply with Local Authority requirements? | L113: 2 | M113: Drop-down Output | AJ113: Other | AK113: =IF($M$117,AK100,0) -> 0 | AL113: 0 | AM113: 0 | AN113: 0 | AO113: 0 | AP113: 0 | AQ113: 0 | AR113: 0 | AS113: 0 | AT113: 0 | AU113: 0 | AV113: 0
B114: Blackwater harvested is used for (please tick appropriate box(es)): | L114: Results of tick box at left | N114: Reused BW Supply (kL/day) | AI114: Maximum BW Supply Quantities | AJ114: WCs & Urinals | AK114: =IF(SUM($AK$107:$AK$113)=0,0,IF(AK$106*(AK107/SUM($AK$107:$AK$113))<(AK80+AK81),AK$106*(AK107/SUM($AK$107:$AK$113)),(AK80+AK81))) -> 0 | AL114: 0 | AM114: 0 | AN114: 0 | AO114: 0 | AP114: 0 | AQ114: 0 | AR114: 0 | AS114: 0 | AT114: 0 | AU114: 0 | AV114: 0 | AX114: =SUM(AK114:AV114) -> 0 | AY114: =AX114/($AX$80+$AX$81) -> 
C115: Irrigation | E115: WC & Urinal Flushing | L115: FALSE | M115: FALSE | N115: =IF(L113=1,0,IF(L115,((T120/AX78)/1000),0)) -> 0 | O115: =IF(L113=1,0,IF(M115,(W120/AX78)/1000,0)) -> 0 | AJ115: Showers & Taps | AK115: =IF(SUM($AK$107:$AK$113)=0,0,IF(AK$106*(AK108/SUM($AK$107:$AK$113))<(AK82+AK83),AK$106*(AK108/SUM($AK$107:$AK$113)),(AK82+AK83))) -> 0 | AL115: 0 | AM115: 0 | AN115: 0 | AO115: 0 | AP115: 0 | AQ115: 0 | AR115: 0 | AS115: 0 | AT115: 0 | AU115: 0 | AV115: 0 | AX115: 0 | AY115: =AX115/($AX$82+$AX$83) -> 
C116: Cooling Tower | E116: Shower & Taps (treated to potable) | L116: FALSE | M116: FALSE | N116: =IF(L113=1,0,IF(L116,(U120/AX78)/1000,0)) -> 0 | O116: =IF(L113=1,0,IF(M116,(X120/AX78)/1000,0)) -> 0 | S116: Annual Maximum Non-Potable Demands & Supply Breakdown | AJ116: Cooling Towers | AK116: =IF(SUM($AK$107:$AK$113)=0,0,IF(AK$106*(AK110/SUM($AK$107:$AK$113))<(AK87),AK$106*(AK110/SUM($AK$107:$AK$113)),(AK87))) -> 0 | AL116: 0 | AM116: 0 | AN116: 0 | AO116: 0 | AP116: 0 | AQ116: 0 | AR116: 0 | AS116: 0 | AT116: 0 | AU116: 0 | AV116: 0 | AX116: 0 | AY116: =SUM(AX114:AX115) -> 0
C117: Fire System Testing | E117: Other | L117: FALSE | M117: FALSE | N117: =IF(L113=1,0,IF(L117,(V120/AX78)/1000,0)) -> 0 | O117: =IF(L113=1,0,IF(M117,(Y120/AX78)/1000,0)) -> 0 | S117: Harvesting for | T117: Irrigation | U117: Cooling T | V117: FS Testing | W117: WC & Us | X117: S & T | Y117: Other | AJ117: Irrigation | AK117: =IF(SUM($AK$107:$AK$113)=0,0,IF(AK$106*(AK111/SUM($AK$107:$AK$113))<(AK86),AK$106*(AK111/SUM($AK$107:$AK$113)),(AK86))) -> 0 | AL117: 0 | AM117: 0 | AN117: 0 | AO117: 0 | AP117: 0 | AQ117: 0 | AR117: 0 | AS117: 0 | AT117: 0 | AU117: 0 | AV117: 0 | AX117: 0
B118: Percentage of WC's used for blackwater collection | G118: 0 | N118: sum of all recycled water demand: | O118: =SUM(N115:O117) -> 0 | S118: Rainwater | T118: =AX179 ->  | U118: =AX178 ->  | V118: =AX180 ->  | W118: =AX176 ->  | X118: =AX177 ->  | Y118: =AX181 ->  | AJ118: Fire System | AK118: =IF(SUM($AK$107:$AK$113)=0,0,IF(AK$106*(AK112/SUM($AK$107:$AK$113))<(AK88),AK$106*(AK112/SUM($AK$107:$AK$113)),(AK88))) -> 0 | AL118: 0 | AM118: 0 | AN118: 0 | AO118: 0 | AP118: 0 | AQ118: 0 | AR118: 0 | AS118: 0 | AT118: 0 | AU118: 0 | AV118: 0 | AX118: 0
B119: Percentage of urinals used for blackwater collection | G119: 0 | N119: =G118*O19 -> 0 | O119: L/day supply from WCs | S119: Greywater | T119: =AX144 -> 0 | U119: =AX143 -> 0 | V119: =AX145 -> 0 | W119: =AX141 -> 0 | X119: =AX142 -> 0 | Y119: =AX146 -> 0 | AJ119: Other | AK119: =IF(SUM($AK$107:$AK$113)=0,0,IF(AK$106*(AK113/SUM($AK$107:$AK$113))<(AK89),AK$106*(AK113/SUM($AK$107:$AK$113)),(AK89))) -> 0 | AL119: 0 | AM119: 0 | AN119: 0 | AO119: 0 | AP119: 0 | AQ119: 0 | AR119: 0 | AS119: 0 | AT119: 0 | AU119: 0 | AV119: 0 | AX119: 0 | AY119: =SUM(AX116:AX119) -> 0
B120: Percentage of indoor taps used for blackwater collection | G120: 0 | N120: =G119*P34 -> 0 | O120: L/day supply from urinals | S120: Blackwater | T120: =AX117 -> 0 | U120: =AX116 -> 0 | V120: =AX118 -> 0 | W120: =AX114 -> 0 | X120: =AX115 -> 0 | Y120: =AX119 -> 0 | AI120: Make-up or Supply Required from Alternative Sources (Greywater, Rainwater &/or Stormwater) | AJ120: WCs & Urinals | AK120: =(AK80+AK81)-AK114 -> 0 | AL120: 0 | AM120: 0 | AN120: 0 | AO120: 0 | AP120: 0 | AQ120: 0 | AR120: 0 | AS120: 0 | AT120: 0 | AU120: 0 | AV120: 0 | AX120: 0 | AY120: =AX120/($AX$80+$AX$81) -> 
B121: Percentage of showers used for blackwater collection | G121: 0 | N121: =G120*P45 -> 0 | O121: L/day supply from taps | S121: Total Recycled Use | T121: =SUM(T118:T120) ->  | AJ121: Showers & Taps | AK121: =(AK82+AK83)-AK115 -> 0 | AL121: 0 | AM121: 0 | AN121: 0 | AO121: 0 | AP121: 0 | AQ121: 0 | AR121: 0 | AS121: 0 | AT121: 0 | AU121: 0 | AV121: 0 | AX121: 0 | AY121: =AX121/($AX$82+$AX$83) -> 
B122: Storage capacity of Blackwater tank (kL) | G122: 0 | N122: =G121*P54 -> 0 | O122: L/day supply from showers | S122: Total Actual Demand | T122: =AX86 -> 0 | U122: =AX87 -> 0 | V122: =AX88 -> 0 | W122: =AX80+AX81 -> 0 | X122: =AX82+AX83 -> 0 | Y122: =AX89 -> 0 | AJ122: Cooling Towers | AK122: =AK87-AK116 -> 0 | AL122: 0 | AM122: 0 | AN122: 0 | AO122: 0 | AP122: 0 | AQ122: 0 | AR122: 0 | AS122: 0 | AT122: 0 | AU122: 0 | AV122: 0 | AX122: 0 | AY122: =SUM(AX120:AX121) -> 0
B123: Other blackwater collection sources | G123: L/day | N123: =SUM(G124:H127) -> 0 | O123: L/day from all other sources | S123: % Supplied by Reused | T123: =IF(SUM(T118:T120)=0,0,(SUM(T118:T120))/T122) ->  | AJ123: Irrigation | AK123: =AK86-AK117 -> 0 | AL123: 0 | AM123: 0 | AN123: 0 | AO123: 0 | AP123: 0 | AQ123: 0 | AR123: 0 | AS123: 0 | AT123: 0 | AU123: 0 | AV123: 0 | AX123: 0
B124: <enter description here> | G124: 0 | N124: =IF(SUM(N119:N123)<(G122*1000),SUM(N119:N123),G122*1000) -> 0 | O124: Maximum L/day harvested (treated supply) | S124: Supp. Potable Mains | T124: =AX191 ->  | U124: =AX190 ->  | V124: =AX192 ->  | W124: =AX188 ->  | X124: =AX189 ->  | Y124: =AX193 ->  | AJ124: Fire System | AK124: =AK88-AK118 -> 0 | AL124: 0 | AM124: 0 | AN124: 0 | AO124: 0 | AP124: 0 | AQ124: 0 | AR124: 0 | AS124: 0 | AT124: 0 | AU124: 0 | AV124: 0 | AX124: 0
B125: <enter description here> | G125: 0 | N125: =(SUM(O115:O116)*1000) -> 0 | O125: Amenity Potable(Mains) Water Reduction (L/day) | AJ125: Other | AK125: =AK89-AK119 -> 0 | AL125: 0 | AM125: 0 | AN125: 0 | AO125: 0 | AP125: 0 | AQ125: 0 | AR125: 0 | AS125: 0 | AT125: 0 | AU125: 0 | AV125: 0 | AX125: 0 | AY125: =SUM(AX122:AX125) -> 0
B126: <enter description here> | G126: 0 | AI126: Alternative Supply Demand Breakdown (Greywater, Rainwater &/or Stormwater) | AJ126: WCs & Urinals | AK126: =AK120/(SUM(AK$120:AK$125)) -> 
B127: <enter description here> | G127: 0 | N127: =IF(AND($L$113=2,$H$4>0),IF(O118=0,0,(IF(N124<N125,(N119+N120+N121+N122+N123)/$H$4,((N125/N124)*(N119+N120+N121+N122))/$H$4))),0) -> 0 | O127: L/day/m2 blackwater from WCs, urinals, taps & showers for sewage calculator | AJ127: Showers & Taps | AK127: =AK121/(SUM(AK$120:AK$125)) -> 
AJ128: Cooling Towers | AK128: =AK122/(SUM(AK$120:AK$125)) -> 
B129: Predicted amenity potable(mains) water replacement due to blackwater harvesting (L/day/m2): | G129: =IF(TYPE(N125/$H$4)=16,0,N125/$H$4) -> 0 | AJ129: Cooling Towers | AK129: =AK122/(SUM(AK$120:AK$125)) -> 
AJ130: Irrigation | AK130: =AK123/(SUM(AK$120:AK$125)) -> 
B131: The following estimated total reductions in potable water consumption is based on the data entered above and does not represent actual reduction of water consumption in the building. | AJ131: Fire System | AK131: =AK124/(SUM(AK$120:AK$125)) -> 
B132: Total Predicted Reduction in Amenity Potable(Mains) Water Consumption | G132: =SUM(G134:H136) -> 0 | I132: L/day/m2 | AJ132: Other | AK132: =AK125/(SUM(AK$120:AK$125)) -> 
AI133: RECYCLED WATER REUSE 2nd PRIORITY - GREYWATER
B134: Rainwater | G134: =G93 -> 0 | I134: L/day/m2 | AI134: Total Greywater Inflow/Resource (L) | AK134: =AK78*$N$106 -> 0 | AL134: 0 | AM134: 0 | AN134: 0 | AO134: 0 | AP134: 0 | AQ134: 0 | AR134: 0 | AS134: 0 | AT134: 0 | AU134: 0 | AV134: 0 | AX134: =SUM(AK134:AV134) -> 0
B135: Greywater | G135: =G110 -> 0 | I135: L/day/m2 | AI135: Selected Demands (Check Boxes) | AJ135: WCs & Urinals | AK135: =IF($M$99,AK126,0) -> 0 | AL135: 0 | AM135: 0 | AN135: 0 | AO135: 0 | AP135: 0 | AQ135: 0 | AR135: 0 | AS135: 0 | AT135: 0 | AU135: 0 | AV135: 0
B136: Blackwater | G136: =G129 -> 0 | I136: L/day/m2 | AJ136: Showers & Taps | AK136: =IF($M$100,AK127,0) -> 0 | AL136: 0 | AM136: 0 | AN136: 0 | AO136: 0 | AP136: 0 | AQ136: 0 | AR136: 0 | AS136: 0 | AT136: 0 | AU136: 0 | AV136: 0
AJ137: Cooling Towers | AK137: =IF($L$100,AK129,0) -> 0 | AL137: 0 | AM137: 0 | AN137: 0 | AO137: 0 | AP137: 0 | AQ137: 0 | AR137: 0 | AS137: 0 | AT137: 0 | AU137: 0 | AV137: 0
AJ138: Irrigation | AK138: =IF($L$99,AK130,0) -> 0 | AL138: 0 | AM138: 0 | AN138: 0 | AO138: 0 | AP138: 0 | AQ138: 0 | AR138: 0 | AS138: 0 | AT138: 0 | AU138: 0 | AV138: 0
B139: PREDICTED RECYCLED WATER AVAILABLE | AJ139: Fire System | AK139: =IF($L$101,AK131,0) -> 0 | AL139: 0 | AM139: 0 | AN139: 0 | AO139: 0 | AP139: 0 | AQ139: 0 | AR139: 0 | AS139: 0 | AT139: 0 | AU139: 0 | AV139: 0
B140: The following estimated total predicted availability of water to fixtures is based on the data entered above and does not represent actual available water for consumption by fixtures within the building. | AJ140: Other | AK140: =IF($M$101,AK132,0) -> 0 | AL140: 0 | AM140: 0 | AN140: 0 | AO140: 0 | AP140: 0 | AQ140: 0 | AR140: 0 | AS140: 0 | AT140: 0 | AU140: 0 | AV140: 0
B141: Total Predicted Recycled Water Available | G141: =G132+G142 -> 0 | I141: L/day/m2 | AI141: Maximum GW Supply Quantities | AJ141: WCs & Urinals | AK141: =IF(SUM(AK$135:AK$140)=0,0,IF(AK$134*(AK135/(SUM(AK$135:AK$140)))<AK120,AK$134*(AK135/(SUM(AK$135:AK$140))),AK120)) -> 0 | AL141: 0 | AM141: 0 | AN141: 0 | AO141: 0 | AP141: 0 | AQ141: 0 | AR141: 0 | AS141: 0 | AT141: 0 | AU141: 0 | AV141: 0 | AX141: =SUM(AK141:AV141) -> 0 | AY141: =AX141/($AX$80+$AX$81) -> 
B142: Recycled Water used for other purposes (irrigation, cooling towers, fire system testing & 'other') | G142: =IF(TYPE(((T121+U121+V121+Y121)/AX78)/$H$4)=16,0,((T121+U121+V121+Y121)/AX78)/$H$4) -> 0 | I142: L/day/m2 | AJ142: Showers & Taps | AK142: =IF(SUM(AK$135:AK$140)=0,0,IF(AK$134*(AK136/(SUM(AK$135:AK$140)))<AK121,AK$134*(AK136/(SUM(AK$135:AK$140))),AK121)) -> 0 | AL142: 0 | AM142: 0 | AN142: 0 | AO142: 0 | AP142: 0 | AQ142: 0 | AR142: 0 | AS142: 0 | AT142: 0 | AU142: 0 | AV142: 0 | AX142: 0 | AY142: =AX142/($AX$82+$AX$83) -> 
B143: Total Predicted Recycled Water available to Fixtures | G143: =G132 -> 0 | I143: L/day/m2 | AJ143: Cooling Towers | AK143: =IF(SUM(AK$135:AK$140)=0,0,IF(AK$134*(AK137/(SUM(AK$135:AK$140)))<AK122,AK$134*(AK137/(SUM(AK$135:AK$140))),AK122)) -> 0 | AL143: 0 | AM143: 0 | AN143: 0 | AO143: 0 | AP143: 0 | AQ143: 0 | AR143: 0 | AS143: 0 | AT143: 0 | AU143: 0 | AV143: 0 | AX143: 0 | AY143: =SUM(AX141:AX142) -> 0
AJ144: Irrigation | AK144: =IF(SUM(AK$135:AK$140)=0,0,IF(AK$134*(AK138/(SUM(AK$135:AK$140)))<AK123,AK$134*(AK138/(SUM(AK$135:AK$140))),AK123)) -> 0 | AL144: 0 | AM144: 0 | AN144: 0 | AO144: 0 | AP144: 0 | AQ144: 0 | AR144: 0 | AS144: 0 | AT144: 0 | AU144: 0 | AV144: 0 | AX144: 0
AJ145: Fire System | AK145: =IF(SUM(AK$135:AK$140)=0,0,IF(AK$134*(AK139/(SUM(AK$135:AK$140)))<AK124,AK$134*(AK139/(SUM(AK$135:AK$140))),AK124)) -> 0 | AL145: 0 | AM145: 0 | AN145: 0 | AO145: 0 | AP145: 0 | AQ145: 0 | AR145: 0 | AS145: 0 | AT145: 0 | AU145: 0 | AV145: 0 | AX145: 0
B146: TOTAL REDUCED POTABLE WATER USE | M146: Changed to Retailm Centre benchmarks | AJ146: Other | AK146: =IF(SUM(AK$135:AK$140)=0,0,IF(AK$134*(AK140/(SUM(AK$135:AK$140)))<AK125,AK$134*(AK140/(SUM(AK$135:AK$140))),AK125)) -> 0 | AL146: 0 | AM146: 0 | AN146: 0 | AO146: 0 | AP146: 0 | AQ146: 0 | AR146: 0 | AS146: 0 | AT146: 0 | AU146: 0 | AV146: 0 | AX146: 0 | AY146: =SUM(AX143:AX146) -> 0
B147: TOTAL REDUCED POTABLE WATER USE
B148: Predicted Water Consumption from Fixtures | G148: =G58 -> 0 | I148: L/day/m2 | M148: L/day/m2 benchmark | O148: Credits | AI148: Make-up or Supply Required from Alternative Sources (Rainwater/Stormwater) | AJ148: WCs & Urinals | AK148: =AK120-AK141 -> 0 | AL148: 0 | AM148: 0 | AN148: 0 | AO148: 0 | AP148: 0 | AQ148: 0 | AR148: 0 | AS148: 0 | AT148: 0 | AU148: 0 | AV148: 0 | AX148: =SUM(AK148:AV148) -> 0 | AY148: =AX148/($AX$80+$AX$81) -> 
B149: Predicted Recycled/Harvested Water available to Fixtures | G149: =G143 -> 0 | I149: L/day/m2 | M149: No showers installed | N149: Showers for 3% of staff | AJ149: Showers & Taps | AK149: =AK121-AK142 -> 0 | AL149: 0 | AM149: 0 | AN149: 0 | AO149: 0 | AP149: 0 | AQ149: 0 | AR149: 0 | AS149: 0 | AT149: 0 | AU149: 0 | AV149: 0 | AX149: 0 | AY149: =AX149/($AX$82+$AX$83) -> 
B150: NET POTABLE (MAINS) WATER CONSUMPTION | G150: =ROUND(G148-G149,2) -> 0 | I150: L/day/m2 | M150: 0 | N150: 1 | AJ150: Cooling Towers | AK150: =AK122-AK143 -> 0 | AL150: 0 | AM150: 0 | AN150: 0 | AO150: 0 | AP150: 0 | AQ150: 0 | AR150: 0 | AS150: 0 | AT150: 0 | AU150: 0 | AV150: 0 | AX150: 0 | AY150: =SUM(AX148:AX149) -> 0
B151: POINTS ACHIEVED: | G151: =IF(OR(G20=0,G45=0),0,IF(TYPE(128/H4)=16,0,IF(G150>B160,0,IF(AND(G150>B159,G150<=B160),E160,IF(AND(G150>B158,G150<=B159),E159,IF(AND(G150>B157,G150<=B158),E158,IF(AND(G150>B156,G150<=B157),E157,E156))))))) -> 0 | M151: 0.14 | N151: 0.16 | O151: 5 | AJ151: Irrigation | AK151: =AK123-AK144 -> 0 | AL151: 0 | AM151: 0 | AN151: 0 | AO151: 0 | AP151: 0 | AQ151: 0 | AR151: 0 | AS151: 0 | AT151: 0 | AU151: 0 | AV151: 0 | AX151: 0
M152: 0.28 | N152: 0.3 | O152: 4 | AJ152: Fire System | AK152: =AK124-AK145 -> 0 | AL152: 0 | AM152: 0 | AN152: 0 | AO152: 0 | AP152: 0 | AQ152: 0 | AR152: 0 | AS152: 0 | AT152: 0 | AU152: 0 | AV152: 0 | AX152: 0
M153: 0.41 | N153: 0.43 | O153: 3 | AJ153: Other | AK153: =AK125-AK146 -> 0 | AL153: 0 | AM153: 0 | AN153: 0 | AO153: 0 | AP153: 0 | AQ153: 0 | AR153: 0 | AS153: 0 | AT153: 0 | AU153: 0 | AV153: 0 | AX153: 0 | AY153: =SUM(AX150:AX153) -> 0
B154: Wat-1 Occupant Amenity Water Predicted Potable Water Rating Benchmark | M154: 0.53 | N154: 0.56 | O154: 2 | AI154: Alternative Supply Demand Breakdown (Rainwater/Stormwater) | AJ154: WCs & Urinals | AK154: =(AK148/SUM(AK$148:AK$153)) -> 
B155: L/day/m2 | E155: Points achieved | M155: 0.65 | N155: 0.68 | O155: 1 | AJ155: Showers & Taps | AK155: =(AK149/SUM(AK$148:AK$153)) -> 
B156: =HLOOKUP(L55,M150:N155,2) -> 0.14 | E156: 5 | AJ156: Cooling Towers | AK156: =(AK150/SUM(AK$148:AK$153)) -> 
B157: =HLOOKUP(L55,M150:O155,3) -> 0.28 | E157: 4 | AJ157: Irrigation | AK157: =(AK151/SUM(AK$148:AK$153)) -> 
B158: =HLOOKUP(L55,M150:O155,4) -> 0.41 | E158: 3 | M158: % sewer reduction | N158: L/day/m2 benchmark ((L/day/person)/(m2/person)) | Q158: Credits | R158: Calc (0%) | S158: Calc (3%) | AJ158: Fire System | AK158: =(AK152/SUM(AK$148:AK$153)) -> 
B159: =HLOOKUP(L55,M150:O155,5) -> 0.53 | E159: 2 | N159: No showers installed | O159: Shower Demand (3%) | AJ159: Other | AK159: =(AK153/SUM(AK$148:AK$153)) -> 
B160: =HLOOKUP(L55,M150:O155,6) -> 0.65 | E160: 1 | AI160: RECYCLED WATER REUSE 3rd PRIORITY - RAINWATER & STORMWATER
M161: 0.9 | N161: 0.1 | O161: 0.14 | Q161: 4 | R161: =IF($G$150<N161,1,0) -> 1 | S161: 1 | AI161: Selected Demands (Check Boxes) | AJ161: WCs & Urinals | AK161: =IF($M$79,AK154,0) -> 0 | AL161: 0 | AM161: 0 | AN161: 0 | AO161: 0 | AP161: 0 | AQ161: 0 | AR161: 0 | AS161: 0 | AT161: 0 | AU161: 0 | AV161: 0
M162: 0.7 | N162: 0.3 | O162: 0.42 | Q162: 3 | R162: 1 | S162: 1 | AJ162: Showers & Taps | AK162: =IF($M$80,AK155,0) -> 0 | AL162: 0 | AM162: 0 | AN162: 0 | AO162: 0 | AP162: 0 | AQ162: 0 | AR162: 0 | AS162: 0 | AT162: 0 | AU162: 0 | AV162: 0
M163: 0.5 | N163: 0.5 | O163: 0.7 | Q163: 2 | R163: 1 | S163: 1 | AJ163: Cooling Towers | AK163: =IF($L$80,AK156,0) -> 0 | AL163: 0 | AM163: 0 | AN163: 0 | AO163: 0 | AP163: 0 | AQ163: 0 | AR163: 0 | AS163: 0 | AT163: 0 | AU163: 0 | AV163: 0
M164: 0.3 | N164: 0.7 | O164: 0.98 | Q164: 1 | R164: 1 | S164: 1 | AJ164: Irrigation | AK164: =IF($L$79,AK157,0) -> 0 | AL164: 0 | AM164: 0 | AN164: 0 | AO164: 0 | AP164: 0 | AQ164: 0 | AR164: 0 | AS164: 0 | AT164: 0 | AU164: 0 | AV164: 0
M165: 0 | N165: 1 | O165: 1.4 | AJ165: Fire System | AK165: =IF($L$81,AK158,0) -> 0 | AL165: 0 | AM165: 0 | AN165: 0 | AO165: 0 | AP165: 0 | AQ165: 0 | AR165: 0 | AS165: 0 | AT165: 0 | AU165: 0 | AV165: 0
R166: =SUM(R160:R165) -> 4 | S166: =SUM(S160:S165) -> 4 | AJ166: Other | AK166: =IF($M$81,AK159,0) -> 0 | AL166: 0 | AM166: 0 | AN166: 0 | AO166: 0 | AP166: 0 | AQ166: 0 | AR166: 0 | AS166: 0 | AT166: 0 | AU166: 0 | AV166: 0
AI167: Maximum RW & SW Demand Quantity | AJ167: WCs & Urinals | AK167: =(SUM(AK$148:AK$153)*AK161) -> 0 | AL167: 0 | AM167: 0 | AN167: 0 | AO167: 0 | AP167: 0 | AQ167: 0 | AR167: 0 | AS167: 0 | AT167: 0 | AU167: 0 | AV167: 0 | AX167: =SUM(AK167:AV167) -> 0 | AY167: =AX167/($AX$80+$AX$81) -> 
AJ168: Showers & Taps | AK168: =(SUM(AK$148:AK$153)*AK162) -> 0 | AL168: 0 | AM168: 0 | AN168: 0 | AO168: 0 | AP168: 0 | AQ168: 0 | AR168: 0 | AS168: 0 | AT168: 0 | AU168: 0 | AV168: 0 | AX168: 0 | AY168: =AX168/($AX$82+$AX$83) -> 
AJ169: Cooling Towers | AK169: =(SUM(AK$148:AK$153)*AK163) -> 0 | AL169: 0 | AM169: 0 | AN169: 0 | AO169: 0 | AP169: 0 | AQ169: 0 | AR169: 0 | AS169: 0 | AT169: 0 | AU169: 0 | AV169: 0 | AX169: 0 | AY169: =SUM(AX167:AX168) -> 0
AJ170: Irrigation | AK170: =(SUM(AK$148:AK$153)*AK164) -> 0 | AL170: 0 | AM170: 0 | AN170: 0 | AO170: 0 | AP170: 0 | AQ170: 0 | AR170: 0 | AS170: 0 | AT170: 0 | AU170: 0 | AV170: 0 | AX170: 0
AJ171: Fire System | AK171: =(SUM(AK$148:AK$153)*AK165) -> 0 | AL171: 0 | AM171: 0 | AN171: 0 | AO171: 0 | AP171: 0 | AQ171: 0 | AR171: 0 | AS171: 0 | AT171: 0 | AU171: 0 | AV171: 0 | AX171: 0
AJ172: Other | AK172: =(SUM(AK$148:AK$153)*AK166) -> 0 | AL172: 0 | AM172: 0 | AN172: 0 | AO172: 0 | AP172: 0 | AQ172: 0 | AR172: 0 | AS172: 0 | AT172: 0 | AU172: 0 | AV172: 0 | AX172: 0 | AY172: =SUM(AX169:AX172) -> 0
AI173: Total Monthly Rainwater/Stormwater Demand (L) | AK173: =SUM(AK167:AK172) -> 0 | AL173: 0 | AM173: 0 | AN173: 0 | AO173: 0 | AP173: 0 | AQ173: 0 | AR173: 0 | AS173: 0 | AT173: 0 | AU173: 0 | AV173: 0 | AX173: 0
AI174: Total Monthly Effective use of Harvest Water | AK174: =Q90*1000 -> 0 | AL174: 0 | AM174: 0 | AN174: 0 | AO174: 0 | AP174: 0 | AQ174: 0 | AR174: 0 | AS174: 0 | AT174: 0 | AU174: 0 | AV174: 0 | AX174: 0
AI175: % Utilisation | AK175: =AK174/AK173 ->  | AX175: =AX174/AX173 -> 
AI176: Supply of Effective Use to Demands | AJ176: WCs & Urinals | AK176: =(AK161/(SUM(AK$161:AK$166)))*AK$174 ->  | AX176: =SUM(AK176:AV176) -> 
AJ177: Showers & Taps | AK177: =(AK162/(SUM(AK$161:AK$166)))*AK$174 -> 
AJ178: Cooling Towers | AK178: =(AK163/(SUM(AK$161:AK$166)))*AK$174 -> 
AJ179: Irrigation | AK179: =(AK164/(SUM(AK$161:AK$166)))*AK$174 -> 
AJ180: Fire System | AK180: =(AK165/(SUM(AK$161:AK$166)))*AK$174 -> 
AJ181: Other | AK181: =(AK166/(SUM(AK$161:AK$166)))*AK$174 -> 
AI182: % of required demand met by effective Rainwater/Stormwater harvest | AJ182: WCs & Urinals | AK182: =IF(AK167>0,AK176/AK167,0) -> 0 | AL182: 0 | AM182: 0 | AN182: 0 | AO182: 0 | AP182: 0 | AQ182: 0 | AR182: 0 | AS182: 0 | AT182: 0 | AU182: 0 | AV182: 0 | AX182: =IF(AX167>0,AX176/AX167,0) -> 0
AJ183: Showers & Taps | AK183: =IF(AK168>0,AK177/AK168,0) -> 0 | AL183: 0 | AM183: 0 | AN183: 0 | AO183: 0 | AP183: 0 | AQ183: 0 | AR183: 0 | AS183: 0 | AT183: 0 | AU183: 0 | AV183: 0 | AX183: 0
AJ184: Cooling Towers | AK184: =IF(AK169>0,AK178/AK169,0) -> 0 | AL184: 0 | AM184: 0 | AN184: 0 | AO184: 0 | AP184: 0 | AQ184: 0 | AR184: 0 | AS184: 0 | AT184: 0 | AU184: 0 | AV184: 0 | AX184: 0
AJ185: Irrigation | AK185: =IF(AK170>0,AK179/AK170,0) -> 0 | AL185: 0 | AM185: 0 | AN185: 0 | AO185: 0 | AP185: 0 | AQ185: 0 | AR185: 0 | AS185: 0 | AT185: 0 | AU185: 0 | AV185: 0 | AX185: 0
AJ186: Fire System | AK186: =IF(AK171>0,AK180/AK171,0) -> 0 | AL186: 0 | AM186: 0 | AN186: 0 | AO186: 0 | AP186: 0 | AQ186: 0 | AR186: 0 | AS186: 0 | AT186: 0 | AU186: 0 | AV186: 0 | AX186: 0
AJ187: Other | AK187: =IF(AK172>0,AK181/AK172,0) -> 0 | AL187: 0 | AM187: 0 | AN187: 0 | AO187: 0 | AP187: 0 | AQ187: 0 | AR187: 0 | AS187: 0 | AT187: 0 | AU187: 0 | AV187: 0 | AX187: 0
AI188: Supplementary Potable (Mains) Water Required to Meet Demands | AJ188: WCs & Urinals | AK188: =AK148-AK176 ->  | AX188: =AX148-AX176 -> 
AJ189: Showers & Taps | AK189: =AK149-AK177 -> 
AJ190: Cooling Towers | AK190: =AK150-AK178 -> 
AJ191: Irrigation | AK191: =AK151-AK179 -> 
AJ192: Fire System | AK192: =AK152-AK180 -> 
AJ193: Other | AK193: =AK153-AK181 -> 

Sheet RET_WAT_DataExtract (hidden)
A1: Dictionary | B1: Value | C1: Key | D1: Note:
A2: Retail_Potable_Water_Normalised_WC_Consume | B2: ='Potable Water Calculator'!G20 -> 0 | C2: RPWNCWC | D2: L/day/m2
A3: Retail_Potable_Water_Normalised_Urinal_Consume | B3: ='Potable Water Calculator'!G35 -> 0 | C3: RPWNCU | D3: L/day/m2
A4: Retail_Potable_Water_Normalised_Tap_Consume | B4: ='Potable Water Calculator'!G45 -> 0 | C4: RPWNCT | D4: L/day/m2
A5: Retail_Potable_Water_Normalised_Shower_Consume | B5: ='Potable Water Calculator'!G55 -> 0 | C5: RPWNCS | D5: L/day/m2
A6: Retail_Potable_Water_Amenity_Consume | B6: ='Potable Water Calculator'!G58 -> 0 | C6: RPWNCA | D6: L/day/m2
A7: Retail_Potable_Water_Harvesting_Area | B7: ='Potable Water Calculator'!G82 -> 0 | C7: RPWHA | D7: m2
A8: Retail_Potable_Water_Harvesting_Storage | B8: ='Potable Water Calculator'!G83 -> 0 | C8: RPWHS | D8: kL
A9: Retail_Potable_Water_Replacement_Rainwater | B9: ='Potable Water Calculator'!G93 -> 0 | C9: RPWRR | D9: L/day/m2
A10: Retail_Potable_Water_Replacement_Greywater | B10: ='Potable Water Calculator'!G110 -> 0 | C10: RPWRG | D10: L/day/m2
A11: Retail_Potable_Water_Replacement_Blackwater | B11: ='Potable Water Calculator'!G129 -> 0 | C11: RPWRB | D11: L/day/m2
A12: Retail_Potable_Water_Amenity_Reduce | B12: ='Potable Water Calculator'!G132 -> 0 | C12: RPWAR | D12: L/day/m2
A13: Retail_Potable_Water_Predicted_Recycled | B13: ='Potable Water Calculator'!G141 -> 0 | C13: RPWPR | D13: L/day/m2
A14: Retail_Potable_Water_Predicted_Recycled_for_Fixtures | B14: ='Potable Water Calculator'!G143 -> 0 | C14: RPWPF | D14: L/day/m2
A15: Retail_Potable_Water_Predicted_Recycled_for_Other | B15: ='Potable Water Calculator'!G142 -> 0 | C15: RPWPO | D15: L/day/m2
A16: Retail_Potable_Water_Nett_Mains_Consumption | B16: ='Potable Water Calculator'!G151 -> 0 | C16: RPWNMC | D16: L/day/m2
A17: Retail_Potable_Water_1_Points | B17: ='Potable Water Calculator'!G151 -> 0

Sheet Materials
A1: ='Building Input'!B1 -> Green Star SA - Retail Centre v1 | F1: Category Weighting: | G1: ='Credit Summary'!J70 -> 0.13 | H1: Category Weighted Score
A2: Materials | D2: Category Summary: | E2: =E29 -> 23 | F2: =F29 -> 0 | G2: =G29 -> 0 | H2: ='Credit Summary'!K70 -> 0
A3: Credit Summary for: | C3: =IF('Building Input'!$C$5=0,"",'Building Input'!$C$5) ->  | F3: =IF(OR((I3=Calculation1!$B$84),(I3=Calculation1!$B$85),((F2+G2)>E2)),Calculation1!$B$86,"") ->  | I3: =T(I5:I28) -> 
A4: Ref No. | B4: Title | C4: Aim of Credit | D4: Credit Criteria Summary | E4: No. of Points Available | F4: No. of Points Achieved | G4: Points to be Confirmed | H4: Comments
A5: Mat-1 | B5: Recycling Waste Storage | C5: To encourage and recognise the inclusion of storage space that facilitates the recycling of resources used within buildings to reduce waste going to disposal. | D5: Two points are awarded where a dedicated storage area for the separation and collection of recyclables from tenancies and common areas is provided and it: • Is adequately sized to handle the collection and sorting of all waste streams specified in the Basic List, and a minimum of two items selected from the Additional List. Basic List - paper, cardboard, plastic, glass, metal; Additional List - cooking oils, compostable organic material, fluorescent & CFLs, batteries, motor oil. • Meets the access requirements under additional guidance in the Green Star SA - Retail Centre v1 Technical Manual. • Includes a holding area for items of re-use. • Is separate from, but adjacent to, general waste facilities. • Is located in the same level as the loading dock with a clearly marked, sign-posted, convenient and guaranteed access route which allows level access from tenancies (or goods lifts are provided) and avoids the need for manual handling of the waste. | E5: 2 | I5: =IF(OR(ISTEXT(F5)=TRUE,ISTEXT(G5)=TRUE),Calculation1!$B$87,IF(F5+G5>E5,Calculation1!$B$84,"")) -> 
A6: Mat-2 | B6: Building Reuse | C6: To encourage and recognise developments that reuse existing buildings to minimise materials consumption. | D6: Five points are available as follows: • Two points are awarded where it is demonstrated that at least 50% of the total façade of the building by area, comprises re-used building façade. • Up to three points are awarded where a proportion of the existing major structure, by gross building volume, is re-used: – One point for 30% re-use; – Two points for 60% re-use; – Three points for 90% re-use. Where the site contained no buildings at the time of purchase, or the total GFA of the original building(s) is less than 20% of the GFA of the new building that replaces it, this credit is ‘Not Applicable’ and is excluded from the Points Available used to calculate the Materials Category Score.Type ‘na’ in the appropriate 'No. of Points Achieved' column of the rating tool. | E6: =IF(F6="na",0,5) -> 5 | I6: =IF(ISBLANK(F6),IF(G6>E6,Calculation1!$B$84,""),IF(F6="na","",IF(OR(F6="na",ISNUMBER(F6)),IF(F6+G6>E6,Calculation1!$B$84,""),Calculation1!$B$85))) -> 
A7: Mat-3 | B7: Recycled Content & Re-Used Materials | C7: To encourage and recognise designs that prolong the useful life of existing products and materials and encourage uptake of products with recycling content. | D7: Up to three points are awarded as follows: One point where at least 1% of the project’s total contract value is represented by re-used products/materials. Up to two points are awarded for use of material with recycled content as follows: One point where the total value of recycled material content represents 1% of the total contract value. Two points where the total value of recycled material content represents 2% of the total contract value. | E7: 1 | I7: =IF(OR(ISTEXT(F7)=TRUE,ISTEXT(G7)=TRUE),Calculation1!$B$87,IF(F7+G7>E7,Calculation1!$B$84,"")) -> 
D8: The value of recycled material content is calculated by multiplying the material cost of products containing recycled content by the percentage of recycled content (both post-consumer and pre-consumer) and summing all the results. This credit excludes materials specifically addressed by other credits (i.e. steel, concrete, and timber); neither does it address the reuse of the original building(s) on the site (addressed in Mat-2 ‘Building Reuse’). Only materials or products permanently installed on the project site are eligible. Mechanical, electrical, plumbing components and specialty items such as elevators and equipment must be excluded from the compliant materials total. | E8: 2 | I8: =IF(OR(ISTEXT(F8)=TRUE,ISTEXT(G8)=TRUE),Calculation1!$B$87,IF(F8+G8>E8,Calculation1!$B$84,"")) -> 
A9: Mat-4 | B9: Shell and Core or Integrated Fitout | D9: This credit is not relevant to the Green Star SA Retail Centre v1 tool | E9: X | F9: X | G9: X
A10: Mat-5 | B10: Concrete | C10: To encourage and recognise the reduction of embodied energy and resource depletion occurring through use of concrete. | D10: Three points are available as follows: Up to two points are available where the project has reduced the absolute quantity of Portland cement, as an average across all concrete mixes, by substituting it with industrial waste product(s) or oversized aggregate as follows: • For 1 point, 30% for in-situ concrete, 20% for precast concrete and 15% for stressed concrete; OR • For 2 points, 60% for in-situ concrete, 40% for precast concrete and 30% for stressed concrete. | E10: =IF(OR(F10="na",F11="na"),0,2) -> 2 | I10: =IF(ISBLANK(F10),IF(G10>E10,Calculation1!$B$84,""),IF(F10="na","",IF(OR(F10="na",ISNUMBER(F10)),IF(F10+G10>E10,Calculation1!$B$84,""),Calculation1!$B$85))) -> 
D11: An additional point is awarded where: • At least one of the above points is achieved; AND • 10% of all aggregate used for structural purposes is recycled (Class 1 RCA in accordance with Australian standard HB155-2002) or slag aggregate; AND • No natural aggregates are used in non-structural uses (e.g. building base course, sub-grade to any car parks and footpaths, backfilling to service trenches, kerb and gutter). If the material cost of new concrete represents less than 1% of the project’s contract value, this credit is ‘Not Applicable’ and is excluded from the Points Available, used to calculate the Materials Category Score. Type ‘na’ in the appropriate 'No. of Points Achieved' column of the rating tool. | E11: =IF(OR(F10="na",F11="na"),0,1) -> 1 | I11: =IF(ISBLANK(F11),IF(G11>E11,Calculation1!$B$84,""),IF(F11="na","",IF(OR(F11="na",ISNUMBER(F11)),IF(F11+G11>E11,Calculation1!$B$84,""),Calculation1!$B$85))) -> 
A12: Mat-6 | B12: Steel | C12: To encourage and recognise the reduction in embodied energy and resource depletion associated with reduced use of virgin steel. | D12: Up to three points are awarded as follows: One point is awarded where: • In a predominantly structural steel building, the average post-consumer recycled content of the structural steel, by mass, is at least 24% (i.e. 60% of the structural steel has a recycled content of 40%) or at least 60% of the structural steel by mass, is reused. OR • In a predominantly reinforced concrete building, the average post-consumer recycled content of the steel reinforcing, by mass, is at least 54% (i.e. 60% of the steel reinforcing by mass has a recycled content of 90%), or at least 60% of the steel reinforcing by mass, is reused. | E12: =IF(OR(F12="na",F13="na"),0,1) -> 1 | I12: =IF(ISBLANK(F12),IF(G12>E12,Calculation1!$B$84,""),IF(F12="na","",IF(OR(F12="na",ISNUMBER(F12)),IF(F12+G12>E12,Calculation1!$B$84,""),Calculation1!$B$85))) -> 
D13: Two additional points are awarded where • the average post-consumer recycled content of all steel (total of structural steel, steel reinforcing and steel products), by mass is at least 54% (i.e. 60% of the total steel has a recycled content of 90%), or at least 90% of all the steel by mass on the project is reused. If the material cost of steel represents less than 1% of the project’s contract value, this credit is ‘Not Applicable’ and is excluded from the Points Available, used to calculate the Materials Category Score. Type ‘na’ in the appropriate 'No. of Points Achieved' column of the rating tool. | E13: =IF(OR(F12="na",F13="na"),0,2) -> 2 | I13: =IF(ISBLANK(F13),IF(G13>E13,Calculation1!$B$84,""),IF(F13="na","",IF(OR(F13="na",ISNUMBER(F13)),IF(F13+G13>E13,Calculation1!$B$84,""),Calculation1!$B$85))) -> 
A14: Mat-7 | B14: PVC Minimisation | C14: To encourage and recognise the reduction in use of Poly Vinyl Chloride (PVC) products in South African buildings. | D14: One point is awarded where: 30% of the total cost of PVC content is reduced through replacement with alternative materials. | E14: 1 | I14: =IF(OR(ISTEXT(F14)=TRUE,ISTEXT(G14)=TRUE),Calculation1!$B$87,IF(F14+G14>E14,Calculation1!$B$84,"")) -> 
A15: Mat-8 | B15: Sustainable Timber | C15: To encourage and recognise the specification of reused timber products or timber that has certified environmentally-responsible forest management practices. | D15: Two points are available as follows: One point is awarded where 50% (by cost) of all timber products used in the building and construction works have been sourced from any combination of the following: - Reused timber; - Post-consumer recycled timber; or - Forest Stewardship Council (FSC) Certified Timber. An additional point is awarded where 95% (by cost) of all timber products used in the building and construction works satisfy the abovementioned sourcing criteria. If the material cost of timber represents less than 0.1% of the project’s total contract value then this credit is ‘Not Applicable’ and is excluded from the Points Available, used to calculate the Materials Category Score. Type 'na' in the No. of Points Achieved column. | E15: =IF(F15="na",0,2) -> 2 | I15: =IF(ISBLANK(F15),IF(G15>E15,Calculation1!$B$84,""),IF(F15="na","",IF(OR(F15="na",ISNUMBER(F15)),IF(F15+G15>E15,Calculation1!$B$84,""),Calculation1!$B$85))) -> 
A16: Mat-9 | B16: Design for Disassembly | C16: To encourage and recognise designs that minimise the embodied energy and resources associated with demolition. | D16: One point is awarded where: - 50% (by area) of the structural framing, roofing, and façade cladding systems are designed for disassembly. OR - 95% of the total façade is designed for disassembly. If the material cost of the structural framing, roofing, and façade cladding systems represent less than 1% of the project’s total contract value, this credit is ‘Not Applicable’ and is excluded from the Points Available, used to calculate the Materials Category Score. Type 'na' in the No. of Points Achieved column. | E16: =IF(F16="na",0,1) -> 1 | I16: =IF(ISBLANK(F16),IF(G16>E16,Calculation1!$B$84,""),IF(F16="na","",IF(OR(F16="na",ISNUMBER(F16)),IF(F16+G16>E16,Calculation1!$B$84,""),Calculation1!$B$85))) -> 
A17: Mat-10 | B17: Dematerialisation | C17: To encourage and recognise designs that produce a net reduction in the total amount of material used. | D17: One point is available where a substantial reduction in materials consumption occurs as follows: Where it is demonstrated that the building’s structural requirements and integrity have been achieved using 20% less structural steel (by mass) OR 20% less concrete and reinforcing/stressing steel (by mass), OR 20% less timber (by volume) than in a structure with conventional steel, concrete or timber framing, without changing the load path to other structural components. OR | E17: 1 | I17: =IF(OR(ISTEXT(F17)=TRUE,ISTEXT(G17)=TRUE),Calculation1!$B$87,IF(F17+G17>E17,Calculation1!$B$84,"")) -> 
D18: Where any two of the initiatives below are demonstrated: Structure Where it is demonstrated that the building’s structural requirements and integrity have been achieved using 10% less structural steel (by mass) OR 10% less concrete and reinforcing/stressing steel (by mass), OR 10% less timber (by volume) than in a structure with conventional steel, concrete or timber framing, without changing the load path to other structural components.
D19: Ductwork (related to the nominated area as per IEQ credits) The building is fully naturally ventilated; OR The requirement for ductwork has been reduced by 95%.
D20: Building Efficiency For new buildings, where it is demonstrated that Building Efficiency, defined as the ratio of the total UA over the total GFA, is at least 85%.
D21: Finishes 95% of all base building floor material is exposed structure with no covering (e.g. exposed sealed concrete floor); OR 95% of all base building ceiling is exposed structure (and services, where relevant) with no cladding (e.g. exposed concrete ceiling).
D22: Cladding 25% of the roof cladding area has a dual function (e.g. roof garden substrate or photovoltaic shingles serve as cladding); OR 25% of the façade cladding area has a dual function (e.g. photovoltaic panels serve as cladding).
D23: Piping No supply piping is used for urinals (i.e. all urinals are waterfree); OR No supply piping is used for toilets (i.e. all toilets are waterfree); OR Mass of underground piping is reduced by 25% for the same functional requirement and material.
D24: Building Efficiency For new buildings, where it is demonstrated that Building Efficiency, defined as the ratio of the total UA over the total GFA, is at least 85%.
D25: Finishes 95% of all base building floor material is exposed structure with no covering (e.g. exposed sealed concrete floor); OR 95% of all base building ceiling is exposed structure (and services, where relevant) with no cladding (e.g. exposed concrete ceiling).
D26: Cladding 25% of the roof cladding area has a dual function (e.g. roof garden substrate or photovoltaic shingles serve as cladding); OR 25% of the façade cladding area has a dual function (e.g. photovoltaic panels serve as cladding).
D27: Piping No supply piping is used for urinals (i.e. all urinals are waterfree); OR No supply piping is used for toilets (i.e. all toilets are waterfree); OR Mass of underground piping is reduced by 25% for the same functional requirement and material.
A28: Mat-11 | B28: Local Sourcing | C28: To encourage and recognise the environmental advantages gained, in the form of reduced transportation emissions, by using materials and products that are sourced within close proximity to the site. | D28: Up to two points are awarded as follows: One point is awarded where: - 20% of the total contract value is represented by materials or products (used in the construction of the project) that have been sourced from within 400 km of the site. One point is awarded where: - 10% of the total contract value is represented by materials or products (used in the construction of the project) that have been sourced from within 50 km of the site. Only materials or products permanently installed on the project site are eligible and must have been extracted, harvested, recovered, as well as manufactured within the above noted radii of the site in order to qualify for the credit. Mechanical, electrical and plumbing components and specialty items such as elevators and equipment must be excluded from the local materials total. | E28: 2 | I28: =IF(OR(ISTEXT(F28)=TRUE,ISTEXT(G28)=TRUE),Calculation1!$B$87,IF(F28+G28>E28,Calculation1!$B$84,"")) -> 
E29: =SUM(E5:E28) -> 23 | F29: =SUM(F5:F28) -> 0 | G29: =SUM(G5:G28) -> 0
A33: =Calculation1!$B$93 -> Project Teams are to refer to the Green Star SA Retail Centre v1 Technical Manual for explicit credit criteria and documentation requirements.
A34: =Calculation1!$B$94 -> The Green Star Technical Clarifications (TC) and Credit Interpretation Request (CIR) rulings provide an essential source of information to all
A35: =Calculation1!$B$95 -> projects undertaking Green Star assessment. They are available on the GBCSA website http://www.gbcsa.org.za . Technical Clarifications
A36: =Calculation1!$B$96 -> often represent the GBCSA answers to technical queries and complement Green Star SA Technical Manuals. They do not amend but clarify
A37: =Calculation1!$B$97 -> Credit Criteria or Compliance Requirements. They are an extension of the Technical Manual; it is the responsibility of the project teams to stay
A38: =Calculation1!$B$98 -> up-to-date with this section of the GBCSA website. The CIR rulings offer alternative compliance options whenever those have been deemed
A39: =Calculation1!$B$99 -> equivalent in meeting the Aim of Credit.

Sheet Land Use & Ecology
A1: =Management!A1 -> Green Star SA - Retail Centre v1 | F1: Category Weighting: | G1: ='Credit Summary'!J79 -> 0.07 | H1: Category Weighted Score
A2: Land Use & Ecology | D2: Category Summary: | E2: =E13 -> 11 | F2: =F13 -> 0 | G2: =G13 -> 0 | H2: ='Credit Summary'!K79 -> 0 | O2: No
A3: Credit Summary for: | C3: =IF('Building Input'!$C$5=0,"",'Building Input'!$C$5) ->  | F3: =IF(OR((I3=Calculation1!$B$84),(I3=Calculation1!$B$85),((F2+G2)>E2)),Calculation1!$B$86,"") ->  | I3: =T(I8:I12) -> 
A4: Ref No. | B4: Title | C4: Aim of Credit | D4: Credit Criteria Summary | E4: No. of Points Available | F4: No. of Points Achieved | G4: Points to be Confirmed | H4: Comments
A5: Eco- | B5: Conditional Requirement | C5: To encourage and recognise development on land that has limited ecological value and to discourage development on ecologically valuable sites. | D5: The Eco-Conditional Requirement is met where the project development footprint • Is not located on prime agricultural land. Refurbishments/redevelopments that remain within the existing development footprint are exempt from this criterion; • Is not located on vegetation of high ecological value or within a 100 metre buffer of vegetation of high ecological value. Refurbishments/redevelopments that remain within the existing development footprint are exempt from this criterion; • Is not located on land with confirmed presence or high probability of threatened red listed species, or within a defined buffer relevant to the specific threatened red listed species or habitat found. Refurbishments/redevelopments that remain within the existing development footprint are exempt from this criterion; and | E5: Conditional Requirement Achieved? | G5: =IF(O2="Yes",O25,O26) -> Eco- Conditional Requirement NOT met | H5: =IF(O2="Yes",O28,O29) -> The project team acknowledges that the design does NOT meet the conditional requirements as stipulated in the Green Star SA Retail Centre v1 Technical Manual. This Green Star SA project is therefore NOT eligible for formal certification by the GBCSA. Please refer to the Technical Manual for further information.
D6: • Is not located within the required buffer zones of watercourses: - The project development footprint must not fall within the 100 year floodplain. - Watercourses of ‘high ecological value’: A project’s development footprint can be located on land within a 100 metre buffer of a watercourse of ‘high ecological value’ only if the building is a refurbishment that remains within the existing development footprint and the Watercourse Protection Measures (outlined below) have been completed.; or - Watercourses NOT of ‘high ecological value’: A project’s development footprint can be located on land within 100 metres of a watercourse that is NOT of ‘high ecological value’ only if the Watercourse Protection Measures (outlined below) have been completed
D7: Watercourse Protection Measures • A site-specific Watercourse Management Plan has been produced, exhibited and, for an As Built submission, implemented; and • All points are achieved in Emi-5 ‘Watercourse Pollution’ and in Emi-7 ‘Light Pollution’. The project must abide by all measures in the Environmental Impact Assessment for the project if one is required, and the GBCSA reserves the right to provide the final ruling on a project’s compliance with this Conditional Requirement.
A8: Eco-1 | B8: Topsoil | C8: To encourage and recognise construction practices that preserve the ecological integrity of topsoil. | D8: One point is awarded where: - All topsoil impacted by the construction works is separated and protected from degradation, erosion or mixing with fill or waste; AND where at project completion: - Protected topsoil is spread over impacted areas to a minimum depth of 200mm and a maximum depth of 600mm and any remaining protected topsoil is transported to the nearest land holding of the same soil classification that requires rehabillitation and is deposited under the supervision of an ecologist. AND where protected topsoil remaining on site is productive. Where no topsoil was impacted by the construction works, this credit is ‘Not Applicable’ and is excluded from the points available, used to calculate the Land Use & Ecology Category Score. Type 'na' in the No. of Points Achieved column. | E8: =IF(F8="na",0,1) -> 1 | I8: =IF(ISBLANK(F8),IF(G8>E8,Calculation1!$B$84,""),IF(F8="na","",IF(OR(F8="na",ISNUMBER(F8)),IF(F8+G8>E8,Calculation1!$B$84,""),Calculation1!$B$85))) -> 
A9: Eco-2 | B9: Reuse of Land | C9: To encourage and recognise the reuse of land that has previously been developed and where the site is within an existing municipally approved urban edge. | D9: Two points are available as follows: One point is awarded where: - The project is a refurbishment or a building extension; OR - At the time of the site purchase, 75% of the site had been previously built on. An additional point is awarded if the site is located within a municipally approved urban edge. | E9: 2 | I9: =IF(OR(ISTEXT(F9)=TRUE,ISTEXT(G9)=TRUE),Calculation1!$B$87,IF(F9+G9>E9,Calculation1!$B$84,"")) -> 
A10: Eco-3 | B10: Reclaimed Contaminated Land | C10: To encourage and recognise developments that reclaim contaminated land that otherwise would not have been developed. | D10: Two points are awarded where: - The site was contaminated at the time of purchase; AND - The developer has undertaken full remedial steps to decontaminate the site prior to construction. This credit is ‘Not Applicable’ for projects that are refurbishments or building extensions, and is excluded from the points available, used to calculate the Land Use & Ecology Category Score. Type 'na' in the No. of Points Achieved column. | E10: =IF(F10="na",0,2) -> 2 | I10: =IF(ISBLANK(F10),IF(G10>E10,Calculation1!$B$84,""),IF(F10="na","",IF(OR(F10="na",ISNUMBER(F10)),IF(F10+G10>E10,Calculation1!$B$84,""),Calculation1!$B$85))) -> 
A11: Eco-4 | B11: Change of Ecological Value | C11: To encourage and recognise developments that maintain or enhance the ecological value of their sites. | D11: Up to four points are awarded where: - For greenfield sites, the site has no threatened or vulnerable species or sensitive ecological units and for reused sites (e.g. refurbishments), such species and ecological units are adequately protected if present; AND - There is no net reduction of native vegetation; AND - There is no change in sensitivity class through transformation of, or reduction in extent of, threatened vegetation types; AND - The ecological value of the site is either not diminished, or is enhanced beyond its previously existing state. The points are determined by the Green Star SA Change of Ecological Value Calculator. | E11: 4 | F11: ='Ecology Calculator'!J3 -> 0 | I11: =IF(OR(ISTEXT(F11)=TRUE,ISTEXT(G11)=TRUE),Calculation1!$B$87,IF(F11+G11>E11,Calculation1!$B$84,"")) -> 
A12: Eco-5 | B12: Urban Heat Island | C12: To reduce 'urban' heat islands to subsequently minimise impacts on microclimates and human and wildlife habitats. | D12: Two points are available as follows: One point is awarded where: The project uses any combination of the following strategies for 50% of the site hardscape (including roads, sidewalks, courtyards and parking lots, but excluding roofs): • Provide shade by using vegetation, • Provide shade using structures with a solar reflectance index (SRI) of at least 29 or covered by solar energy systems. • Use hardscape materials with an SRI of at least 29. • Use an open-grid pavement system (at least 50% pervious). One point is awarded where: The project uses roofing materials with a solar reflectance index (SRI) equal to or greater than 78 for low-sloped roofs (<10 degree pitch) or 29 for steep-sloped roofs (>=10 degree pitch) for a minimum of 75% of the roof surface. OR The project installs a vegetated roof that covers at least 50% of the roof area. OR The project installs roofing meeting the SRI requirements and vegetated roof surfaces that, in combination, meet the following criteria: (roof area meeting minimum SRI)/0.75 + (area of vegetative roof)/0.5 >= Total roof area Roof area meeting minimum SRI + Area of vegetated roof > Total roof area 0.75 0.5 | E12: 2 | I12: =IF(OR(ISTEXT(F12)=TRUE,ISTEXT(G12)=TRUE),Calculation1!$B$87,IF(F12+G12>E12,Calculation1!$B$84,"")) -> 
D13: Total Points: | E13: =SUM(E8:E12) -> 11 | F13: =SUM(F8:F12) -> 0 | G13: =SUM(G8:G12) -> 0
A17: =Calculation1!$B$93 -> Project Teams are to refer to the Green Star SA Retail Centre v1 Technical Manual for explicit credit criteria and documentation requirements.
A18: =Calculation1!$B$94 -> The Green Star Technical Clarifications (TC) and Credit Interpretation Request (CIR) rulings provide an essential source of information to all
A19: =Calculation1!$B$95 -> projects undertaking Green Star assessment. They are available on the GBCSA website http://www.gbcsa.org.za . Technical Clarifications
A20: =Calculation1!$B$96 -> often represent the GBCSA answers to technical queries and complement Green Star SA Technical Manuals. They do not amend but clarify
A21: =Calculation1!$B$97 -> Credit Criteria or Compliance Requirements. They are an extension of the Technical Manual; it is the responsibility of the project teams to stay | O21: Options | Q21: Result
A22: =Calculation1!$B$98 -> up-to-date with this section of the GBCSA website. The CIR rulings offer alternative compliance options whenever those have been deemed | O22: Yes | Q22: FALSE
A23: =Calculation1!$B$99 -> equivalent in meeting the Aim of Credit. | O23: No | Q23: TRUE
O25: Eco- Conditional Requirement met
O26: Eco- Conditional Requirement NOT met
O28: The project team acknowledges that the design meets the conditional requirements as stipulated in the Green Star SA Retail Centre v1 Technical Manual. Green Star SA projects are only eligible for formal certification by the GBCSA when ALL Eligibility Criterion (and Conditional Requirements) are met. Please refer to the Technical Manual for further information.
O29: The project team acknowledges that the design does NOT meet the conditional requirements as stipulated in the Green Star SA Retail Centre v1 Technical Manual. This Green Star SA project is therefore NOT eligible for formal certification by the GBCSA. Please refer to the Technical Manual for further information.

Sheet Ecology Calculator
B2: ='Building Input'!B1 -> Green Star SA - Retail Centre v1
B3: Change In Ecology Calculator | F3: Points Achieved: | J3: =F45 -> 0 | L3: THESE COLUMNS ARE HIDDEN
B6: Notes & Instructions:
B7: 1. User must enter values into white cells ONLY. | I7: ='Building Input'!C36 -> 0 | K7: 1 | L7: Hours of operation | M7: =VLOOKUP($K7,$K178:$M181,3) ->  | N7: Potable water factor
B8: 2. Refer to the Technical Manual for additional instructions. | I8: =I7/60 -> 0
I9: =I7*0.3 -> 0
B11: Does the site contain any rare, threatened or vulnerable flora or fauna? | G11: =IF(M19=2,"If yes then no credits awarded","") -> 
L13: =VLOOKUP(O14,M55:N106,2) -> Western Gariep
B14: In which bio-region is the site located? | L14: =INDEX(INDIRECT(SUBSTITUTE(L13," ","_")),O16,0) -> West Gariep Hills Desert | O14: 48
B16: In which vegetation type is the site located? | O16: 3
M19: 1 | O19: 1 | P19: No
O20: 2 | P20: Yes
C22: Hidden | D22: Hidden | E22: Hidden | F22: BEFORE | H22: AFTER
B23: Land Type | C23: Greenfields/ Brownfields | D23: Before Sensitivity weighting | E23: Ecological Value | F23: Land Types Before Construction / m2 | G23: Ecological Score | H23: Land Types After Construction / m2 | I23: After Sensitivity weighting | J23: Ecological Score | P23: Sensitivity Category | Q23: Importance Factor | S23: Change in ecological diversity index | T23: Credit calculation limits | U23: Credits
B24: Building | C24: =IF(AND($L$13="Urban Area and Unallocated",$L$14="Brownfield Site"),2,1) -> 1 | D24: 1 | E24: 0 | G24: =C24*E24*F24*D24 -> 0 | I24: 1 | J24: =H24*E24*C24*I24 -> 0 | P24: CE | Q24: 2 | S24: less than 5 | T24: -200 | U24: 0
B25: Impermeable/concreted Area | C25: =IF(AND($L$13="Urban Area and Unallocated",$L$14="Brownfield Site"),2,1) -> 1 | D25: 1 | E25: 0 | G25: 0 | I25: 1 | J25: 0 | P25: EN | Q25: 1 | S25: 5 to 10 | T25: 1 | U25: 1
B26: Bare Ground | C26: 1 | D26: 1 | E26: 1 | G26: 0 | I26: 1 | J26: 0 | P26: LT | Q26: 0.25 | S26: 10 to 15 | T26: 5 | U26: 2
B27: Weed Infestations | C27: 1 | D27: 1 | E27: 2 | G27: 0 | I27: 1 | J27: 0 | P27: VU | Q27: 0.5 | S27: 15 to 25 | T27: 15 | U27: 3
B28: Exotic Garden | C28: 1 | D28: 1 | E28: 5 | G28: 0 | I28: 1 | J28: 0 | S28: above 25 | T28: 25 | U28: 4
B29: Indigenous Garden | C29: 1 | D29: 1 | E29: 10 | G29: 0 | I29: 1 | J29: 0
B30: Indigenous Roof Garden | C30: 1 | D30: 1 | E30: 10 | G30: 0 | I30: 1 | J30: 0
B31: Exotic Grazing | C31: 1 | D31: 1 | E31: 5 | G31: 0 | I31: 1 | J31: 0 | P31: Bioregion ID = | Q31: 2
B32: Existing Natural Grazing* | C32: =IF(AND($L$13="Urban Area and Unallocated",$L$14="Brownfield Site"),0,1) -> 1 | D32: =IF($L$14 ="<Don't know>",$Q$34,1) -> 1 | E32: 25 | G32: 0 | I32: 1 | J32: =IF(H32>F32,G32,H32*E32*I32*C32) -> 0 | P32: Category = | Q32: =VLOOKUP(L14,B52:E573,4,FALSE) -> LT
B33: Crop Farming | C33: =IF(AND($L$13="Urban Area and Unallocated",$L$14="Brownfield Site"),0,1) -> 1 | D33: 1 | E33: 5 | G33: 0 | I33: 1 | J33: =H33*E33*C33*I33 -> 0 | S33: Base credits = | T33: =VLOOKUP(F44,T24:U28,2) -> 0
B34: Existing Natural Waterway/Riparian Zone* | C34: =IF(AND($L$13="Urban Area and Unallocated",$L$14="Brownfield Site"),0,1) -> 1 | D34: =IF($L$14 ="<Don't know>",$Q$34,1) -> 1 | E34: 75 | G34: 0 | I34: 1 | J34: =IF(H34>F34,G34,H34*E34*I34*C34) -> 0 | P34: Factor = | Q34: =VLOOKUP(Q32,P24:Q27,2) -> 0.25 | S34: Threatened species = | T34: =M19 -> 1 | U34: if threatened species then no credits awarded
B35: Existing Natural Wetland* | C35: =IF(AND($L$13="Urban Area and Unallocated",$L$14="Brownfield Site"),0,1) -> 1 | D35: =IF($L$14 ="<Don't know>",$Q$34,1) -> 1 | E35: 100 | G35: 0 | I35: 1 | J35: =IF(H35>F35,G35,H35*E35*I35*C35) -> 0 | S35: Final credit = | T35: =IF(T34=2,0,T33) -> 0
B36: Rehabilitation/Creation of Wetland/Riparian | C36: 1 | D36: 1 | E36: 50 | G36: 0 | I36: =IF($L$14 ="<Don't know>",0,1) -> 1 | J36: =H36*E36*C36*I36 -> 0
B37: Exotic Plantation Forest | C37: 1 | D37: 1 | E37: 5 | G37: 0 | I37: 1 | J37: =H37*E37*C37*I37 -> 0 | S37: ERROR Check on Area
B38: Indigenous Plantation Forest | C38: 1 | D38: 1 | E38: 20 | G38: 0 | I38: 1 | J38: =H38*E38*C38*I38 -> 0 | S38: If areas don't match then zero credits (default)
B39: Regenerated Endemic Habitat (< 10 years old)* | C39: =IF(AND($L$13="Urban Area and Unallocated",$L$14="Brownfield Site"),0,1) -> 1 | D39: =IF($L$14 ="<Don't know>",$Q$34,1) -> 1 | E39: 50 | G39: 0 | I39: =IF($L$14 ="<Don't know>",0,1) -> 1 | J39: =H39*E39*C39*I39 -> 0 | S39: CREDIT = | T39: =IF(H42=F42,T35,0) -> 0
B40: Indigenous Endemic Habitat (> 10 years old)* | C40: =IF(AND($L$13="Urban Area and Unallocated",$L$14="Brownfield Site"),0,1) -> 1 | D40: =IF($L$14 ="<Don't know>",$Q$34,1) -> 1 | E40: 75 | G40: 0 | I40: 1 | J40: =IF(H40>F40,G40,H40*E40*I40*C40) -> 0
B41: Indigenous Endemic Habitat (> 20 years old)* | C41: =IF(AND($L$13="Urban Area and Unallocated",$L$14="Brownfield Site"),0,1) -> 1 | D41: =IF($L$14 ="<Don't know>",$Q$34,1) -> 1 | E41: 100 | G41: 0 | I41: 1 | J41: =IF(H41>F41,G41,H41*E41*I41*C41) -> 0
B42: TOTAL | F42: =SUM(F24:F41) -> 0 | G42: =SUM(G24:G41) -> 0 | H42: =SUM(H24:H41) -> 0 | J42: =SUM(J24:J41) -> 0
B43: ECOLOGICAL DIVERSITY INDEX: | G43: =IF(F42=0,0,G42/F42) -> 0 | J43: =IF(H42=0,0,J42/H42) -> 0
B44: CHANGE IN ECOLOGICAL DIVERSITY INDEX | F44: =J43-G43 -> 0 | S44: Bioregion Category | T44: Description
B45: Points Achieved | F45: =IF(F42=0,0,T39) -> 0 | H45: =IF(H42=F42,"","Error - Check Areas") ->  | S45: CE | T45: Critically Endangered
B46: * = affected by Bioregion Reservation Importance Factor | S46: EN | T46: Endangered
S47: LT | T47: Least Threatened
S48: VU | T48: Vulnerable
B50: THESE ROWS BELOW ARE HIDDEN
B51: Bioregion | C51: Bioregion code | D51: Bio-Region ID Number | E51: Ecological Significance Category
B52: Urban Area and Unallocated
A53: 1 | B53: <Don't know> | C53: none | D53: 1 | E53: CE | F53: Default to highest significance
A54: 2 | B54: Brownfield Site | C54: none | D54: 2 | E54: CE | F54: Brownfields | M54: ID | N54: Bioregion
B55: Albany Thickets | M55: 1 | N55: Albany Thickets
A56: 1 | B56: <Don't know> | C56: none | D56: 1 | E56: CE | M56: 2 | N56: Albany Thickets Alluvial Vegetation
A57: 2 | B57: Albany Coastal Belt | C57: 833 | D57: 2 | E57: LT | F57: 326915 | G57: 263815 | H57: 81 | I57: 1 | J57: 19 | K57: poorly protected | M57: 3 | N57: Albany Thickets Strandveld
A58: 3 | B58: Buffels Thicket | C58: 8060 | D58: 3 | E58: VU | F58: 113220 | G58: 89394 | H58: 79 | I58: 1 | J58: 19 | K58: hardly protected | M58: 4 | N58: Bushmanland and West Griqualand
A59: 4 | B59: Camdebo Escarpment Thicket | C59: 851 | D59: 4 | E59: LT | F59: 197622 | G59: 194933 | H59: 99 | I59: 5 | J59: 19 | K59: poorly protected | M59: 5 | N59: Central Bushveld
A60: 5 | B60: Coega Bontveld | C60: 304 | D60: 5 | E60: LT | F60: 24622 | G60: 22989 | H60: 93 | I60: 9 | J60: 19 | K60: poorly protected | M60: 6 | N60: Central Succulent Karoo
A61: 6 | B61: Eastern Cape Escarpment Thicket | C61: 8061 | D61: 6 | E61: LT | F61: 129232 | G61: 123138 | H61: 95 | I61: 5 | J61: 19 | K61: poorly protected | M61: 7 | N61: Coastal Grassland
A62: 7 | B62: Gamka Thicket | C62: 8064 | D62: 7 | E62: LT | F62: 168298 | G62: 153521 | H62: 91 | I62: 8 | J62: 19 | K62: poorly protected | M62: 8 | N62: Desert Alluvial Vegetation
A63: 8 | B63: Gamtoos Thicket | C63: 8068 | D63: 8 | E63: LT | F63: 88298 | G63: 75907 | H63: 86 | I63: 6 | J63: 19 | K63: poorly protected | M63: 9 | N63: Drakensburg Grassland
A64: 9 | B64: Great Fish Noorsveld | C64: 9273 | D64: 9 | E64: LT | F64: 67393 | G64: 64417 | H64: 96 | I64: 3 | J64: 19 | K64: poorly protected | M64: 10 | N64: Eastern Gariep
A65: 10 | B65: Great Fish Thicket | C65: 8062 | D65: 10 | E65: LT | F65: 676337 | G65: 648575 | H65: 96 | I65: 6 | J65: 19 | K65: poorly protected | M65: 11 | N65: Estuarine Salt Marshes
A66: 11 | B66: Groot Thicket | C66: 8063 | D66: 11 | E66: LT | F66: 248438 | G66: 244784 | H66: 99 | I66: 11 | J66: 19 | K66: moderately protected | M66: 12 | N66: Freshwater Wetlands
A67: 12 | B67: Kowie Thicket | C67: 8066 | D67: 12 | E67: LT | F67: 224866 | G67: 205961 | H67: 92 | I67: 5 | J67: 19 | K67: poorly protected | M67: 13 | N67: Fynbos Alluvial Vegetation
A68: 13 | B68: Sundays Noorsveld | C68: 8069 | D68: 13 | E68: LT | F68: 127114 | G68: 123568 | H68: 97 | I68: 13 | J68: 19 | K68: moderately protected | M68: 14 | N68: Fynbos Kamiesberg Centre
A69: 14 | B69: Sundays Thicket | C69: 8067 | D69: 14 | E69: LT | F69: 523565 | G69: 494258 | H69: 94 | I69: 9 | J69: 19 | K69: poorly protected | M69: 15 | N69: Fynbos Karoo Mountain Centre
B70: Albany Thicket Alluvial Vegetation | M70: 16 | N70: Fynbos Northwest Centre
A71: 1 | B71: <Don't know> | C71: none | D71: 1 | E71: CE | M71: 17 | N71: Fynbos South Coast Centre
A72: 2 | B72: Albany Alluvial Vegetation | C72: 866 | D72: 2 | E72: EN | F72: 58399 | G72: 30006 | H72: 51 | I72: 6 | J72: 31 | K72: poorly protected | M72: 18 | N72: Fynbos Southeast Centre
B73: Albany Thickets Strandveld | M73: 19 | N73: Fynbos Southwest Centre
A74: 1 | B74: <Don't know> | C74: none | D74: 1 | E74: CE | M74: 20 | N74: Fynbos Strandveld
A75: 2 | B75: Albany Dune Strandveld | C75: 9239 | D75: 2 | E75: LT | F75: 17038 | G75: 15542 | H75: 91 | I75: 27 | J75: 20 | K75: well protected | M75: 21 | N75: Grassland Alluvial Vegetation
A76: 3 | B76: Algoa Dune Strandveld | C76: 846 | D76: 3 | E76: LT | F76: 28154 | G76: 25035 | H76: 89 | I76: 4 | J76: 20 | K76: poorly protected | M76: 22 | N76: Grassland Biome Shrublands
A77: 4 | B77: Subtropical Dune Thicket | C77: 8070 | D77: 4 | E77: LT | F77: 1983 | G77: 1946 | H77: 98 | I77: 36 | J77: 20 | K77: well protected | M77: 23 | N77: Highveld Grassland
A78: 5 | B78: Subtropical Seashore Vegetation | C78: 937 | D78: 5 | E78: LT | F78: 4147 | G78: 3755 | H78: 91 | I78: 42 | J78: 20 | K78: well protected | M78: 24 | N78: Inland Saline Vegetation
B79: Desert Alluvial Vegetation | M79: 25 | N79: Kalahari Dry Savanna
A80: 1 | B80: <Don't know> | C80: none | D80: 1 | E80: CE | M80: 26 | N80: Lower Karoo
A81: 2 | B81: Lower Gariep Alluvial Vegetation | C81: 910 | D81: 2 | E81: EN | F81: 75154 | G81: 24742 | H81: 33 | I81: 4 | J81: 31 | K81: poorly protected | M81: 27 | N81: Lowland Forest
B82: Eastern Gariep | M82: 28 | N82: Lowveld
A83: 1 | B83: <Don't know> | C83: none | D83: 1 | E83: CE | M83: 29 | N83: Macroalgal Sea Beds
A84: 2 | B84: Bushmanland Inselberg Shrubland | C84: 270 | D84: 2 | E84: LT | F84: 63753 | G84: 63620 | H84: 100 | I84: 0 | J84: 34 | K84: not protected | M84: 30 | N84: Mountain Bushveld
A85: 3 | B85: Einiqua Plains Desert | C85: 269 | D85: 3 | E85: LT | F85: 157801 | G85: 156502 | H85: 99 | I85: 0 | J85: 34 | K85: not protected | M85: 31 | N85: Nama Karoo Alluvial Vegetation
A86: 4 | B86: Einiqua Rocky Desert | C86: 271 | D86: 4 | E86: LT | F86: 256852 | G86: 255544 | H86: 99 | I86: 0 | J86: 34 | K86: not protected | M86: 32 | N86: Renosterveld Eastern Centre
A87: 5 | B87: Hellskloof Canyon Desert | C87: 774 | D87: 5 | E87: LT | F87: 826 | G87: 821 | H87: 99 | I87: 0 | J87: 34 | K87: not protected | M87: 33 | N87: Renosterveld Karoo Centre
A88: 6 | B88: Noams Mountain Desert | C88: 778 | D88: 6 | E88: LT | F88: 33646 | G88: 33496 | H88: 100 | I88: 100 | J88: 34 | K88: well protected | M88: 34 | N88: Renosterveld Mountain Centre
A89: 7 | B89: Northern Nababiepsberge Mountain Desert | C89: 777 | D89: 7 | E89: LT | F89: 24586 | G89: 24229 | H89: 99 | I89: 0 | J89: 34 | K89: not protected | M89: 35 | N89: Renosterveld South Coast Centre
A90: 8 | B90: Richtersberg Mountain Desert | C90: 779 | D90: 8 | E90: LT | F90: 39781 | G90: 39649 | H90: 100 | I90: 100 | J90: 34 | K90: well protected | M90: 36 | N90: Renosterveld West Coast Centre
A91: 9 | B91: Southeastern Richtersveld Mountain Desert | C91: 791 | D91: 9 | E91: LT | F91: 59448 | G91: 59271 | H91: 100 | I91: 8 | J91: 34 | K91: poorly protected | M91: 37 | N91: Savanna Alluvial Vegetation
A92: 10 | B92: Southern Nababiepsberge Mountain Desert | C92: 793 | D92: 10 | E92: LT | F92: 34320 | G92: 34299 | H92: 100 | I92: 0 | J92: 34 | K92: not protected | M92: 38 | N92: South Strandveld
A93: 11 | B93: Springbokvlakte Mountain Desert | C93: 803 | D93: 11 | E93: LT | F93: 10831 | G93: 10831 | H93: 100 | I93: 100 | J93: 34 | K93: well protected | M93: 39 | N93: Southern Karoo
A94: 12 | B94: Springbokvlakte Plain Desert | C94: 802 | D94: 12 | E94: LT | F94: 11271 | G94: 11162 | H94: 99 | I94: 100 | J94: 34 | K94: well protected | M94: 40 | N94: Sub Escarpment Grassland
A95: 13 | B95: Tatasberg Mountain Desert | C95: 806 | D95: 13 | E95: LT | F95: 328 | G95: 328 | H95: 100 | I95: 100 | J95: 34 | K95: well protected | M95: 41 | N95: Sub Escarpment Savanna
B96: Western Gariep | M96: 42 | N96: Trans Escarpment Succulent Karoo
A97: 1 | B97: <Don't know> | C97: none | D97: 1 | E97: CE | M97: 43 | N97: Urban Area and Unallocated
A98: 2 | B98: Alexander Bay Coastal Duneveld | C98: 3146 | D98: 2 | E98: LT | F98: 1700 | G98: 1482 | H98: 87 | I98: 0 | J98: 28 | K98: not protected | M98: 44 | N98: Upland Forest
A99: 3 | B99: West Gariep Hills Desert | C99: 812 | D99: 3 | E99: LT | F99: 41361 | G99: 40621 | H99: 98 | I99: 11 | J99: 28 | K99: poorly protected | M99: 45 | N99: Upper Karoo
A100: 4 | B100: West Gariep Lowlands Desert | C100: 813 | D100: 4 | E100: LT | F100: 23947 | G100: 23132 | H100: 97 | I100: 0 | J100: 28 | K100: not protected | M100: 46 | N100: West Coast Sandveld
A101: 5 | B101: West Gariep Plains Desert | C101: 811 | D101: 5 | E101: LT | F101: 19224 | G101: 18550 | H101: 96 | I101: 0 | J101: 28 | K101: not protected | M101: 47 | N101: West Strandveld
B102: Lowland Forest | M102: 48 | N102: Western Gariep
A103: 1 | B103: <Don't know> | C103: none | D103: 1 | E103: CE | M103: 49 | N103: Western Lowland Karoo
A104: 2 | B104: Ironwood Dry Forest | C104: 8051 | D104: 2 | E104: CE | F104: 5913 | G104: 5904 | H104: 100 | I104: 100 | J104: 100 | K104: well protected | M104: 50 | N104: Western Mountain Shrubland
A105: 3 | B105: Northern Coastal Forest | C105: 4175 | D105: 3 | E105: LT | F105: 46705 | G105: 45205 | H105: 97 | I105: 100 | J105: 43 | K105: well protected | M105: 51 | N105: Western Upland Karoo
A106: 4 | B106: Sand Forest | C106: 4184 | D106: 4 | E106: CE | F106: 24276 | G106: 23906 | H106: 98 | I106: 100 | J106: 100 | K106: well protected | M106: 52 | N106: Wetland Forest
A107: 5 | B107: Southern Coastal Forest | C107: 8031 | D107: 5 | E107: LT | F107: 16530 | G107: 15573 | H107: 94 | I107: 89 | J107: 40 | K107: well protected
B108: Upland Forest
A109: 1 | B109: <Don't know> | C109: none | D109: 1 | E109: CE
A110: 2 | B110: Northern Afrotemperate Forest | C110: 4187 | D110: 2 | E110: LT | F110: 16974 | G110: 16725 | H110: 99 | I110: 37 | J110: 31 | K110: well protected
A111: 3 | B111: Northern Mistbelt Forest | C111: 8000 | D111: 3 | E111: LT | F111: 61338 | G111: 51341 | H111: 84 | I111: 11 | J111: 30 | K111: poorly protected
A112: 4 | B112: Scarp Forest | C112: 4181 | D112: 4 | E112: LT | F112: 86718 | G112: 83054 | H112: 96 | I112: 34 | J112: 40 | K112: moderately protected
A113: 5 | B113: Southern Afrotemperate Forest | C113: 4190 | D113: 5 | E113: LT | F113: 81521 | G113: 79405 | H113: 97 | I113: 26 | J113: 34 | K113: moderately protected
A114: 6 | B114: Southern Mistbelt Forest | C114: 8002 | D114: 6 | E114: LT | F114: 110016 | G114: 104415 | H114: 95 | I114: 10 | J114: 30 | K114: poorly protected
B115: Wetland Forest
A116: 1 | B116: <Don't know> | C116: none | D116: 1 | E116: CE
A117: 2 | B117: Lowveld Riverine Forest | C117: 4191 | D117: 2 | E117: CE | F117: 15837 | G117: 15423 | H117: 97 | I117: 100 | J117: 100 | K117: well protected
A118: 3 | B118: Mangrove Forest | C118: 4185 | D118: 3 | E118: CE | F118: 3340 | G118: 3222 | H118: 96 | I118: 47 | J118: 100 | K118: poorly protected
A119: 4 | B119: Swamp Forest | C119: 4192 | D119: 4 | E119: CE | F119: 3803 | G119: 3615 | H119: 95 | I119: 100 | J119: 100 | K119: well protected
B120: Fynbos Alluvial Vegetation
A121: 1 | B121: <Don't know> | C121: none | D121: 1 | E121: CE
A122: 2 | B122: Cape Lowland Alluvial Vegetation | C122: 8090 | D122: 2 | E122: CE | F122: 28406 | G122: 8931 | H122: 31 | I122: 1 | J122: 31 | K122: hardly protected
B123: Fynbos Kamiesberg Centre
A124: 1 | B124: <Don't know> | C124: none | D124: 1 | E124: CE
A125: 2 | B125: Kamiesberg Granite Fynbos | C125: 2875 | D125: 2 | E125: LT | F125: 3637 | G125: 3556 | H125: 98 | I125: 0 | J125: 27 | K125: not protected
B126: Fynbos Karoo Mountain Centre
A127: 1 | B127: <Don't know> | C127: none | D127: 1 | E127: CE
A128: 2 | B128: Cango Conglomerate Fynbos | C128: 5579 | D128: 2 | E128: LT | F128: 40580 | G128: 39678 | H128: 98 | I128: 4 | J128: 27 | K128: poorly protected
A129: 3 | B129: Eastern Shale Band Vegetation | C129: 5551 | D129: 3 | E129: LT | F129: 10888 | G129: 10153 | H129: 93 | I129: 32 | J129: 27 | K129: well protected
A130: 4 | B130: Matjiesfontein Quartzite Fynbos | C130: 92 | D130: 4 | E130: LT | F130: 126816 | G130: 125132 | H130: 99 | I130: 4 | J130: 27 | K130: poorly protected
A131: 5 | B131: Matjiesfontein Shale Fynbos | C131: 8021 | D131: 5 | E131: LT | F131: 10653 | G131: 10348 | H131: 97 | I131: 24 | J131: 27 | K131: moderately protected
A132: 6 | B132: North Kammanassie Sandstone Fynbos | C132: 9227 | D132: 6 | E132: LT | F132: 33259 | G132: 33103 | H132: 100 | I132: 60 | J132: 27 | K132: well protected
A133: 7 | B133: North Rooiberg Sandstone Fynbos | C133: 9222 | D133: 7 | E133: LT | F133: 31873 | G133: 31861 | H133: 100 | I133: 28 | J133: 27 | K133: well protected
A134: 8 | B134: North Swartberg Sandstone Fynbos | C134: 134 | D134: 8 | E134: LT | F134: 86434 | G134: 84831 | H134: 98 | I134: 57 | J134: 27 | K134: well protected
A135: 9 | B135: South Kammanassie Sandstone Fynbos | C135: 9243 | D135: 9 | E135: LT | F135: 30418 | G135: 29195 | H135: 96 | I135: 11 | J135: 27 | K135: poorly protected
A136: 10 | B136: South Rooiberg Sandstone Fynbos | C136: 9219 | D136: 10 | E136: LT | F136: 38834 | G136: 38654 | H136: 100 | I136: 29 | J136: 27 | K136: well protected
A137: 11 | B137: South Swartberg Sandstone Fynbos | C137: 9224 | D137: 11 | E137: LT | F137: 108481 | G137: 108221 | H137: 100 | I137: 40 | J137: 27 | K137: well protected
A138: 12 | B138: Swartberg Shale Fynbos | C138: 9201 | D138: 12 | E138: LT | F138: 7513 | G138: 6608 | H138: 88 | I138: 7 | J138: 27 | K138: poorly protected
B139: Fynbos Northwest Centre
A140: 1 | B140: <Don't know> | C140: none | D140: 1 | E140: CE
A141: 2 | B141: Altimontane Sandstone Fynbos | C141: 8030 | D141: 2 | E141: LT | F141: 5083 | G141: 5080 | H141: 100 | I141: 84 | J141: 29 | K141: well protected
A142: 3 | B142: Bokkeveld Sandstone Fynbos | C142: 3139 | D142: 3 | E142: LT | F142: 136130 | G142: 111742 | H142: 82 | I142: 3 | J142: 29 | K142: poorly protected
A143: 4 | B143: Cederberg Sandstone Fynbos | C143: 34 | D143: 4 | E143: LT | F143: 244857 | G143: 207709 | H143: 85 | I143: 17 | J143: 29 | K143: moderately protected
A144: 5 | B144: Ceres Alluvium Fynbos | C144: 35 | D144: 5 | E144: EN | F144: 18005 | G144: 8692 | H144: 48 | I144: 0 | J144: 29 | K144: not protected
A145: 6 | B145: Graafwater Sandstone Fynbos | C145: 8013 | D145: 6 | E145: VU | F145: 125367 | G145: 89727 | H145: 72 | I145: 0 | J145: 29 | K145: not protected
A146: 7 | B146: Klawer Sandy Shrubland | C146: 9288 | D146: 7 | E146: LT | F146: 12569 | G146: 11858 | H146: 94 | I146: 0 | J146: 29 | K146: not protected
A147: 8 | B147: Kouebokkeveld Shale Fynbos | C147: 2327 | D147: 8 | E147: EN | F147: 42800 | G147: 24167 | H147: 56 | I147: 0 | J147: 29 | K147: not protected
A148: 9 | B148: Leipoldtville Sand Fynbos | C148: 87 | D148: 9 | E148: EN | F148: 275539 | G148: 123336 | H148: 45 | I148: 0 | J148: 29 | K148: hardly protected
A149: 10 | B149: Namaqualand Sand Fynbos | C149: 2869 | D149: 10 | E149: LT | F149: 93938 | G149: 92078 | H149: 98 | I149: 1 | J149: 29 | K149: hardly protected
A150: 11 | B150: North Hex Sandstone Fynbos | C150: 5555 | D150: 11 | E150: LT | F150: 39414 | G150: 36866 | H150: 94 | I150: 33 | J150: 29 | K150: well protected
A151: 12 | B151: Northern Shale Band Vegetation | C151: 9231 | D151: 12 | E151: LT | F151: 26435 | G151: 25501 | H151: 96 | I151: 17 | J151: 29 | K151: moderately protected
A152: 13 | B152: Olifants Sandstone Fynbos | C152: 1 | D152: 13 | E152: LT | F152: 105854 | G152: 97588 | H152: 92 | I152: 23 | J152: 29 | K152: moderately protected
A153: 14 | B153: Piketberg Sandstone Fynbos | C153: 8024 | D153: 14 | E153: LT | F153: 46035 | G153: 37936 | H153: 82 | I153: 0 | J153: 29 | K153: not protected
A154: 15 | B154: South Hex Sandstone Fynbos | C154: 9220 | D154: 15 | E154: LT | F154: 32071 | G154: 31905 | H154: 99 | I154: 16 | J154: 29 | K154: moderately protected
A155: 16 | B155: Swartruggens Quartzite Fynbos | C155: 152 | D155: 16 | E155: LT | F155: 164619 | G155: 162056 | H155: 98 | I155: 4 | J155: 29 | K155: poorly protected
A156: 17 | B156: Winterhoek Sandstone Fynbos | C156: 5552 | D156: 17 | E156: LT | F156: 119002 | G156: 112297 | H156: 94 | I156: 24 | J156: 29 | K156: moderately protected
B157: Fynbos South Coast Centre
A158: 1 | B158: <Don't know> | C158: none | D158: 1 | E158: CE
A159: 2 | B159: Agulhas Limestone Fynbos | C159: 6 | D159: 2 | E159: LT | F159: 29450 | G159: 28014 | H159: 95 | I159: 8 | J159: 32 | K159: poorly protected
A160: 3 | B160: Agulhas Sand Fynbos | C160: 7 | D160: 3 | E160: VU | F160: 23059 | G160: 16781 | H160: 73 | I160: 6 | J160: 32 | K160: poorly protected
A161: 4 | B161: Albertinia Sand Fynbos | C161: 10 | D161: 4 | E161: VU | F161: 70932 | G161: 52326 | H161: 74 | I161: 5 | J161: 32 | K161: poorly protected
A162: 5 | B162: Canca Limestone Fynbos | C162: 9249 | D162: 5 | E162: LT | F162: 110464 | G162: 95867 | H162: 87 | I162: 0 | J162: 32 | K162: hardly protected
A163: 6 | B163: De Hoop Limestone Fynbos | C163: 9250 | D163: 6 | E163: LT | F163: 68654 | G163: 66955 | H163: 98 | I163: 26 | J163: 32 | K163: moderately protected
B164: Fynbos Southeast Centre
A165: 1 | B165: <Don't know> | C165: none | D165: 1 | E165: CE
A166: 2 | B166: Algoa Sandstone Fynbos | C166: 9211 | D166: 2 | E166: EN | F166: 34097 | G166: 16199 | H166: 48 | I166: 2 | J166: 23 | K166: poorly protected
A167: 3 | B167: Garden Route Granite Fynbos | C167: 8016 | D167: 3 | E167: EN | F167: 43178 | G167: 12552 | H167: 29 | I167: 0 | J167: 23 | K167: hardly protected
A168: 4 | B168: Garden Route Shale Fynbos | C168: 8017 | D168: 4 | E168: EN | F168: 56852 | G168: 25290 | H168: 44 | I168: 1 | J168: 23 | K168: hardly protected
A169: 5 | B169: Grootrivier Quartzite Fynbos | C169: 8014 | D169: 5 | E169: LT | F169: 56478 | G169: 56426 | H169: 100 | I169: 0 | J169: 23 | K169: not protected
A170: 6 | B170: Knysna Sand Fynbos | C170: 72 | D170: 6 | E170: EN | F170: 15370 | G170: 4561 | H170: 30 | I170: 0 | J170: 23 | K170: hardly protected
A171: 7 | B171: Kouga Sandstone Fynbos | C171: 878 | D171: 7 | E171: LT | F171: 240260 | G171: 221444 | H171: 92 | I171: 34 | J171: 23 | K171: well protected
A172: 8 | B172: Kouga Sandstone Grassy Fynbos | C172: 9264 | D172: 8 | E172: LT | F172: 413666 | G172: 375050 | H172: 91 | I172: 16 | J172: 23 | K172: moderately protected
A173: 9 | B173: Loerie Conglomerate Fynbos | C173: 9210 | D173: 9 | E173: LT | F173: 21866 | G173: 19811 | H173: 91 | I173: 12 | J173: 23 | K173: moderately protected
A174: 10 | B174: North Outeniqua Sandstone Fynbos | C174: 9226 | D174: 10 | E174: LT | F174: 87881 | G174: 75567 | H174: 86 | I174: 8 | J174: 23 | K174: poorly protected
A175: 11 | B175: South Outeniqua Sandstone Fynbos | C175: 8023 | D175: 11 | E175: VU | F175: 157412 | G175: 113671 | H175: 72 | I175: 17 | J175: 23 | K175: moderately protected
A176: 12 | B176: Suurberg Quartzite Fynbos | C176: 9207 | D176: 12 | E176: LT | F176: 88543 | G176: 87300 | H176: 99 | I176: 19 | J176: 23 | K176: moderately protected
A177: 13 | B177: Suurberg Shale Fynbos | C177: 9208 | D177: 13 | E177: LT | F177: 51501 | G177: 50745 | H177: 99 | I177: 59 | J177: 23 | K177: well protected
A178: 14 | B178: Tsitsikamma Sandstone Fynbos | C178: 9204 | D178: 14 | E178: VU | F178: 227916 | G178: 151434 | H178: 66 | I178: 3 | J178: 23 | K178: poorly protected
B179: Fynbos Southwest Centre
A180: 1 | B180: <Don't know> | C180: none | D180: 1 | E180: CE
A181: 2 | B181: North Sonderend Sandstone Fynbos | C181: 8027 | D181: 2 | E181: LT | F181: 51324 | G181: 50320 | H181: 98 | I181: 21 | J181: 30 | K181: moderately protected
A182: 3 | B182: Overberg Sandstone Fynbos | C182: 8006 | D182: 3 | E182: LT | F182: 116947 | G182: 109406 | H182: 94 | I182: 6 | J182: 30 | K182: poorly protected
A183: 4 | B183: Peninsula Granite Fynbos | C183: 30 | D183: 4 | E183: EN | F183: 8986 | G183: 4052 | H183: 45 | I183: 33 | J183: 30 | K183: well protected
A184: 5 | B184: Peninsula Sandstone Fynbos | C184: 114 | D184: 5 | E184: LT | F184: 23235 | G184: 21592 | H184: 93 | I184: 100 | J184: 30 | K184: well protected
A185: 6 | B185: Potberg Ferricrete Fynbos | C185: 9217 | D185: 6 | E185: EN | F185: 4049 | G185: 2443 | H185: 60 | I185: 5 | J185: 30 | K185: poorly protected
A186: 7 | B186: Potberg Sandstone Fynbos | C186: 9230 | D186: 7 | E186: LT | F186: 10736 | G186: 10207 | H186: 95 | I186: 46 | J186: 30 | K186: well protected
A187: 8 | B187: Robertson Granite Fynbos | C187: 5563 | D187: 8 | E187: LT | F187: 1700 | G187: 1504 | H187: 88 | I187: 2 | J187: 30 | K187: poorly protected
A188: 9 | B188: South Langeberg Sandstone Fynbos | C188: 9221 | D188: 9 | E188: LT | F188: 122365 | G188: 119125 | H188: 97 | I188: 21 | J188: 30 | K188: moderately protected
A189: 10 | B189: South Sonderend Sandstone Fynbos | C189: 9223 | D189: 10 | E189: LT | F189: 38080 | G189: 35510 | H189: 93 | I189: 39 | J189: 30 | K189: well protected
A190: 11 | B190: Swartland Alluvium Fynbos | C190: 140 | D190: 11 | E190: CE | F190: 46985 | G190: 11806 | H190: 25 | I190: 2 | J190: 30 | K190: poorly protected
A191: 12 | B191: Swellendam Silcrete Fynbos | C191: 153 | D191: 12 | E191: EN | F191: 86850 | G191: 49925 | H191: 57 | I191: 4 | J191: 30 | K191: poorly protected
A192: 13 | B192: Western Shale Band Vegetation | C192: 9232 | D192: 13 | E192: LT | F192: 13467 | G192: 12634 | H192: 94 | I192: 48 | J192: 30 | K192: well protected
B193: Renosterveld Eastern Centre
A194: 1 | B194: <Don't know> | C194: none | D194: 1 | E194: CE
A195: 2 | B195: Baviaanskloof Shale Renosterveld | C195: 9206 | D195: 2 | E195: LT | F195: 11878 | G195: 11875 | H195: 100 | I195: 22 | J195: 29 | K195: moderately protected
A196: 3 | B196: Humansdorp Shale Renosterveld | C196: 185 | D196: 3 | E196: EN | F196: 36662 | G196: 13537 | H196: 37 | I196: 0 | J196: 29 | K196: hardly protected
A197: 4 | B197: Kango Renosterveld | C197: 5580 | D197: 4 | E197: LT | F197: 50202 | G197: 43133 | H197: 86 | I197: 2 | J197: 29 | K197: poorly protected
A198: 5 | B198: Langkloof Shale Renosterveld | C198: 86 | D198: 5 | E198: EN | F198: 20708 | G198: 7700 | H198: 37 | I198: 0 | J198: 29 | K198: not protected
A199: 6 | B199: Swartberg Shale Renosterveld | C199: 138 | D199: 6 | E199: LT | F199: 27639 | G199: 26877 | H199: 97 | I199: 7 | J199: 29 | K199: poorly protected
A200: 7 | B200: Uniondale Shale Renosterveld | C200: 8003 | D200: 7 | E200: LT | F200: 134091 | G200: 113648 | H200: 85 | I200: 0 | J200: 29 | K200: hardly protected
B201: Renosterveld Karoo Centre
A202: 1 | B202: <Don't know> | C202: none | D202: 1 | E202: CE
A203: 2 | B203: Central Mountain Shale Renosterveld | C203: 266 | D203: 2 | E203: LT | F203: 123651 | G203: 122433 | H203: 99 | I203: 0 | J203: 27 | K203: not protected
A204: 3 | B204: Hantam Plateau Dolerite Bulb Veld | C204: 273 | D204: 3 | E204: LT | F204: 78670 | G204: 78251 | H204: 99 | I204: 1 | J204: 27 | K204: hardly protected
A205: 4 | B205: Namaqualand Granite Renosterveld | C205: 2874 | D205: 4 | E205: LT | F205: 70612 | G205: 66766 | H205: 95 | I205: 0 | J205: 27 | K205: not protected
A206: 5 | B206: Roggeveld Shale Renosterveld | C206: 290 | D206: 5 | E206: LT | F206: 291690 | G206: 288563 | H206: 99 | I206: 0 | J206: 27 | K206: not protected
B207: Renosterveld Mountain Centre
A208: 1 | B208: <Don't know> | C208: none | D208: 1 | E208: CE
A209: 2 | B209: Ceres Shale Renosterveld | C209: 8012 | D209: 2 | E209: VU | F209: 49176 | G209: 30341 | H209: 62 | I209: 0 | J209: 27 | K209: hardly protected
A210: 3 | B210: Matjiesfontein Shale Renosterveld | C210: 5556 | D210: 3 | E210: LT | F210: 212596 | G210: 192956 | H210: 91 | I210: 4 | J210: 27 | K210: poorly protected
... 363 more rows

Sheet RET_ECO_DataExtract (hidden)
A1: Dictionary | B1: Value | C1: Key | D1: Note:
A2: Retail_ECO_4_Ecology_Points | B2: ='Ecology Calculator'!J3 -> 0 | C2: REcP
A3: Retail_Ecology_Change_in_Diversity | B3: ='Ecology Calculator'!F44 -> 0 | C3: REcC

Sheet Emissions
A1: ='Building Input'!B1 -> Green Star SA - Retail Centre v1 | F1: Category Weighting: | G1: ='Credit Summary'!J92 -> 0.08 | H1: Category Weighted Score
A2: Emissions | D2: Category Summary: | E2: =E19 -> 18 | F2: =F19 -> 0 | G2: =G19 -> 0 | H2: ='Credit Summary'!K92 -> 0
A3: Credit Summary for: | C3: =IF('Building Input'!$C$5=0,"",'Building Input'!$C$5) ->  | F3: =IF(OR((I3=Calculation1!$B$84),(I3=Calculation1!$B$85),((F2+G2)>E2)),Calculation1!$B$86,"") ->  | I3: =T(I5:I18) -> 
A4: Ref No. | B4: Title | C4: Aim of Credit | D4: Credit Criteria Summary | E4: No. of Points Available | F4: No. of Points Achieved | G4: Points to be Confirmed | H4: Comments
A5: Emi-1 | B5: Refrigerant / Gaseous ODP | C5: To encourage and recognise the selection of refrigerants and other gases that do not contribute to long-term damage to the Earth’s stratospheric ozone layer. | D5: One point is awarded where All HVAC refrigerants and gaseous fire suppression systems used have an Ozone Depletion Potential (ODP) of zero; OR No refrigerants or gaseous fire suppression systems are used. | E5: 1 | I5: =IF(OR(ISTEXT(F5)=TRUE,ISTEXT(G5)=TRUE),Calculation1!$B$87,IF(F5+G5>E5,Calculation1!$B$84,"")) -> 
A6: Emi-2 | B6: Refrigerant GWP | C6: To encourage and recognise the selection of refrigerants that reduce the potential for increased global warming from the emission of refrigerants to the atmosphere. | D6: Up to two points are awarded as follows: - One point where 50% of the fluorocarbon refrigerant charge has been replaced with refrigerant(s) that have a Global Warming Potential (GWP) of 10 or less; or - Two points where all refrigerants have a GWP of 10 or less OR where no refrigerants are used at all. | E6: 2 | I6: =IF(OR(ISTEXT(F6)=TRUE,ISTEXT(G6)=TRUE),Calculation1!$B$87,IF(F6+G6>E6,Calculation1!$B$84,"")) -> 
A7: Emi-3 | B7: Refrigerant Leaks | C7: To encourage and recognise building systems design that minimises environmental damage from refrigerant leaks. | D7: Up to two points are awarded as follows: One point is awarded where: - HVAC Systems containing refrigerants are contained in a moderately air tight enclosure and a refrigerant leak detection system is installed to cover high-risk parts of the plant; OR - an automatic permanent refrigerant leak detection system is specified, which is NOT based on the principle of detecting or measuring the concentration of refrigerant in air. | E7: =IF(OR(F7="na",F8="na"),0,1) -> 1 | I7: =IF(ISBLANK(F7),IF(G7>E7,Calculation1!$B$84,""),IF(F7="na","",IF(OR(F7="na",ISNUMBER(F7)),IF(F7+G7>E7,Calculation1!$B$84,""),Calculation1!$B$85))) -> 
D8: An additional point is awarded where: - The point above is achieved; AND - The project has installed a refrigerant recovery system that is: > Equipped with an automated pump-down system; and > Sized to effectively and safely capture, isolate, and store 95% (by weight) of the maximum refrigerant charge. Where no refrigerants are used in the project OR if all points in Emi-1 ‘Refrigerant ODP’ and Emi-2 ‘Refrigerant GWP’ are achieved, this credit is ‘Not Applicable’ and is excluded from the points available, used to calculate the Emissions Category Score. Type 'na' in the No. of Points Achieved column. | E8: =IF(OR(F7="na",F8="na"),0,1) -> 1 | I8: =IF(ISBLANK(F8),IF(G8>E8,Calculation1!$B$84,""),IF(F8="na","",IF(OR(F8="na",ISNUMBER(F8)),IF(F8+G8>E8,Calculation1!$B$84,""),Calculation1!$B$85))) -> 
A9: Emi-4 | B9: Insulant ODP | C9: To encourage and recognise the selection of insulants that do not contribute to long-term damage to the Earth’s stratospheric ozone layer. | D9: One point is awarded where no ozone-depleting substances are associated with either the manufacture or the composition of all thermal and acoustic insulants in the project. | E9: 1 | I9: =IF(OR(ISTEXT(F9)=TRUE,ISTEXT(G9)=TRUE),Calculation1!$B$87,IF(F9+G9>E9,Calculation1!$B$84,"")) -> 
A10: Emi-5 | B10: Watercourse Pollution | C10: To encourage and recognise developments that minimise stormwater run-off to, and the pollution of, the natural watercourses. | D10: Up to three points are awarded as follows: One point is awarded where the development does not increase peak stormwater flows for rainfall events of up to a 1-in-2 year storm. | E10: 1 | I10: =IF(ISBLANK(F10),IF(G10>E10,Calculation1!$B$84,""),IF(F10="na","",IF(OR(F10="na",ISNUMBER(F10)),IF(F10+G10>E10,Calculation1!$B$84,""),Calculation1!$B$85))) -> 
D11: One point is awarded where all stormwater leaving the site, at any time up to a 1-in-20 year storm event, is treated or filtered in accordance with either: > CSIRO Urban Stormwater: Best Practice Environmental Management Guidelines OR > Australian and New Zealand Environment Conservation Council (ANZECC)’s Guidelines for Urban Stormwater Management. | E11: 1 | I11: =IF(ISBLANK(F11),IF(G11>E11,Calculation1!$B$84,""),IF(F11="na","",IF(OR(F11="na",ISNUMBER(F11)),IF(F11+G11>E11,Calculation1!$B$84,""),Calculation1!$B$85))) -> 
D12: An additional point is awarded where: - Both of the above points are achieved; AND - A riparian buffer zone that has three separate zones of pollution buffering is installed within 9 meters of a waterway or natural watercourse and the development. Where the project site does not contain or is not immediately adjacent to a waterway, the additional point is ‘Not Applicable’ and is excluded from the points available, used to calculate the Emissions Category Score. Type 'na' in the No. of Points Achieved column. | E12: =IF(F12="na",0,1) -> 1 | I12: =IF(ISBLANK(F12),IF(G12>E12,Calculation1!$B$84,""),IF(F12="na","",IF(OR(F12="na",ISNUMBER(F12)),IF(F12+G12>E12,Calculation1!$B$84,""),Calculation1!$B$85))) -> 
A13: Emi-6 | B13: Discharge to Sewer | C13: To encourage and recognise developments that minimise discharge to the municipal sewerage system. | D13: Up to five points are available as follows: Up to four points are awarded where the building outflows to the sewerage system due to building occupants’ usage have been reduced against an average-practice benchmark as follows: - One point for a 30% reduction; - Two points for a 50% reduction; - Three points for a 70% reduction; or - Four points for a 90% reduction. The points are determined by the Green Star SA Sewage Calculator. | E13: 4 | F13: ='Sewage Calculator'!F2 -> 0 | I13: =IF(OR(ISTEXT(F13)=TRUE,ISTEXT(G13)=TRUE),Calculation1!$B$87,IF(F13+G13>E13,Calculation1!$B$84,"")) -> 
D14: An additional point is awarded where: - At least one point above is achieved; AND - There is a Blackwater Treatment Maintenance Plan; AND - There is a maintenance contract for a minimum of five years to ensure that the blackwater treatment system operates as intended by the design. Where no blackwater treatment system is installed, the additional point is ‘Not Applicable’ and is excluded from the points available, used to calculate the Emissions Category Score. Type 'na' in the No. of Points Achieved column. | E14: =IF(F14="na",0,1) -> 1 | I14: =IF(ISBLANK(F14),IF(G14>E14,Calculation1!$B$84,""),IF(F14="na","",IF(OR(F14="na",ISNUMBER(F14)),IF(F14+G14>E14,Calculation1!$B$84,""),Calculation1!$B$85))) -> 
A15: Emi-7 | B15: Light Pollution | C15: To encourage and recognise developments that minimise light pollution into the night sky. | D15: One point is awarded where: - No light beam, generated from within the building or outside of the building boundary, is directed at any point in the sky hemisphere without falling directly onto a non-transparent surface; AND - Facade lighting produces an average building Luminance of no more than 10 candelas/m²; AND - 95% of outdoor spaces do not exceed the minimum requirements of CIBSE Lighting Guide:1992, The Outdoor Environment for maintained illuminance levels; AND - The lighting design complies with the additional guidance given in the Green Star SA - Retail Centre v1 Technical Manual. | E15: 1 | I15: =IF(OR(ISTEXT(F15)=TRUE,ISTEXT(G15)=TRUE),Calculation1!$B$87,IF(F15+G15>E15,Calculation1!$B$84,"")) -> 
A16: Emi-8 | B16: Legionella | C16: To encourage and recognise building systems design that eliminates the risk of Legionnaires’ disease (Legionellosis). | D16: One point is awarded where: • There are no water based heat rejection system(s) serving the building; OR • Water-based heat rejection system(s) serving the building's nominated area meet all of the following:  - Do not contain water that is kept at a temperature between 20ºC and 50ºC;  - Do not release an aerosol spray during operation;  - Are designed and built to maintain constant movement of the water in the system, when in operation, to prevent stagnation;  - Are designed and built for routine and periodic flushing to remove bio-film buildup and stagnant water from the system(s) whenever it is not in operation; and  - Are designed, located and built in accordance with AS/NZS 3666.1:2002; AND • A Legionella Risk Management plan has been prepared in accordance with AS/NZS 3666.2:2002 or AS/NZS 3666.3:2000 and has been included in the O&M manual provided to the building owner; AND • All water storage system(s) must be designed in accordance with SANS 10252-1:2004 For the purposes of this credit 'nominated area' is defined as the GLA and common areas (excluding parking and tenancies that provide their own air). | E16: 1 | I16: =IF(OR(ISTEXT(F16)=TRUE,ISTEXT(G16)=TRUE),Calculation1!$B$87,IF(F16+G16>E16,Calculation1!$B$84,"")) -> 
A17: Emi-9 | B17: Boiler and Generator Emissions | C17: To encourage and recognise the use of boilers and generators that minimise harmful emissions. | D17: One point is awarded where: - All gas boilers have NOx emissions of < 100 mg/kWh (at 0% excess O2); AND - All generators comply with the Tier 3 emissions standards as defined by the United States Environmental Protection Agency (EPA) or the equivalent European Stage IIIA standard. Where no boilers or generators are installed, this credit is 'Not Applicable' and is excluded from the points available, used to calculate the Emissions Category Score. Type 'na' in the No. of Points Achieved column. | E17: =IF(F17="na",0,1) -> 1 | I17: =IF(ISBLANK(F17),IF(G17>E17,Calculation1!$B$84,""),IF(F17="na","",IF(OR(F17="na",ISNUMBER(F17)),IF(F17+G17>E17,Calculation1!$B$84,""),Calculation1!$B$85))) -> 
A18: Emi-10 | B18: Kitchen Exhaust Emissions | C18: To encourage and reward designs that avoid kitchen exhaust fumes being expelled directly into adjacent spaces that people occupy. | D18: Demonstrate that the building mechanical system meets the following requirements: • Exhaust points are located not closer than 10m to a neighbouring usable space or walkway, or a fresh air intake (of that development or another development) If the developer is not in control of the design of any kitchen exhaust ducting or exhaust risers, then this credit is 'Not Applicable' and is excluded from the Points Available, used to calculate the Emissions Category Score. Type 'na' in the No. of Points Achieved column. | E18: =IF(F18="na",0,1) -> 1 | I18: =IF(ISBLANK(F18),IF(G18>E18,Calculation1!$B$84,""),IF(F18="na","",IF(OR(F18="na",ISNUMBER(F18)),IF(F18+G18>E18,Calculation1!$B$84,""),Calculation1!$B$85))) -> 
D19: Total Points: | E19: =SUM(E5:E18) -> 18 | F19: =SUM(F5:F18) -> 0 | G19: =SUM(G5:G18) -> 0
A23: =Calculation1!$B$93 -> Project Teams are to refer to the Green Star SA Retail Centre v1 Technical Manual for explicit credit criteria and documentation requirements.
A24: =Calculation1!$B$94 -> The Green Star Technical Clarifications (TC) and Credit Interpretation Request (CIR) rulings provide an essential source of information to all
A25: =Calculation1!$B$95 -> projects undertaking Green Star assessment. They are available on the GBCSA website http://www.gbcsa.org.za . Technical Clarifications
A26: =Calculation1!$B$96 -> often represent the GBCSA answers to technical queries and complement Green Star SA Technical Manuals. They do not amend but clarify
A27: =Calculation1!$B$97 -> Credit Criteria or Compliance Requirements. They are an extension of the Technical Manual; it is the responsibility of the project teams to stay
A28: =Calculation1!$B$98 -> up-to-date with this section of the GBCSA website. The CIR rulings offer alternative compliance options whenever those have been deemed
A29: =Calculation1!$B$99 -> equivalent in meeting the Aim of Credit.

Sheet Sewage Calculator
B1: ='Building Input'!B1 -> Green Star SA - Retail Centre v1
B2: Sewage Calculator | E2: Points Achieved: | F2: =E38 -> 0
B10: Notes & Instructions:
B11: 1. Ensure 'Water Calculator' data is correct. | I11: ='Building Input'!C42 -> 0 | K11: 1 | L11: Hours of operation | M11: =VLOOKUP($K11,$K182:$M185,3) ->  | N11: Potable water factor
B12: 2. No further data input required. | I12: =I11/60 -> 0
C14: WATER CONSUMPTION DUE TO FITTINGS
C15: (from Potable Water Calculator)
C16: The following estimated water consumption is based on the data entered in the calculator. The water consumption of the fittings per m2 is based on assumptions of typical retail centre usage and does not represent actual water consumption in the building.
E17: L/day/m2
C18: WCs | E18: ='Potable Water Calculator'!G20 -> 0
C19: Urinals | D19: =#REF! ->  | E19: ='Potable Water Calculator'!G35 -> 0
C20: Taps | D20: =#REF! ->  | E20: ='Potable Water Calculator'!G45 -> 0
C21: Showerheads | D21: =#REF! ->  | E21: ='Potable Water Calculator'!G55 -> 0
C22: Predicted Water Consumption | E22: ='Potable Water Calculator'!G58 -> 0
C25: SEWAGE REDUCTION DUE TO RECYCLING
E26: L/day/m2
C27: Greywater collected from showers/taps | E27: ='Potable Water Calculator'!N111 -> 0
C28: Blackwater collected from showers/taps/WCs/urinals | E28: ='Potable Water Calculator'!N127 -> 0
C29: Sewage reduction due to treatment | E29: =E27+E28 -> 0 | I29: Shower Demand | J29: ='Potable Water Calculator'!L55 -> 0 | K29: <--From Potable Water Calculator
C32: REDUCED SEWER DISCHARGE
C33: The following estimated discharge to sewer is based on the data entered above and does not represent actual discharge to the sewer in the building.
E34: L/day/m2
C35: Predicted Water Consumption by Fixtures | E35: =E22 -> 0
C36: Less predicted Greywater and Blackwater treated | E36: =E29 -> 0
C37: Estimated discharge to sewer (L/day/m2) | E37: =ROUND(E35-E36,2) -> 0
C38: Points Achieved | E38: =IF(E35>0,VLOOKUP(J29,I51:L52,4),0) -> 0
C40: % sewer reduction | D40: Points | E40: L/day/m2 benchmark | I40: % sewer reduction | J40: L/day/m2 benchmark ((L/day/person)/(m2/person)) | M40: Points | N40: Calc (0%) | O40: Calc (3%)
J41: No showers installed | K41: 3% Occupants shower | N41: No showers installed | O41: Shower
C42: 0.9 | D42: 4 | E42: =HLOOKUP(J29,J42:K47,2) -> 0.1 | J42: 0 | K42: 1
C43: 0.7 | D43: 3 | E43: =HLOOKUP(J29,J42:L47,3) -> 0.3 | I43: 0.9 | J43: =(1-I43)*$J$47 -> 0.1 | K43: =(1-I43)*$K$47 -> 0.14 | M43: 4 | N43: =IF($E$37<=J43,1,0) -> 1 | O43: 1 | Q43: =K43-J43 -> 0.04
C44: 0.5 | D44: 2 | E44: =HLOOKUP(J29,J42:L47,4) -> 0.5 | I44: 0.7 | J44: =(1-I44)*$J$47 -> 0.3 | K44: =(1-I44)*$K$47 -> 0.42 | M44: 3 | N44: 1 | O44: 1 | Q44: =K44-J44 -> 0.12
C45: 0.3 | D45: 1 | E45: =HLOOKUP(J29,J42:L47,5) -> 0.7 | I45: 0.5 | J45: =(1-I45)*$J$47 -> 0.5 | K45: =(1-I45)*$K$47 -> 0.7 | M45: 2 | N45: 1 | O45: 1 | Q45: =K45-J45 -> 0.2
I46: 0.3 | J46: =(1-I46)*$J$47 -> 0.7 | K46: =(1-I46)*$K$47 -> 0.98 | M46: 1 | N46: 1 | O46: 1 | Q46: =K46-J46 -> 0.28
I47: Benchmark | J47: =15/15 -> 1 | K47: 1.4 | M47: 0 | N47: 0 | O47: 0
N48: =SUM(N43:N47) -> 4 | O48: =SUM(O43:O47) -> 4
I50: Shower Demand | J50: Description | L50: Points Achieved
I51: 0 | J51: No showers installed | L51: =N48 -> 4
I52: 1 | J52: 3% Occupants shower | L52: =O48 -> 4

Sheet RET_EMI_DataExtract (hidden)
A1: Key | B1: Value | C1: Dictionary | D1: Note:
A2: Retail_EMI_5_Sewage_Points | B2: ='Sewage Calculator'!F2 -> 0 | C2: RSP
A3: Retail_Sewage_Consumpt_WC | B3: ='Sewage Calculator'!E18 -> 0 | C3: RSCW | D3: L/day/m2
A4: Retail_Sewage_Consumpt_Urinals | B4: ='Sewage Calculator'!E19 -> 0 | C4: RSCU | D4: L/day/m2
A5: Retail_Sewage_Consumpt_Taps | B5: ='Sewage Calculator'!E20 -> 0 | C5: RSCT | D5: L/day/m2
A6: Retail_Sewage_Consumpt_Shower | B6: ='Sewage Calculator'!E21 -> 0 | C6: RSCS | D6: L/day/m2
A7: Retail_Sewage_Consumpt_Predicted_Water | B7: ='Sewage Calculator'!E22 -> 0 | C7: RSCP | D7: L/day/m2
A8: Retail_Sewage_Reduction_Treated_Water | B8: ='Sewage Calculator'!E29 -> 0 | C8: RSRP | D8: L/day/m2
A9: Retail_Sewage_Predicted_Grey_Water | B9: ='Sewage Calculator'!E27 -> 0 | C9: RSPGW | D9: L/day/m2
A10: Retail_Sewage_Predicted_Black_Water | B10: ='Sewage Calculator'!E28 -> 0 | C10: RSPBW | D10: L/day/m2

Sheet Innovation
A1: ='Building Input'!B1 -> Green Star SA - Retail Centre v1 | F1: Category Weighting: | G1: na | H1: Category Score
A2: Innovation | D2: Category Summary: | E2: =E8 -> 5 | F2: =F8 -> 0 | G2: =G8 -> 0 | H2: ='Credit Summary'!K98 -> 0
A3: Credit Summary for: | C3: =IF('Building Input'!$C$5=0,"",'Building Input'!$C$5) -> 
A4: Ref No. | B4: Title | C4: Aim of Credit | D4: Credit Criteria Summary | E4: No. of Points Available | F4: No. of Points Achieved | G4: Points to be Confirmed | H4: Comments
A5: Inn-1 | B5: Innovative Strategies & Technologies | C5: To encourage and recognise pioneering initiatives in sustainable design, process or advocacy. | D5: Up to two points can be awarded for an innovation initiative where: - The initiative is a technology or process that is considered a ‘first’ in South Africa or in the world; OR - The project substantially contributes to the broader market transformation towards sustainable development in South Africa or in the world. Points for this credit are allocated as follows: - One point is awarded when either of the above is true for the South African market; and - Two points are awarded when either of the above is true for the global market. Up to five innovation initiatives can be awarded points under this credit, but no individual initiative can achieve more than two points in this credit. Qualifying initiatives may achieve additional points in other Innovation credits; however, the maximum points available for any one building assessment under Inn-1, Inn-2 and Inn-3 is five (in total). | E5: 5 | I5: =IF(OR(ISTEXT(F5)=TRUE,ISTEXT(G5)=TRUE),Calculation1!$B$87,IF(F5+G5>E5,Calculation1!$B$84,"")) -> 
A6: Inn-2 | B6: Exceeding Green Star SA Benchmarks | C6: To encourage and recognise projects that achieve environmental benefits in excess of the current Green Star SA benchmarks. | D6: Up to two points can be awarded for an innovation initiative where there has been a substantial improvement on an existing Green Star SA credit, as follows: - One point for a solution that results in the elimination of the specific negative environmental impact of the project targeted by an existing credit; and - Two points for a solution that results in a substantial (e.g. 5% or greater above ‘neutral’) restorative environmental impact targeted by an existing credit. Up to five innovation initiatives can be awarded points under this credit, but no individual initiative can achieve more than two points in this credit. Qualifying initiatives may achieve additional points in other Innovation credits; however, the maximum points available for any one building assessment under Inn-1, Inn-2 and Inn-3 is five (in total). | I6: =IF(OR(ISTEXT(F6)=TRUE,ISTEXT(G6)=TRUE),Calculation1!$B$87,IF(F6+G6>E5,Calculation1!$B$84,"")) -> 
A7: Inn-3 | B7: Environmental Design Initiatives | C7: To encourage and recognise sustainable building initiatives that are currently outside of the scope of this Green Star SA rating tool but which have a substantial or significant environmental benefit. | D7: One point can be awarded where: - An initiative in the project viably addresses a valid environmental concern outside of the current scope of this Green Star SA tool. Up to five innovation initiatives can be awarded points under this credit, but no individual initiative can achieve more than one point in this credit. Qualifying initiatives may achieve additional points in other Innovation credits; however, the maximum points available for any one building assessment under Inn-1, Inn-2 and Inn-3 is five (in total). | I7: =IF(OR(ISTEXT(F7)=TRUE,ISTEXT(G7)=TRUE),Calculation1!$B$87,IF(F7+G7>E5,Calculation1!$B$84,"")) -> 
D8: Total Points: | E8: =SUM(E5:E7) -> 5 | F8: =SUM(F5:F7) -> 0 | G8: =SUM(G5:G7) -> 0
A12: =Calculation1!$B$93 -> Project Teams are to refer to the Green Star SA Retail Centre v1 Technical Manual for explicit credit criteria and documentation requirements.
A13: =Calculation1!$B$94 -> The Green Star Technical Clarifications (TC) and Credit Interpretation Request (CIR) rulings provide an essential source of information to all
A14: =Calculation1!$B$95 -> projects undertaking Green Star assessment. They are available on the GBCSA website http://www.gbcsa.org.za . Technical Clarifications
A15: =Calculation1!$B$96 -> often represent the GBCSA answers to technical queries and complement Green Star SA Technical Manuals. They do not amend but clarify
A16: =Calculation1!$B$97 -> Credit Criteria or Compliance Requirements. They are an extension of the Technical Manual; it is the responsibility of the project teams to stay
A17: =Calculation1!$B$98 -> up-to-date with this section of the GBCSA website. The CIR rulings offer alternative compliance options whenever those have been deemed
A18: =Calculation1!$B$99 -> equivalent in meeting the Aim of Credit.

Sheet Credit Summary
A1: ='Building Input'!B1 -> Green Star SA - Retail Centre v1 | D1: Comments:
A2: Credit Summary | D2: Enter description of project aspects etc.
A3: ='Building Input'!C5 -> 0
A5: Category | B5: Title | C5: Credit No. | D5: Points Available | E5: Points Achieved | G5: Points to be Confirmed | I5: Percent of Available Points Achieved | J5: Weighting | K5: Weighted Score
A7: Management
B8: =Management!B5 -> Green Star SA Accredited Professional | C8: Man - 1 | D8: =IF(Management!E5=0,"na",Management!E5) -> 2 | E8: =IF(D8="na","na",Management!F5) -> 0 | G8: =IF(D8="na","-",Management!G5) -> 0
B9: =Management!B6 -> Commissioning Clauses | C9: Man - 2 | D9: =SUM(Management!E6:E7) -> 2 | E9: =SUM(Management!F6:F7) -> 0 | G9: =SUM(Management!G6:G7) -> 0
B10: =Management!B8 -> Building Tuning | C10: Man - 3 | D10: =Management!E8 -> 2 | E10: =Management!F8 -> 0 | G10: =Management!G8 -> 0
B11: =Management!B9 -> Independent Commissioning Agent | C11: Man - 4 | D11: =Management!E9 -> 1 | E11: =Management!F9 -> 0 | G11: =Management!G9 -> 0
B12: =Management!B10 -> Building Guides | C12: Man - 5 | D12: =Management!E10 -> 2 | E12: =Management!F10 -> 0 | G12: =Management!G10 -> 0
B13: =Management!B11 -> Environmental Management | C13: Man - 6 | D13: =Management!E11+Management!E12 -> 2 | E13: =Management!F11+Management!F12 -> 0 | G13: =Management!G11+Management!G12 -> 0
B14: =Management!B13 -> Waste Management | C14: Man - 7 | D14: =Management!E13 -> 3 | E14: =Management!F13 -> 0 | G14: =Management!G13 -> 0
B15: =Management!B15 -> Waste and Recycling Management Plan | C15: Man - 9 | D15: =Management!E15 -> 1 | E15: =Management!F15 -> 0 | G15: =Management!G15 -> 0
B16: =Management!B16 -> Building Management Systems | C16: Man - 10 | D16: =Management!E16 -> 1 | E16: =Management!F16 -> 0 | G16: =Management!G16 -> 0
B17: =Management!B17 -> Green Lease | C17: Man - 11 | D17: =Management!E17 -> 1 | E17: =Management!F17 -> 0 | G17: =Management!G17 -> 0
C18: TOTAL | D18: =Management!E18 -> 17 | E18: =SUM(E8:E17) -> 0 | G18: =SUM(G8:G17) -> 0 | I18: =E18/D18 -> 0 | J18: 0.1 | K18: =I18*J18*100 -> 0
A20: Indoor Environment Quality
B21: =IEQ!B5 -> Ventilation Rates | C21: IEQ - 1 | D21: =IF(IEQ!E5=0,"na",IEQ!E5) -> 3 | E21: =IF(D21="na","na",IEQ!F5) -> 0 | G21: =IF(D21="na","-",IEQ!G5) -> 0
B22: =IEQ!B7 -> Air Change Effectiveness | C22: IEQ - 2 | D22: =IF(IEQ!E7=0,"na",IEQ!E7) -> 2 | E22: =IF(D22="na","na",IEQ!F7) -> 0 | G22: =IF(D22="na","-",IEQ!G7) -> 0
B23: =IEQ!B9 -> Carbon Dioxide Monitoring and Control | C23: IEQ - 3 | D23: =IF(IEQ!E9=0,"na",IEQ!E9) -> 1 | E23: =IF(D23="na","na",IEQ!F9) -> 0 | G23: =IF(D23="na","-",IEQ!G9) -> 0
B24: =IEQ!B11 -> Daylight | C24: IEQ - 4 | D24: =IEQ!E11 -> 2 | E24: =IEQ!F11 -> 0 | G24: =IEQ!G11 -> 0
B25: =IEQ!B16 -> Thermal Comfort | C25: IEQ - 9 | D25: =IF((SUM(IEQ!E16:E17))=0,"na",(SUM(IEQ!E16:E17))) -> 2 | E25: =IF(D25="na","na",(SUM(IEQ!F16:F17))) -> 0 | G25: =IF(D25="na","-",(IEQ!G16+IEQ!G17)) -> 0
B26: =IEQ!B19 -> Hazardous Materials | C26: IEQ - 11 | D26: =IF(IEQ!E19=0,"na",IEQ!E19) -> 1 | E26: =IF(D26="na","na",IEQ!F19) -> 0 | G26: =IF(D26="na","-",IEQ!G19) -> 0
B27: =IEQ!B20 -> Internal Noise Levels | C27: IEQ - 12 | D27: =IF(IEQ!E20=0,"na",IEQ!E20) -> 1 | E27: =IF(D27="na","na",IEQ!F20) -> 0 | G27: =IF(D27="na","-",IEQ!G20) -> 0
B28: =IEQ!B21 -> Volatile Organic Compounds | C28: IEQ - 13 | D28: =SUM(IEQ!E21:E22) -> 2 | E28: =SUM(IEQ!F21:F22) -> 0 | G28: =SUM(IEQ!G21:G22) -> 0
B29: =IEQ!B23 -> Formaldehyde Minimisation | C29: IEQ - 14 | D29: =IF(IEQ!E23=0,"na",IEQ!E23) -> 1 | E29: =IF(D29="na","na",IEQ!F23) -> 0 | G29: =IF(D29="na","-",IEQ!G23) -> 0
B30: =IEQ!B24 -> Mould Prevention | C30: IEQ - 15 | D30: =IF(IEQ!E24=0,"na",IEQ!E24) -> 1 | E30: =IF(D30="na","na",IEQ!F24) -> 0 | G30: =IF(D30="na","-",IEQ!G24) -> 0
B31: =IEQ!B27 -> Places of Respite and Connection to Nature | C31: IEQ - 18 | D31: =IEQ!E27 -> 1 | E31: =IEQ!F27 -> 0 | G31: =IEQ!G27 -> 0
C32: TOTAL | D32: =IEQ!E28 -> 17 | E32: =SUM(E21:E31) -> 0 | G32: =SUM(G21:G31) -> 0 | I32: =E32/D32 -> 0 | J32: 0.1 | K32: =I32*J32*100 -> 0
A34: Energy
B35: =Energy!B5 -> Conditional Requirement | C35: Ene - 0 | D35: ="0" -> 0 | E35: =IF('Energy Calculator'!U121="No","Not Achieved","Achieved") -> Achieved | G35: ="-" -> -
B36: =Energy!B6 -> Greenhouse Gas Emissions | C36: Ene - 1 | D36: =Energy!E6 -> 20 | E36: =Energy!F6 -> 0 | G36: =Energy!G6 -> 0
B37: =Energy!B7 -> Electrical Energy Sub-metering | C37: Ene - 2 | D37: =Energy!E7 -> 2 | E37: =Energy!F7 -> 0 | G37: =Energy!G7 -> 0
B38: =Energy!B10 -> Maximum Electrical Demand Reduction | C38: Ene - 5 | D38: =Energy!E10 -> 3 | E38: =Energy!F10 -> 0 | G38: =Energy!G10 -> 0
B39: =Energy!B11 -> Thermal Energy Sub-metering | C39: Ene - 6 | D39: =IF(Energy!E11=0,"na",Energy!E11) -> 1 | E39: =IF(D39="na","na",Energy!F11) -> 0 | G39: =IF(D39="na","-",Energy!G11) -> 0
C40: TOTAL | D40: =Energy!E12 -> 26 | E40: =SUM(E36:E39) -> 0 | G40: =SUM(G36:G39) -> 0 | I40: =E40/D40 -> 0 | J40: 0.25 | K40: =I40*J40*100 -> 0
A42: Transport
B43: =Transport!B5 -> Provision of Car Parking | C43: Tra - 1 | D43: =IF(Transport!E5=0,"na",Transport!E5) -> 2 | E43: =IF(D43="na","na",Transport!F5) -> 0 | G43: =IF(D43="na","-",Transport!G5) -> 0
B44: =Transport!B6 -> Fuel-Efficient Transport | C44: Tra - 2 | D44: =IF(Transport!E6=0,"na",Transport!E6) -> 1 | E44: =IF(D44="na","na",Transport!F6) -> 0 | G44: =IF(D44="na","-",Transport!G6) -> 0
B45: =Transport!B7 -> Cyclist Facilities | C45: Tra - 3 | D45: =SUM(Transport!E7:E8) -> 3 | E45: =SUM(Transport!F7:F8) -> 0 | G45: =SUM(Transport!G7:G8) -> 0
B46: =Transport!B9 -> Commuting Mass Transport | C46: Tra - 4 | D46: =SUM(Transport!E9:E10) -> 6 | E46: =SUM(Transport!F9:F10) -> 0 | G46: =SUM(Transport!G9:G10) -> 0
B47: =Transport!B13 -> Trip Reduction - Mixed-Use | C47: Tra - 6 | D47: =Transport!E13 -> 1 | E47: =Transport!F13 -> 0 | G47: =Transport!G13 -> 0
B48: =Transport!B14 -> Vehicle Operating Emissions | C48: Tra - 7 | D48: =Transport!E14 -> 2 | E48: =Transport!F14 -> 0 | G48: =Transport!G14 -> 0
C49: TOTAL | D49: =Transport!E15 -> 15 | E49: =SUM(E43:E48) -> 0 | G49: =SUM(G43:G48) -> 0 | I49: =E49/D49 -> 0 | J49: 0.12 | K49: =I49*J49*100 -> 0
A51: Water
B52: =Water!B5 -> Occupant Amenity Water | C52: Wat - 1 | D52: =Water!E5 -> 5 | E52: =Water!F5 -> 0 | G52: =Water!G5 -> 0
B53: =Water!B6 -> Water Meters | C53: Wat - 2 | D53: =SUM(Water!E6:E7) -> 3 | E53: =SUM(Water!F6:F7) -> 0 | G53: =SUM(Water!G6:G7) -> 0
B54: =Water!B8 -> Landscape Irrigation | C54: Wat - 3 | D54: =IF((SUM(Water!E8:E9))=0,"na",(SUM(Water!E8:E9))) -> 3 | E54: =IF(D54="na","na",SUM(Water!F8:F9)) -> 0 | G54: =IF(D54="na","-",SUM(Water!G8:G9)) -> 0
B55: =Water!B10 -> Heat Rejection Water | C55: Wat - 4 | D55: =Water!E10 -> 4 | E55: =Water!F10 -> 0 | G55: =Water!G10 -> 0
B56: =Water!B11 -> Fire System Water Consumption | C56: Wat - 5 | D56: =IF(Water!E11=0,"na",Water!E11) -> 1 | E56: =IF(D56="na","na",Water!F11) -> 0 | G56: =IF(D56="na","na",Water!G11) -> 0
C57: TOTAL | D57: =Water!E12 -> 16 | E57: =SUM(E52:E56) -> 0 | G57: =SUM(G52:G56) -> 0 | I57: =E57/D57 -> 0 | J57: 0.15 | K57: =I57*J57*100 -> 0
A59: Materials
B60: =Materials!B5 -> Recycling Waste Storage | C60: Mat - 1 | D60: =Materials!E5 -> 2 | E60: =Materials!F5 -> 0 | G60: =Materials!G5 -> 0
B61: =Materials!B6 -> Building Reuse | C61: Mat - 2 | D61: =IF(Materials!E6=0,"na",Materials!E6) -> 5 | E61: =IF(D61="na","na",Materials!F6) -> 0 | G61: =IF(D61="na","-",Materials!G6) -> 0
B62: =Materials!B7 -> Recycled Content & Re-Used Materials | C62: Mat - 3 | D62: =SUM(Materials!E7:E8) -> 3 | E62: =SUM(Materials!F7:F8) -> 0 | G62: =SUM(Materials!G7:G8) -> 0
B63: =Materials!B10 -> Concrete | C63: Mat - 5 | D63: =IF((SUM(Materials!E10:E11))=0,"na",(SUM(Materials!E10:E11))) -> 3 | E63: =IF(D63="na","na",SUM(Materials!F10:F11)) -> 0 | G63: =IF(D63="na","-",SUM(Materials!G10:G11)) -> 0
B64: =Materials!B12 -> Steel | C64: Mat - 6 | D64: =IF(SUM(Materials!E12:E13)=0,"na",SUM(Materials!E12:E13)) -> 3 | E64: =IF(D64="na","na",SUM(Materials!F12:F13)) -> 0 | G64: =IF(D64="na","-",(SUM(Materials!G12:G13))) -> 0
B65: =Materials!B14 -> PVC Minimisation | C65: Mat - 7 | D65: =Materials!E14 -> 1 | E65: =Materials!F14 -> 0 | G65: =Materials!G14 -> 0
B66: =Materials!B15 -> Sustainable Timber | C66: Mat - 8 | D66: =IF(Materials!E15=0,"na",Materials!E15) -> 2 | E66: =IF(D66="na","na",Materials!F15) -> 0 | G66: =IF(D66="na","-",Materials!G15) -> 0
B67: =Materials!B16 -> Design for Disassembly | C67: Mat - 9 | D67: =IF(Materials!E16=0,"na",Materials!E16) -> 1 | E67: =IF(D67="na","na",Materials!F16) -> 0 | G67: =IF(D67="na","-",Materials!G16) -> 0
B68: =Materials!B17 -> Dematerialisation | C68: Mat - 10 | D68: =Materials!E17 -> 1 | E68: =Materials!F17 -> 0 | G68: =Materials!G17 -> 0
B69: =Materials!B28 -> Local Sourcing | C69: Mat - 11 | D69: =Materials!E28 -> 2 | E69: =Materials!F28 -> 0 | G69: =Materials!G28 -> 0
C70: TOTAL | D70: =Materials!E29 -> 23 | E70: =SUM(E60:E69) -> 0 | G70: =SUM(G60:G69) -> 0 | I70: =E70/D70 -> 0 | J70: 0.13 | K70: =I70*J70*100 -> 0
A72: Land Use & Ecology
B73: ='Land Use & Ecology'!B5 -> Conditional Requirement | C73: Eco - 0 | D73: ="0" -> 0 | E73: =IF('Land Use & Ecology'!Q22=TRUE,"Achieved","Not Achieved") -> Not Achieved | G73: ="-" -> -
B74: ='Land Use & Ecology'!B8 -> Topsoil | C74: Eco - 1 | D74: =IF('Land Use & Ecology'!E8=0,"na",'Land Use & Ecology'!E8) -> 1 | E74: =IF(D74="na","na",'Land Use & Ecology'!F8) -> 0 | G74: =IF(D74="na","-",'Land Use & Ecology'!G8) -> 0
B75: ='Land Use & Ecology'!B9 -> Reuse of Land | C75: Eco - 2 | D75: ='Land Use & Ecology'!E9 -> 2 | E75: ='Land Use & Ecology'!F9 -> 0 | G75: ='Land Use & Ecology'!G9 -> 0
B76: ='Land Use & Ecology'!B10 -> Reclaimed Contaminated Land | C76: Eco - 3 | D76: =IF('Land Use & Ecology'!E10=0,"na",'Land Use & Ecology'!E10) -> 2 | E76: =IF(D76=0,"na",'Land Use & Ecology'!F10) -> 0 | G76: =IF(D76="na","-",'Land Use & Ecology'!G10) -> 0
B77: ='Land Use & Ecology'!B11 -> Change of Ecological Value | C77: Eco - 4 | D77: ='Land Use & Ecology'!E11 -> 4 | E77: ='Land Use & Ecology'!F11 -> 0 | G77: ='Land Use & Ecology'!G11 -> 0
B78: ='Land Use & Ecology'!B12 -> Urban Heat Island | C78: Eco - 5 | D78: ='Land Use & Ecology'!E12 -> 2 | E78: ='Land Use & Ecology'!F12 -> 0 | G78: ='Land Use & Ecology'!G12 -> 0
C79: TOTAL | D79: ='Land Use & Ecology'!E13 -> 11 | E79: =SUM(E73:E78) -> 0 | G79: =SUM(G73:G78) -> 0 | I79: =E79/D79 -> 0 | J79: 0.07 | K79: =I79*J79*100 -> 0
A81: Emissions
B82: =Emissions!B5 -> Refrigerant / Gaseous ODP | C82: Emi - 1 | D82: =Emissions!E5 -> 1 | E82: =Emissions!F5 -> 0 | G82: =Emissions!G5 -> 0
B83: =Emissions!B6 -> Refrigerant GWP | C83: Emi - 2 | D83: =Emissions!E6 -> 2 | E83: =Emissions!F6 -> 0 | G83: =Emissions!G6 -> 0
B84: =Emissions!B7 -> Refrigerant Leaks | C84: Emi - 3 | D84: =IF(SUM(Emissions!E7:E8)=0,"na",SUM(Emissions!E7:E8)) -> 2 | E84: =IF(D84="na","na",SUM(Emissions!F7:F8)) -> 0 | G84: =IF(D84="na","-",Emissions!G7+Emissions!G8) -> 0
B85: =Emissions!B9 -> Insulant ODP | C85: Emi - 4 | D85: =Emissions!E9 -> 1 | E85: =Emissions!F9 -> 0 | G85: =Emissions!G9 -> 0
B86: =Emissions!B10 -> Watercourse Pollution | C86: Emi - 5 | D86: =IF(SUM(Emissions!E10:E12)=0,"na",SUM(Emissions!E10:E12)) -> 3 | E86: =IF(D86="na","na",SUM(Emissions!F10:F12)) -> 0 | G86: =IF(D86="na","-",(SUM(Emissions!G10:G12))) -> 0
B87: =Emissions!B13 -> Discharge to Sewer | C87: Emi - 6 | D87: =SUM(Emissions!E13:E14) -> 5 | E87: =SUM(Emissions!F13:F14) -> 0 | G87: =SUM(Emissions!G13:G14) -> 0
B88: =Emissions!B15 -> Light Pollution | C88: Emi - 7 | D88: =Emissions!E15 -> 1 | E88: =Emissions!F15 -> 0 | G88: =Emissions!G15 -> 0
B89: =Emissions!B16 -> Legionella | C89: Emi - 8 | D89: =Emissions!E16 -> 1 | E89: =Emissions!F16 -> 0 | G89: =Emissions!G16 -> 0
B90: =Emissions!B17 -> Boiler and Generator Emissions | C90: Emi - 9 | D90: =IF(Emissions!E17=0,"na",Emissions!E17) -> 1 | E90: =IF(D90="na","na",Emissions!F17) -> 0 | G90: =IF(D90="na","-",Emissions!G17) -> 0
B91: =Emissions!B18 -> Kitchen Exhaust Emissions | C91: Emi - 10 | D91: =IF(Emissions!E18=0,"na",Emissions!E18) -> 1 | E91: =IF(D91="na","na",Emissions!F18) -> 0 | G91: =IF(D91="na","-",Emissions!G18) -> 0
C92: TOTAL | D92: =Emissions!E19 -> 18 | E92: =SUM(E82:E91) -> 0 | G92: =SUM(G82:G91) -> 0 | I92: =E92/D92 -> 0 | J92: 0.08 | K92: =I92*J92*100 -> 0
J93: Sub-total weighted points achieved: | K93: =K18+K32+K40+K49+K57+K70+K79+K92 -> 0
A94: Innovation
B95: =Innovation!B5 -> Innovative Strategies & Technologies | C95: Inn - 1 | D95: 5 | E95: =Innovation!F5 -> 0 | G95: =Innovation!G5 -> 0
B96: =Innovation!B6 -> Exceeding Green Star SA Benchmarks | C96: Inn - 2 | D96: 5 | E96: =Innovation!F6 -> 0 | G96: =Innovation!G6 -> 0
B97: =Innovation!B7 -> Environmental Design Initiatives | C97: Inn - 3 | D97: 5 | E97: =Innovation!F7 -> 0 | G97: =Innovation!G7 -> 0
C98: TOTAL | D98: =Innovation!E8 -> 5 | E98: =SUM(E95:E97) -> 0 | G98: =SUM(G95:G97) -> 0 | I98: (Innovation is not weighted) | K98: =E98 -> 0
J100: Total weighted points achieved: | K100: =K93+K98 -> 0
A105: The GBCSA does not endorse any self-assessed rating achieved by the use of Green Star SA - Retail Centre v1. The GBCSA offers a formal certification process for ratings of Four Stars and above; this service provides for independent third party review of points claimed to ensure all points can be demonstrated to be achieved by the provision of the necessary documentary evidence. The use of Green Star SA - Retail Centre v1 without formal certification by the GBCSA does not entitle the user or any other party to promote the Green Star SA rating achieved. | I105: Weighted Score | J105: Rating
I107: 45-59 | J107: Four Star
I108: 60-74 | J108: Five Star
I109: 75+ | J109: Six Star

Sheet Graphical Summary
B1: ='Building Input'!B1 -> Green Star SA - Retail Centre v1
B2: Graphical Summary
B3: Summary for: | D3: =IF('Building Input'!$C$5=0,"",'Building Input'!$C$5) -> 
B5: =IF('Credit Summary'!K100<45,"Official GBCSA certification NOT permitted. The Project must achieve a minimum final point score of 45 weighted points for certification","The number of points inputted would equate to a "&Calculation1!C61&" rating, once certified.") -> Official GBCSA certification NOT permitted. The Project must achieve a minimum final point score of 45 weighted points for certification

Sheet Rainfall data (hidden)
B1: Precipitation Average Monthly (mm)
C2: January | D2: February | E2: March | F2: April | G2: May | H2: June | I2: July | J2: August | K2: September | L2: October | M2: November | N2: December | O2: TOTAL | P2: annual number of rain days
A3: 1
A4: 2 | B4: Beaufort West | C4: 35 | D4: 30 | E4: 30 | F4: 20 | G4: 11 | H4: 8 | I4: 9 | J4: 14 | K4: 12 | L4: 21 | M4: 27 | N4: 19 | O4: =SUM(C4:N4) -> 236 | P4: 43
A5: 3 | B5: Bela-Bela | C5: 120 | D5: 84 | E5: 74 | F5: 37 | G5: 7 | H5: 6 | I5: 2 | J5: 5 | K5: 16 | L5: 58 | M5: 101 | N5: 124 | O5: 634 | P5: 74
A6: 4 | B6: Belfast | C6: 170 | D6: 101 | E6: 83 | F6: 53 | G6: 16 | H6: 7 | I6: 5 | J6: 9 | K6: 33 | L6: 93 | M6: 156 | N6: 152 | O6: 878 | P6: 83
A7: 5 | B7: Bethal | C7: 146 | D7: 75 | E7: 61 | F7: 48 | G7: 14 | H7: 7 | I7: 6 | J7: 13 | K7: 28 | L7: 78 | M7: 129 | N7: 106 | O7: 711 | P7: 90
A8: 6 | B8: Bethlehem | C8: 96 | D8: 77 | E8: 94 | F8: 58 | G8: 9 | H8: 12 | I8: 7 | J8: 27 | K8: 35 | L8: 83 | M8: 96 | N8: 86 | O8: 680 | P8: 98
A9: 7 | B9: Bloemfontein | C9: 83 | D9: 111 | E9: 72 | F9: 56 | G9: 17 | H9: 12 | I9: 8 | J9: 15 | K9: 24 | L9: 43 | M9: 58 | N9: 60 | O9: 559 | P9: 84
A10: 8 | B10: Calvinia | C10: 14 | D10: 12 | E10: 26 | F10: 27 | G10: 22 | H10: 34 | I10: 23 | J10: 24 | K10: 13 | L10: 11 | M10: 13 | N10: 9 | O10: 228 | P10: 50
A11: 9 | B11: Cape Town | C11: 15 | D11: 17 | E11: 20 | F11: 41 | G11: 69 | H11: 93 | I11: 82 | J11: 77 | K11: 40 | L11: 30 | M11: 14 | N11: 17 | O11: 515 | P11: 103
A12: 10 | B12: De Aar | C12: 36 | D12: 60 | E12: 52 | F12: 41 | G12: 16 | H12: 13 | I12: 13 | J12: 15 | K12: 11 | L12: 26 | M12: 30 | N12: 23 | O12: 336 | P12: 55
A13: 11 | B13: Durban | C13: 134 | D13: 113 | E13: 120 | F13: 73 | G13: 59 | H13: 28 | I13: 39 | J13: 62 | K13: 73 | L13: 98 | M13: 108 | N13: 102 | O13: 1009 | P13: 130
A14: 12 | B14: East London | C14: 69 | D14: 92 | E14: 105 | F14: 83 | G14: 52 | H14: 40 | I14: 47 | J14: 78 | K14: 80 | L14: 102 | M14: 110 | N14: 63 | O14: 921 | P14: 121
A15: 13 | B15: George | C15: 63 | D15: 59 | E15: 69 | F15: 71 | G15: 53 | H15: 45 | I15: 43 | J15: 68 | K15: 60 | L15: 64 | M15: 61 | N15: 59 | O15: 715 | P15: 121
A16: 14 | B16: Johannesburg | C16: 125 | D16: 90 | E16: 91 | F16: 54 | G16: 13 | H16: 9 | I16: 4 | J16: 6 | K16: 27 | L16: 72 | M16: 117 | N16: 105 | O16: 713 | P16: 99
A17: 15 | B17: Kimberley | C17: 57 | D17: 76 | E17: 65 | F17: 49 | G17: 16 | H17: 7 | I17: 7 | J17: 7 | K17: 12 | L17: 30 | M17: 42 | N17: 46 | O17: 414 | P17: 71
A18: 16 | B18: Ladysmith | C18: 145 | D18: 106 | E18: 90 | F18: 39 | G18: 14 | H18: 6 | I18: 5 | J18: 26 | K18: 38 | L18: 77 | M18: 91 | N18: 112 | O18: 749 | P18: 93
A19: 17 | B19: Langebaan | C19: 8 | D19: 4 | E19: 11 | F19: 24 | G19: 40 | H19: 41 | I19: 47 | J19: 45 | K19: 24 | L19: 12 | M19: 12 | N19: 10 | O19: 278 | P19: 76
A20: 18 | B20: Musina | C20: 58 | D20: 57 | E20: 39 | F20: 27 | G20: 10 | H20: 4 | I20: 1 | J20: 1 | K20: 12 | L20: 24 | M20: 49 | N20: 57 | O20: 339 | P20: 42
A21: 19 | B21: Nelspruit | C21: 127 | D21: 108 | E21: 90 | F21: 51 | G21: 15 | H21: 9 | I21: 10 | J21: 10 | K21: 26 | L21: 75 | M21: 115 | N21: 131 | O21: 767 | P21: 100
A22: 20 | B22: Nmmabatho | C22: 117 | D22: 83 | E22: 74 | F22: 57 | G22: 14 | H22: 5 | I22: 3 | J22: 5 | K22: 13 | L22: 37 | M22: 64 | N22: 67 | O22: 539 | P22: 72
A23: 21 | B23: Pietermaritzburg | C23: 141 | D23: 117 | E23: 113 | F23: 48 | G23: 24 | H23: 13 | I23: 11 | J23: 31 | K23: 60 | L23: 74 | M23: 104 | N23: 108 | O23: 844 | P23: 138
A24: 22 | B24: Pilansberg | C24: 78 | D24: 71 | E24: 58 | F24: 38 | G24: 6 | H24: 12 | I24: 3 | J24: 5 | K24: 25 | L24: 57 | M24: 61 | N24: 105 | O24: 519 | P24: 69
A25: 23 | B25: Polokwane | C25: 82 | D25: 60 | E25: 52 | F25: 33 | G25: 11 | H25: 5 | I25: 3 | J25: 6 | K25: 17 | L25: 43 | M25: 85 | N25: 81 | O25: 478 | P25: 65
A26: 24 | B26: Port Elizabeth | C26: 36 | D26: 40 | E26: 54 | F26: 58 | G26: 59 | H26: 62 | I26: 47 | J26: 64 | K26: 62 | L26: 59 | M26: 49 | N26: 34 | O26: =SUM(C26:N26) -> 624 | P26: 112
A27: 25 | B27: Pretoria | C27: 136 | D27: 75 | E27: 82 | F27: 51 | G27: 13 | H27: 7 | I27: 3 | J27: 6 | K27: 22 | L27: 71 | M27: 98 | N27: 110 | O27: =SUM(C27:N27) -> 674 | P27: 87
A28: 26 | B28: Richards Bay | C28: 172 | D28: 167 | E28: 107 | F28: 109 | G28: 109 | H28: 57 | I28: 60 | J28: 65 | K28: 77 | L28: 105 | M28: 114 | N28: 86 | O28: 1228 | P28: 113
A29: 27 | B29: Skukuza | C29: 94 | D29: 96 | E29: 66 | F29: 38 | G29: 14 | H29: 11 | I29: 11 | J29: 8 | K29: 28 | L29: 40 | M29: 63 | N29: 92 | O29: 561 | P29: 71
A30: 28 | B30: Thohoyandou | C30: 74 | D30: 108 | E30: 75 | F30: 47 | G30: 15 | H30: 17 | I30: 14 | J30: 11 | K30: 39 | L30: 93 | M30: 76 | N30: 128 | O30: 697 | P30: 94
A31: 29 | B31: Tstsikama | C31: 77 | D31: 70 | E31: 81 | F31: 80 | G31: 86 | H31: 75 | I31: 78 | J31: 111 | K31: 66 | L31: 83 | M31: 78 | N31: 60 | O31: 945 | P31: 91
A32: 30 | B32: Umtata | C32: 87 | D32: 89 | E32: 83 | F32: 58 | G32: 18 | H32: 11 | I32: 18 | J32: 15 | K32: 35 | L32: 73 | M32: 75 | N32: 88 | O32: 650 | P32: 113
A33: 31 | B33: Upington | C33: 24 | D33: 35 | E33: 37 | F33: 26 | G33: 10 | H33: 4 | I33: 2 | J33: 4 | K33: 4 | L33: 9 | M33: 17 | N33: 17 | O33: 189 | P33: 37
C35: January | D35: February | E35: March | F35: April | G35: May | H35: June | I35: July | J35: August | K35: September | L35: October | M35: November | N35: December | O35: total | P35: annual number of rain days >1mm
B36: Bloemfontein | C36: =VLOOKUP($B$36,$B$4:$N$33,2,FALSE) -> 83 | D36: =VLOOKUP(B36,B4:N33,3,FALSE) -> 111 | E36: =VLOOKUP($B$36,$B$4:$N$33,4,FALSE) -> 72 | F36: =VLOOKUP($B$36,$B$4:$N$33,5,FALSE) -> 56 | G36: =VLOOKUP($B$36,$B$4:$N$33,6,FALSE) -> 17 | H36: =VLOOKUP($B$36,$B$4:$N$33,7,FALSE) -> 12 | I36: =VLOOKUP($B$36,$B$4:$N$33,8,FALSE) -> 8 | J36: =VLOOKUP($B$36,$B$4:$N$33,9,FALSE) -> 15 | K36: =VLOOKUP($B$36,$B$4:$N$33,10,FALSE) -> 24 | L36: =VLOOKUP($B$36,$B$4:$N$33,11,FALSE) -> 43 | M36: =VLOOKUP($B$36,$B$4:$N$33,12,FALSE) -> 58 | N36: =VLOOKUP($B$36,$B$4:$N$33,13,FALSE) -> 60 | O36: =VLOOKUP($B$36,$B$4:$P$33,14,FALSE) -> 559 | P36: =VLOOKUP($B$36,$B$4:$P$33,15,FALSE) -> 84

Sheet Calculation (hidden)
B1: Green Star SA - Office v1 | G1: =N25 -> New Building
B2: Credit Summary for: | C2: =IF(#REF!=0,"",#REF!) -> 
A6: Category Weightings
C7: STATE BASED WEIGHTING FACTORS
B8: Baseline | C8: Gauteng | D8: W Cape | E8: E Cape | F8: N Cape | G8: KZN | H8: Limpopo | I8: N West | J8: Free State | K8: Mpumalanga | L8: State list
A9: Management | B9: 0.09 | C9: 0.09 | D9: 0.09 | E9: 0.09 | F9: 0.09 | G9: 0.09 | H9: 0.09 | I9: 0.09 | J9: 0.09 | K9: 0.09 | L9: 1 | M9: Gauteng
A10: Indoor Environment Quality | B10: 0.15 | C10: 0.15 | D10: 0.15 | E10: 0.15 | F10: 0.15 | G10: 0.15 | H10: 0.15 | I10: 0.15 | J10: 0.15 | K10: 0.15 | L10: 2 | M10: W Cape
A11: Energy | B11: 0.25 | C11: 0.25 | D11: 0.25 | E11: 0.25 | F11: 0.25 | G11: 0.25 | H11: 0.25 | I11: 0.25 | J11: 0.25 | K11: 0.25 | L11: 3 | M11: E Cape
A12: Transport | B12: 0.09 | C12: 0.09 | D12: 0.09 | E12: 0.09 | F12: 0.09 | G12: 0.09 | H12: 0.09 | I12: 0.09 | J12: 0.09 | K12: 0.09 | L12: 4 | M12: N Cape
A13: Water | B13: 0.14 | C13: 0.14 | D13: 0.14 | E13: 0.14 | F13: 0.14 | G13: 0.14 | H13: 0.14 | I13: 0.14 | J13: 0.14 | K13: 0.14 | L13: 5 | M13: KZN
A14: Materials | B14: 0.13 | C14: 0.13 | D14: 0.13 | E14: 0.13 | F14: 0.13 | G14: 0.13 | H14: 0.13 | I14: 0.13 | J14: 0.13 | K14: 0.13 | L14: 6 | M14: Limpopo
A15: Land use & Ecology | B15: 0.07 | C15: 0.07 | D15: 0.07 | E15: 0.07 | F15: 0.07 | G15: 0.07 | H15: 0.07 | I15: 0.07 | J15: 0.07 | K15: 0.07 | L15: 7 | M15: N West
A16: Emissions | B16: 0.08 | C16: 0.08 | D16: 0.08 | E16: 0.08 | F16: 0.08 | G16: 0.08 | H16: 0.08 | I16: 0.08 | J16: 0.08 | K16: 0.08 | L16: 8 | M16: Free State
L17: 9 | M17: Mpumalanga
B18: =SUM(B9:B16) -> 1 | C18: =SUM(C9:C16) -> 1 | D18: 1 | E18: 1 | F18: 1 | G18: 1 | H18: 1 | I18: 1 | J18: 1 | K18: =SUM(K9:K16) -> 1 | L18: State selected = | M18: 1 | N18: =VLOOKUP(M18,L9:M17,2) -> Gauteng
O20: note:
L21: Type of assessment | O21: Green cells update with changes to Building Input Sheet
L22: 1 | M22: New Building
L23: 2 | M23: Refurbished Building
L25: Type selected = | M25: 1 | N25: =VLOOKUP(M25,L22:M23,2) -> New Building
B26: Mandatory requirements
L27: Type of Rating | R27: 1
L28: 1 | N28: Green Star SA - Office Design v1
L29: 2 | M29: Green Star SA - Office Design v1 | N29: Green Star SA - Office Design v1
B30: Yes | C30: If there are mandatory requirements then this cell to the left | L30: 3 | M30: Green Star SA - Office As Built v1 | N30: Green Star SA - Office As Built v1
C31: needs to read yes ONLY if they have been met. | K31: Type Selected = | M31: 1 | N31: =VLOOKUP(M31,L28:N30,3,) -> Green Star SA - Office Design v1
A32: Points Calculation
B33: Category | C33: Weighting | D33: Max Score per category | E33: Total of credits available | F33: Points achieved | G33: % of points achieved | H33: Weighted Score (achieved) | I33: Credits tbc | J33: % of credits tbc | K33: Weighted Score tbc | L33: Achieved + tbc credits | M33: % of achieved + tbc | N33: Potential weighted score | O33: Error check
B34: Management | C34: =VLOOKUP(B34,A9:K9,$M$18+2) -> 0.09 | D34: =C34*100 -> 9 | E34: =#REF! ->  | F34: =#REF! ->  | G34: =F34/E34 ->  | H34: =C34*G34*100 ->  | I34: =#REF! ->  | J34: =I34/E34 ->  | K34: =C34*J34*100 ->  | L34: =F34+I34 ->  | M34: =L34/E34 ->  | N34: =C34*M34*100 ->  | O34: =#REF! -> 
B35: Indoor Environment Quality | C35: 0.15 | D35: 15 | E35: =IEQ!E28 -> 17 | F35: =IEQ!F28 -> 0 | G35: 0 | H35: 0 | I35: =IEQ!G28 -> 0 | J35: 0 | K35: 0 | L35: 0 | M35: 0 | N35: 0 | O35: =IEQ!I28 -> 0
B36: Energy | C36: 0.25 | D36: 25 | E36: =Energy!E12 -> 26 | F36: =Energy!F12 -> 0 | G36: 0 | H36: 0 | I36: =Energy!G12 -> 0 | J36: 0 | K36: 0 | L36: 0 | M36: 0 | N36: 0 | O36: =Energy!I12 -> 0
B37: Transport | C37: 0.09 | D37: 9 | E37: =#REF! ->  | F37: =#REF! ->  | I37: =#REF! ->  | O37: =#REF! -> 
B38: Water | C38: 0.14 | D38: 14 | E38: =Water!E12 -> 16 | F38: =Water!F12 -> 0 | G38: 0 | H38: 0 | I38: =Water!G12 -> 0 | J38: 0 | K38: 0 | L38: 0 | M38: 0 | N38: 0 | O38: =Water!I12 -> 0
B39: Materials | C39: 0.13 | D39: 13 | E39: =#REF! ->  | F39: =#REF! ->  | I39: =#REF! ->  | O39: =#REF! -> 
B40: Land use & Ecology | C40: 0.07 | D40: 7 | E40: ='Land Use & Ecology'!E13 -> 11 | F40: ='Land Use & Ecology'!F13 -> 0 | G40: 0 | H40: 0 | I40: ='Land Use & Ecology'!G13 -> 0 | J40: 0 | K40: 0 | L40: 0 | M40: 0 | N40: 0 | O40: ='Land Use & Ecology'!I13 -> 0
B41: Emissions | C41: 0.08 | D41: 8 | E41: =Emissions!E19 -> 18 | F41: =Emissions!F19 -> 0 | G41: 0 | H41: 0 | I41: =Emissions!G19 -> 0 | J41: 0 | K41: 0 | L41: 0 | M41: 0 | N41: 0 | O41: =Emissions!I19 -> 0
B42: Total | C42: =SUM(C34:C41) -> 1 | D42: =SUM(D34:D41) -> 100 | E42: =SUM(E34:E41) ->  | F42: =SUM(F34:F41) ->  | H42: =SUM(H34:H41) ->  | I42: =SUM(I34:I41) ->  | K42: =SUM(K34:K41) ->  | L42: =SUM(L34:L41) ->  | N42: =SUM(N34:N41) -> 
B43: Innovation | E43: =Innovation!E8 -> 5 | F43: =Innovation!F8 -> 0 | H43: =F43 -> 0 | I43: =Innovation!G8 -> 0 | K43: =I43 -> 0 | L43: =F43+I43 -> 0 | N43: =L43 -> 0 | O43: =Innovation!I7 -> 
B44: Overall Score | H44: =H42+H43 ->  | K44: =K42+K43 ->  | L44: =L42+L43 ->  | N44: =N42+N43 ->  | O44: =SUM(O34:O43) -> 
C46: Scores required for GBRT Ratings | F46: data for graphical summary page | K46: data for graphical summary page
C47: 0 | D47: No Rating | F47: Category Score Data | L47: Rating Chart | M47: Green Star | N47: Achieved
C48: 10 | D48: One Star | L48: No Rating | M48: =C48-C47 -> 10 | N48: =MAX(0,MIN($M48,$H$44-$C47)) -> 
C49: 20 | D49: Two Star | H49: Available | I49: Achieved | J49: tbc | L49: One Star | M49: 10
C50: 30 | D50: Three Star | G50: =B34 -> Management | H50: 1 | I50: =G34 ->  | J50: =J34 ->  | L50: Two Star | M50: 10
C51: 45 | D51: Four Star | G51: Indoor Environment Quality | H51: 1 | I51: 0 | J51: 0 | L51: Three Star | M51: 15
C52: 60 | D52: Five Star | G52: Energy | H52: 1 | I52: 0 | J52: 0 | L52: Four Star | M52: 15
C53: 75 | D53: Six Star | G53: Transport | H53: 1 | L53: Five Star | M53: 15
B54: Warning text | G54: Water | H54: 1 | I54: 0 | J54: 0 | L54: Six Stars | M54: =100-C53 -> 25
B55: Error Message = | C55: =IF(O44>0,"ERROR - Check category sheets","") ->  | G55: Materials | H55: 1
G56: Land use & Ecology | H56: 1 | I56: 0 | J56: 0 | L56: Potential | N56: =$K$44 -> 
B57: Mandatory Requirements Message | G57: Emissions | H57: 1 | I57: 0 | J57: 0
B58: =IF(B30="Yes","","Mandatory Requirements not met, Green Star Certified Rating not possible") -> 
B60: Rating
B61: Achieved Rating | C61: =VLOOKUP($H$44,$C$47:$D$53,2) ->  | F61: data for graphical summary page | L61: data for graphical summary page
B62: Potential Rating | C62: =VLOOKUP($N$44,$C$47:$D$53,2) ->  | F62: Credit Graph Data | L62: Weighted Score Graph Data
B64: Rating message | H64: Available | I64: Achieved | J64: tbc | N64: Available | O64: Achieved | P64: tbc
B65: =IF(OR(ISBLANK(Energy!F5), ISBLANK('Land Use & Ecology'!F5)),"Conditional requirements not met.",IF(H44<C51,"Minimal standards for Green Star SA certification not met.","Once certified, this score would equate to a " & C61 & " rating.")) -> Conditional requirements not met. | G65: =B34 -> Management | H65: =E34 ->  | M65: =B34 -> Management
I66: =F34 ->  | J66: =I34 ->  | N66: =D34 -> 9 | O66: =H34 ->  | P66: =K34 -> 
G67: IEQ | H67: =E35 -> 17 | M67: IEQ
I68: =F35 -> 0 | J68: =I35 -> 0 | N68: =D35 -> 15 | O68: =H35 -> 0 | P68: =K35 -> 0
G69: =B36 -> Energy | H69: =E36 -> 26 | M69: =B36 -> Energy
B70: Conditional Requirements | I70: =F36 -> 0 | J70: =I36 -> 0 | N70: =D36 -> 25 | O70: =H36 -> 0 | P70: =K36 -> 0
B71: Ene | C71: =IF(ISBLANK(Energy!F5),"Not met","Met") -> Met | G71: =B37 -> Transport | H71: =E37 ->  | M71: =B37 -> Transport
B72: Eco | C72: =IF(ISBLANK('Land Use & Ecology'!F5),"Not met","Met") -> Not met | I72: =F37 ->  | J72: =I37 ->  | N72: =D37 -> 9 | O72: =H37 ->  | P72: =K37 -> 
G73: =B38 -> Water | H73: =E38 -> 16 | M73: =B38 -> Water
I74: =F38 -> 0 | J74: =I38 -> 0 | N74: =D38 -> 14 | O74: =H38 -> 0 | P74: =K38 -> 0
G75: =B39 -> Materials | H75: =E39 ->  | M75: =B39 -> Materials
I76: =F39 ->  | J76: =I39 ->  | N76: =D39 -> 13 | O76: =H39 ->  | P76: =K39 -> 
G77: =B40 -> Land use & Ecology | H77: =E40 -> 11 | M77: =B40 -> Land use & Ecology
I78: =F40 -> 0 | J78: =I40 -> 0 | N78: =D40 -> 7 | O78: =H40 -> 0 | P78: =K40 -> 0
B79: Please Confirm | G79: =B41 -> Emissions | H79: =E41 -> 18 | M79: =B41 -> Emissions
B80: Yes | I80: =F41 -> 0 | J80: =I41 -> 0 | N80: =D41 -> 8 | O80: =H41 -> 0 | P80: =K41 -> 0
B81: No

Sheet Calculation1 (hidden)
A1: ='Building Input'!B1 -> Green Star SA - Retail Centre v1 | G1: =N25 -> New Building
A2: Credit Summary for: | C2: =IF('Building Input'!C5=0,"",'Building Input'!C5) -> 
A6: Category Weightings
C7: STATE BASED WEIGHTING FACTORS
B8: Baseline | C8: Gauteng | D8: W Cape | E8: E Cape | F8: N Cape | G8: KZN | H8: Limpopo | I8: N West | J8: Free State | K8: Mpumalanga | L8: State list
A9: Management | B9: ='Credit Summary'!J18 -> 0.1 | C9: =B9 -> 0.1 | D9: 0.1 | E9: 0.1 | F9: 0.1 | G9: 0.1 | H9: 0.1 | I9: 0.1 | J9: 0.1 | K9: 0.1 | L9: 1 | M9: Gauteng
A10: Indoor Environment Quality | B10: ='Credit Summary'!J32 -> 0.1 | C10: =B10 -> 0.1 | D10: 0.1 | E10: 0.1 | F10: 0.1 | G10: 0.1 | H10: 0.1 | I10: 0.1 | J10: 0.1 | K10: 0.1 | L10: 2 | M10: W Cape
A11: Energy | B11: ='Credit Summary'!J40 -> 0.25 | C11: =B11 -> 0.25 | D11: 0.25 | E11: =D11 -> 0.25 | F11: 0.25 | G11: 0.25 | H11: 0.25 | I11: 0.25 | J11: 0.25 | K11: 0.25 | L11: 3 | M11: E Cape
A12: Transport | B12: ='Credit Summary'!J49 -> 0.12 | C12: 0.12 | D12: 0.12 | E12: =D12 -> 0.12 | F12: 0.12 | G12: 0.12 | H12: 0.12 | I12: 0.12 | J12: 0.12 | K12: 0.12 | L12: 4 | M12: N Cape
A13: Water | B13: ='Credit Summary'!J57 -> 0.15 | C13: 0.15 | D13: 0.15 | E13: =D13 -> 0.15 | F13: 0.15 | G13: 0.15 | H13: 0.15 | I13: 0.15 | J13: 0.15 | K13: 0.15 | L13: 5 | M13: KZN
A14: Materials | B14: ='Credit Summary'!J70 -> 0.13 | C14: 0.13 | D14: 0.13 | E14: =D14 -> 0.13 | F14: 0.13 | G14: 0.13 | H14: 0.13 | I14: 0.13 | J14: 0.13 | K14: 0.13 | L14: 6 | M14: Limpopo
A15: Land use & Ecology | B15: ='Credit Summary'!J79 -> 0.07 | C15: 0.07 | D15: 0.07 | E15: =D15 -> 0.07 | F15: 0.07 | G15: 0.07 | H15: 0.07 | I15: 0.07 | J15: 0.07 | K15: 0.07 | L15: 7 | M15: N West
A16: Emissions | B16: ='Credit Summary'!J92 -> 0.08 | C16: 0.08 | D16: 0.08 | E16: =D16 -> 0.08 | F16: 0.08 | G16: 0.08 | H16: 0.08 | I16: 0.08 | J16: 0.08 | K16: 0.08 | L16: 8 | M16: Free State
L17: 9 | M17: Mpumalanga
B18: =SUM(B9:B16) -> 1 | C18: 1 | D18: 1 | E18: 1 | F18: 1 | G18: 1 | H18: 1 | I18: 1 | J18: 1 | K18: 1 | L18: State selected = | M18: 1 | N18: =VLOOKUP(M18,L9:M17,2) -> Gauteng
O20: note:
L21: Type of assessment | O21: Green cells update with changes to Building Input Sheet
L22: 1 | M22: New Building
L23: 2 | M23: Refurbished Building
L25: Type selected = | M25: 1 | N25: =VLOOKUP(M25,L22:M23,2) -> New Building
B26: Mandatory requirements
L27: Type of Rating | R27: 1
L28: 1 | N28: Green Star SA - Retail Centre Design v1
L29: 2 | M29: Green Star SA - Retail Centre Design v1 | N29: Green Star SA - Retail Centre Design v1
B30: Yes | C30: If there are mandatory requirements then this cell to the left | L30: 3 | M30: Green Star SA - Retail Centre As Built v1 | N30: Green Star SA - Retail Centre As Built v1
C31: needs to read yes ONLY if they have been met. | K31: Type Selected = | M31: 1 | N31: =VLOOKUP(M31,L28:N30,3,) -> Green Star SA - Retail Centre Design v1
A32: Points Calculation
B33: Category | C33: Weighting | D33: Max Score per category | E33: Total of credits available | F33: Points achieved | G33: % of points achieved | H33: Weighted Score (achieved) | I33: Credits tbc | J33: % of credits tbc | K33: Weighted Score tbc | L33: Achieved + tbc credits | M33: % of achieved + tbc | N33: Potential weighted score | O33: Error check
B34: Management | C34: =VLOOKUP(B34,A9:K9,$M$18+2) -> 0.1 | D34: =C34*100 -> 10 | E34: =Management!E18 -> 17 | F34: ='Credit Summary'!E18 -> 0 | G34: =F34/E34 -> 0 | H34: =C34*G34*100 -> 0 | I34: ='Credit Summary'!G18 -> 0 | J34: =I34/E34 -> 0 | K34: =C34*J34*100 -> 0 | L34: =F34+I34 -> 0 | M34: =L34/E34 -> 0 | N34: =C34*M34*100 -> 0 | O34: =Management!I18 -> 0
B35: Indoor Environment Quality | C35: =VLOOKUP(B35,A10:K10,$M$18+2) -> 0.1 | D35: 10 | E35: ='Credit Summary'!D32 -> 17 | F35: ='Credit Summary'!E32 -> 0 | G35: 0 | H35: 0 | I35: ='Credit Summary'!G32 -> 0 | J35: 0 | K35: 0 | L35: 0 | M35: 0 | N35: 0 | O35: =IEQ!I28 -> 0
B36: Energy | C36: 0.25 | D36: 25 | E36: ='Credit Summary'!D40 -> 26 | F36: ='Credit Summary'!E40 -> 0 | G36: 0 | H36: 0 | I36: ='Credit Summary'!G40 -> 0 | J36: 0 | K36: 0 | L36: 0 | M36: 0 | N36: 0 | O36: =Energy!I12 -> 0
B37: Transport | C37: 0.12 | D37: 12 | E37: ='Credit Summary'!D49 -> 15 | F37: ='Credit Summary'!E49 -> 0 | G37: 0 | H37: 0 | I37: ='Credit Summary'!G49 -> 0 | J37: 0 | K37: 0 | L37: 0 | M37: 0 | N37: 0 | O37: =Transport!I15 -> 0
B38: Water | C38: 0.15 | D38: 15 | E38: ='Credit Summary'!D57 -> 16 | F38: ='Credit Summary'!E57 -> 0 | G38: 0 | H38: 0 | I38: ='Credit Summary'!G57 -> 0 | J38: 0 | K38: 0 | L38: 0 | M38: 0 | N38: 0 | O38: =Water!I12 -> 0
B39: Materials | C39: 0.13 | D39: 13 | E39: ='Credit Summary'!D70 -> 23 | F39: ='Credit Summary'!E70 -> 0 | G39: 0 | H39: 0 | I39: ='Credit Summary'!G70 -> 0 | J39: 0 | K39: 0 | L39: 0 | M39: 0 | N39: 0 | O39: =Materials!I29 -> 0
B40: Land use & Ecology | C40: 0.07 | D40: 7 | E40: ='Credit Summary'!D79 -> 11 | F40: ='Credit Summary'!E79 -> 0 | G40: 0 | H40: 0 | I40: ='Credit Summary'!G79 -> 0 | J40: 0 | K40: 0 | L40: 0 | M40: 0 | N40: 0 | O40: ='Land Use & Ecology'!I13 -> 0
B41: Emissions | C41: 0.08 | D41: 8 | E41: ='Credit Summary'!D92 -> 18 | F41: ='Credit Summary'!E92 -> 0 | G41: 0 | H41: 0 | I41: ='Credit Summary'!G92 -> 0 | J41: 0 | K41: 0 | L41: 0 | M41: 0 | N41: 0 | O41: =Emissions!I19 -> 0
B42: Total | C42: =SUM(C34:C41) -> 1 | D42: =SUM(D34:D41) -> 100 | E42: =SUM(E34:E41) -> 143 | F42: =SUM(F34:F41) -> 0 | H42: =SUM(H34:H41) -> 0 | I42: =SUM(I34:I41) -> 0 | K42: =SUM(K34:K41) -> 0 | L42: =SUM(L34:L41) -> 0 | N42: =SUM(N34:N41) -> 0
B43: Innovation | E43: =Innovation!E8 -> 5 | F43: =Innovation!F8 -> 0 | H43: =F43 -> 0 | I43: =Innovation!G8 -> 0 | K43: =I43 -> 0 | L43: =F43+I43 -> 0 | N43: =L43 -> 0 | O43: =Innovation!I8 -> 0
B44: Overall Score | H44: =H42+H43 -> 0 | K44: =K42+K43 -> 0 | L44: =L42+L43 -> 0 | N44: =N42+N43 -> 0 | O44: =SUM(O34:O43) -> 0
C46: Scores required for GBRT Ratings | F46: data for graphical summary page | K46: data for graphical summary page
C47: 0 | D47: No Rating | F47: Category Score Data | L47: Rating Chart | M47: Green Star | N47: Achieved
C48: 10 | D48: One Star | L48: No Rating | M48: =C48-C47 -> 10 | N48: =MAX(0,MIN($M48,$H$44-$C47)) -> 0
C49: 20 | D49: Two Star | H49: Available | I49: Achieved | J49: tbc | L49: One Star | M49: 10 | N49: 0
C50: 30 | D50: Three Star | G50: =B34 -> Management | H50: 1 | I50: =G34 -> 0 | J50: =J34 -> 0 | L50: Two Star | M50: 10 | N50: 0
C51: 45 | D51: Four Star | G51: Indoor Environment Quality | H51: 1 | I51: 0 | J51: 0 | L51: Three Star | M51: 15 | N51: 0
C52: 60 | D52: Five Star | G52: Energy | H52: 1 | I52: 0 | J52: 0 | L52: Four Star | M52: 15 | N52: 0
C53: 75 | D53: Six Star | G53: Transport | H53: 1 | I53: 0 | J53: 0 | L53: Five Star | M53: 15 | N53: 0
B54: Warning text | G54: Water | H54: 1 | I54: 0 | J54: 0 | L54: Six Stars | M54: =100-C53 -> 25 | N54: 0
B55: Error Message = | C55: =IF(O44>0,"ERROR - Check category sheets","") ->  | G55: Materials | H55: 1 | I55: 0 | J55: 0
G56: Land use & Ecology | H56: 1 | I56: 0 | J56: 0 | L56: Potential | N56: =$K$44 -> 0
B57: Mandatory Requirements Message | G57: Emissions | H57: 1 | I57: 0 | J57: 0
B58: =IF(B30="Yes","","Mandatory Requirements not met, Green Star SA Certified Rating not possible") -> 
B60: Rating
B61: Achieved Rating | C61: =VLOOKUP($H$44,$C$47:$D$53,2) -> No Rating | F61: data for graphical summary page | L61: data for graphical summary page
B62: Potential Rating | C62: =VLOOKUP($N$44,$C$47:$D$53,2) -> No Rating | F62: Credit Graph Data | L62: Weighted Score Graph Data
B64: Rating message | H64: Available | I64: Achieved | J64: tbc | N64: Available | O64: Achieved | P64: tbc
B65: =IF(OR(ISBLANK(Energy!F5), ISBLANK('Land Use & Ecology'!F5)),"Conditional requirements not met.",IF(H44<C51,"Minimal standards for Green Star SA certification not met.","Once certified, this score would equate to a " & C61 & " rating.")) -> Conditional requirements not met. | G65: =B34 -> Management | H65: =E34 -> 17 | M65: =B34 -> Management
I66: =F34 -> 0 | J66: =I34 -> 0 | N66: =D34 -> 10 | O66: =H34 -> 0 | P66: =K34 -> 0
G67: IEQ | H67: =E35 -> 17 | M67: IEQ
I68: =F35 -> 0 | J68: =I35 -> 0 | N68: =D35 -> 10 | O68: =H35 -> 0 | P68: =K35 -> 0
G69: =B36 -> Energy | H69: =E36 -> 26 | M69: =B36 -> Energy
B70: Conditional Requirements | I70: =F36 -> 0 | J70: =I36 -> 0 | N70: =D36 -> 25 | O70: =H36 -> 0 | P70: =K36 -> 0
B71: Ene | C71: =IF(ISBLANK(Energy!F5),"Not met","Met") -> Met | G71: =B37 -> Transport | H71: =E37 -> 15 | M71: =B37 -> Transport
B72: Eco | C72: =IF(ISBLANK('Land Use & Ecology'!F5),"Not met","Met") -> Not met | I72: =F37 -> 0 | J72: =I37 -> 0 | N72: =D37 -> 12 | O72: =H37 -> 0 | P72: =K37 -> 0
G73: =B38 -> Water | H73: =E38 -> 16 | M73: =B38 -> Water
I74: =F38 -> 0 | J74: =I38 -> 0 | N74: =D38 -> 15 | O74: =H38 -> 0 | P74: =K38 -> 0
B75: Ene-0 Conditional Requirement | G75: =B39 -> Materials | H75: =E39 -> 23 | M75: =B39 -> Materials
B76: Yes- Compliance Route 1 | I76: =F39 -> 0 | J76: =I39 -> 0 | N76: =D39 -> 13 | O76: =H39 -> 0 | P76: =K39 -> 0
B77: Yes- Compliance Route 2 | G77: =B40 -> Land use & Ecology | H77: =E40 -> 11 | M77: =B40 -> Land use & Ecology
B78: No- Not Met | I78: =F40 -> 0 | J78: =I40 -> 0 | N78: =D40 -> 7 | O78: =H40 -> 0 | P78: =K40 -> 0
G79: =B41 -> Emissions | H79: =E41 -> 18 | M79: =B41 -> Emissions
I80: =F41 -> 0 | J80: =I41 -> 0 | N80: =D41 -> 8 | O80: =H41 -> 0 | P80: =K41 -> 0
B83: ERROR MESSAGES
A84: 1 | B84: ERROR, sum of no. of points achieved and points to be confirmed exceeds the total no. of available points
A85: 2 | B85: ERROR, Value entered in 'No. of points achieved' must be a number or 'na'
A86: 3 | B86: [ERROR: Please check for error message in worksheet]
A87: 4 | B87: ERROR, text not valid!
B89: Reminder Note for TCs & CIRs
A93: 1 | B93: Project Teams are to refer to the Green Star SA Retail Centre v1 Technical Manual for explicit credit criteria and documentation requirements.
A94: 2 | B94: The Green Star Technical Clarifications (TC) and Credit Interpretation Request (CIR) rulings provide an essential source of information to all
A95: 3 | B95: projects undertaking Green Star assessment. They are available on the GBCSA website http://www.gbcsa.org.za . Technical Clarifications
A96: 4 | B96: often represent the GBCSA answers to technical queries and complement Green Star SA Technical Manuals. They do not amend but clarify
A97: 5 | B97: Credit Criteria or Compliance Requirements. They are an extension of the Technical Manual; it is the responsibility of the project teams to stay
A98: 6 | B98: up-to-date with this section of the GBCSA website. The CIR rulings offer alternative compliance options whenever those have been deemed
A99: 7 | B99: equivalent in meeting the Aim of Credit.
